{"text_format":"1","workbook":"xlsx","n_sheets":8,"sheets":["Points","Accueil","Inscrits","1","2","Final","Classement","Liste des Joueurs"],"not_rendered":{"charts":0,"images":2,"macros":0,"external_links":0,"defined_names":66,"comments":3,"pivot_tables":0},"unopened":[],"bounds":{"document_bytes":16777216,"sheet_cells":100000,"rows_first":2000,"rows_last":500,"rows_between":2000,"halvings":0,"cell_chars":16384,"cell_head_chars":4096},"cells_cut":0,"cells_raw":0,"read":"whole","date_system":"1900"}

{"sheet":"Points","index":0,"n_rows":37,"n_cols":4,"rows_kept":37,"cut":false,"hidden":false,"merged":[]}
["Place","R1","R2","R3"]
[1,200,142,93]
[2,180,125,79]
[3,161,109,66]
[4,161,109,66]
[5,143,94,54]
[6,143,94,54]
[7,143,94,54]
[8,143,94,54]
[9,126,80,43]
[10,126,80,43]
[11,126,80,43]
[12,126,80,43]
[13,126,80,43]
[14,126,80,43]
[15,126,80,43]
[16,126,80,43]
[17,110,67,33]
[18,110,67,33]
[19,110,67,33]
[20,110,67,33]
[21,110,67,33]
[22,110,67,33]
[23,110,67,33]
[24,110,67,33]
[25,95,55,24]
[26,95,55,24]
[27,95,55,24]
[28,95,55,24]
[29,95,55,24]
[30,95,55,24]
[31,95,55,24]
[32,95,55,24]
["FNE",-50,-35,-20]
["FE",0,0,0]
["SUP",-100,-100,-100]
["A",0,0,0]

{"sheet":"Accueil","index":1,"n_rows":310,"n_cols":7,"rows_kept":310,"cut":false,"hidden":false,"merged":[[206,3,206,6],[1,2,1,6],[15,2,15,6],[205,3,205,6]]}
["F"]
["A",null,"INFOS UTILES POUR CE TOURNOI"]
[0]
[1,null,"LIGUE","Auvergne-Rhône-Alpes",null,"SAISON","2018/2019"]
[2]
[3,null,"DATE","2019-03-17",null,"TOURNOI","N°3"]
[4]
[5,null,"CLUB","Veyre Monton",null,"DIVISION","R1"]
[6]
[7,null,"VILLE DU CLUB","CLERMONT FERRAND",null,"NB JOUEURS",15]
[8]
[9,null,"Nombre de joueurs\nMontants de Division",0]
[10]
[11,null,"Nombre de joueurs\nDescendants de Division",0,null,"Nombre de Billards\n8 Pool",6]
[12]
[13,null,"DISTANCES DES MATCHS"]
[14]
[15,null,"Nb Parties Gagnantes\ndans les Poules\n(côté gagnant)",3,null,"Nb Parties Gagnantes\ndans les Poules\n(côté perdant)",3]
[16]
[17,null,"Nb Parties Gagnantes\nen 1/8 de finale",4,null,"Nb Parties Gagnantes\nen 1/4 de finale",4]
[18]
[19,null,"Nb Parties Gagnantes\nen 1/2 de finale",4,null,"Nb Parties Gagnantes\nen Finale",5]
[20]
[21]
[22]
[23]
[24]
[25]
[26]
[27]
[28]
[29]
[30]
[31]
[32]
[33]
[34]
[35]
[36]
[37]
[38]
[39]
[40]
[41]
[42]
[43]
[44]
[45]
[46]
[47]
[48]
[49]
[50]
[51]
[52]
[53]
[54]
[55]
[56]
[57]
[58]
[59]
[60]
[61]
[62]
[63]
[64]
[65]
[66]
[67]
[68]
[69]
[70]
[71]
[72]
[73]
[74]
[75]
[76]
[77]
[78]
[79]
[80]
[81]
[82]
[83]
[84]
[85]
[86]
[87]
[88]
[89]
[90]
[91]
[92]
[93]
[94]
[95]
[96]
[97]
[98]
[99]
[100]
[101]
[102]
[103]
[104]
[105]
[106]
[107]
[108]
[109]
[110]
[111]
[112]
[113]
[114]
[115]
[116]
[117]
[118]
[119]
[120]
[121]
[122]
[123]
[124]
[125]
[126]
[127]
[128]
[129]
[130]
[131]
[132]
[133]
[134]
[135]
[136]
[137]
[138]
[139]
[140]
[141]
[142]
[143]
[144]
[145]
[146]
[147]
[148]
[149]
[150]
[151]
[152]
[153]
[154]
[155]
[156]
[157]
[158]
[159]
[160]
[161]
[162]
[163]
[164]
[165]
[166]
[167]
[168]
[169]
[170]
[171]
[172]
[173]
[174]
[175]
[176]
[177]
[178]
[179]
[180]
[181]
[182]
[183]
[184]
[185]
[186]
[187]
[188]
[189]
[190]
[191]
[192]
[193]
[194]
[195]
[196]
[197]
[198]
[199]
[200]
[]
[]
[null,null,"Nom du fichier des Licenciés","Championnat FFB avec R3.xls"]
[null,null,"Chemin du fichier Licenciés","E:\\FFB\\Logiciel\\Championnat FFB avec R3.xls"]
["CLUB"]
["COMITE"]
["LIGUE"]
[]
["N°1"]
["N°2"]
["N°3"]
["N°4"]
["N°5"]
["N°6"]
["N°7"]
["N°8"]
["N°9"]
["N°10"]
["N°11"]
["N°12"]
[]
["2018/2019"]
["2019/2020"]
["2020/2021"]
["2021/2022"]
[]
["R1"]
["R2"]
["R3"]
[]
["Veyre Monton"]
["Vulcain 8 pool"]
["Billard Club Pontois"]
["Club Chamberien de Billard"]
["Billard Club de Bourg en Bresse"]
["Academie de Billard de la Valserine"]
["Billard Club de Clarafont-Arcine"]
["Billard Club 8 Pool Evian"]
["Blackball Billard Club Bésayes 26"]
["Le Blackball Marsannais"]
["Les Squales"]
["Night Billard Club"]
["Association du lake Pub 74"]
["Eight's Pool Game"]
["Billard Club Lyonnais 8 Pool"]
["Devil's Pool Club"]
["Blackball Culozien"]
[]
["CLERMONT FERRAND"]
["AURILLAC"]
["PONT de CHERUY"]
["CHAMBERY"]
["BOURG EN BRESSE"]
["BELLEGARDE SUR VALSERINE"]
["CLARAFONT-ARCINE"]
["EVIAN les BAINS"]
["BESAYES"]
["MARSANNE"]
["BOURG LES VALENCE"]
["BEAUREGARD"]
[" SEVRIER"]
["NYONS"]
["LYON"]
[]
[]
[]
[]
[]
[]
[]
[]
[]
[]
[]
[]
[]
[]
[]
[]
[]
[]
[]
[]
[]
[]
[]
[]
[]
[]
[]
[]
[]
[]
[]
[]
[]
[]
[]
[]
[]
[]
[]
[]
[]
[]
[]
["DAMIENFFB8POOL"]

{"sheet":"Inscrits","index":2,"n_rows":42,"n_cols":12,"rows_kept":42,"cut":false,"hidden":false,"merged":[[0,11,1,11],[8,11,9,11],[16,11,18,11],[25,11,26,11]]}
["N° Tirage","Nom du Joueur","Classement","Club","N° Licence","Forfait\nNon Excusé","Forfait\nExcusé","Abandon",1,"X",null,1]
[1,{"$f":"IFERROR(VLOOKUP(E2,'Liste des Joueurs'!A:C,2,FALSE),\"En Cours\")","v":"MOREIRA ALBERTO"},1,{"$f":"IFERROR(VLOOKUP(E2,'Liste des Joueurs'!A:C,3,FALSE),\"En Cours\")","v":"VEYRE-MONTON BILLARD CLUB"},"159263M",null,null,null,2,"-"]
[2,{"$f":"IFERROR(VLOOKUP(E3,'Liste des Joueurs'!A:C,2,FALSE),\"En Cours\")","v":"JACOBERGER FABIEN"},2,{"$f":"IFERROR(VLOOKUP(E3,'Liste des Joueurs'!A:C,3,FALSE),\"En Cours\")","v":"BILLARD CLUB VICHY"},"119290C",null,null,null,3]
[3,{"$f":"IFERROR(VLOOKUP(E4,'Liste des Joueurs'!A:C,2,FALSE),\"En Cours\")","v":"VIRGA JOEL"},3,{"$f":"IFERROR(VLOOKUP(E4,'Liste des Joueurs'!A:C,3,FALSE),\"En Cours\")","v":"VEYRE-MONTON BILLARD CLUB"},"123367X",null,null,null,4]
[4,{"$f":"IFERROR(VLOOKUP(E5,'Liste des Joueurs'!A:C,2,FALSE),\"En Cours\")","v":"PRAL LAURENT"},4,{"$f":"IFERROR(VLOOKUP(E5,'Liste des Joueurs'!A:C,3,FALSE),\"En Cours\")","v":"VEYRE-MONTON BILLARD CLUB"},"101033X",null,null,null,5]
[5,{"$f":"IFERROR(VLOOKUP(E6,'Liste des Joueurs'!A:C,2,FALSE),\"En Cours\")","v":"CUBIZOLLES ALAIN"},5,{"$f":"IFERROR(VLOOKUP(E6,'Liste des Joueurs'!A:C,3,FALSE),\"En Cours\")","v":"VEYRE-MONTON BILLARD CLUB"},"122400S",null,null,null,6]
[6,{"$f":"IFERROR(VLOOKUP(E7,'Liste des Joueurs'!A:C,2,FALSE),\"En Cours\")","v":"VILA VERDE EZEQUIEL"},6,{"$f":"IFERROR(VLOOKUP(E7,'Liste des Joueurs'!A:C,3,FALSE),\"En Cours\")","v":"VEYRE-MONTON BILLARD CLUB"},"157080P",null,null,null,7]
[7,{"$f":"IFERROR(VLOOKUP(E8,'Liste des Joueurs'!A:C,2,FALSE),\"En Cours\")","v":"VACOSSIN NICOLAS"},7,{"$f":"IFERROR(VLOOKUP(E8,'Liste des Joueurs'!A:C,3,FALSE),\"En Cours\")","v":"VEYRE-MONTON BILLARD CLUB"},"143251R",null,null,null,8]
[8,{"$f":"IFERROR(VLOOKUP(E9,'Liste des Joueurs'!A:C,2,FALSE),\"En Cours\")","v":"LESKOVSEK LAURENT"},9,{"$f":"IFERROR(VLOOKUP(E9,'Liste des Joueurs'!A:C,3,FALSE),\"En Cours\")","v":"LE BLACKBALL MARSANNAIS"},"101027R",null,null,null,9,null,null,2]
[9,{"$f":"IFERROR(VLOOKUP(E10,'Liste des Joueurs'!A:C,2,FALSE),\"En Cours\")","v":"DEPUYDT EDDY"},11,{"$f":"IFERROR(VLOOKUP(E10,'Liste des Joueurs'!A:C,3,FALSE),\"En Cours\")","v":"VEYRE-MONTON BILLARD CLUB"},"159235G",null,null,null,10]
[10,{"$f":"IFERROR(VLOOKUP(E11,'Liste des Joueurs'!A:C,2,FALSE),\"En Cours\")","v":"LEPAGE PATRICK"},12,{"$f":"IFERROR(VLOOKUP(E11,'Liste des Joueurs'!A:C,3,FALSE),\"En Cours\")","v":"VEYRE-MONTON BILLARD CLUB"},"145661J",null,null,null,11]
[11,{"$f":"IFERROR(VLOOKUP(E12,'Liste des Joueurs'!A:C,2,FALSE),\"En Cours\")","v":"VIGUIER FRANCK"},13,{"$f":"IFERROR(VLOOKUP(E12,'Liste des Joueurs'!A:C,3,FALSE),\"En Cours\")","v":"BILLARD CLUB VICHY"},"137422M",null,null,null,12]
[12,{"$f":"IFERROR(VLOOKUP(E13,'Liste des Joueurs'!A:C,2,FALSE),\"En Cours\")","v":"MEUNIER PHILIPPE"},14,{"$f":"IFERROR(VLOOKUP(E13,'Liste des Joueurs'!A:C,3,FALSE),\"En Cours\")","v":"BILLARD CLUB VICHY"},"129017F",null,null,null,13]
[13,{"$f":"IFERROR(VLOOKUP(E14,'Liste des Joueurs'!A:C,2,FALSE),\"En Cours\")","v":"BAYON BRUNO"},16,{"$f":"IFERROR(VLOOKUP(E14,'Liste des Joueurs'!A:C,3,FALSE),\"En Cours\")","v":"BILLARD CLUB DE LA PLAINE DU FOREZ"},"166692M",null,null,null,14]
[14,{"$f":"IFERROR(VLOOKUP(E15,'Liste des Joueurs'!A:C,2,FALSE),\"En Cours\")","v":"LEBRE PHILIPPE"},17,{"$f":"IFERROR(VLOOKUP(E15,'Liste des Joueurs'!A:C,3,FALSE),\"En Cours\")","v":"BILLARD CLUB ISSOIRE"},"166052R",null,null,null,15]
[15,{"$f":"IFERROR(VLOOKUP(E16,'Liste des Joueurs'!A:C,2,FALSE),\"En Cours\")","v":"GATTINO PATRICK"},18,{"$f":"IFERROR(VLOOKUP(E16,'Liste des Joueurs'!A:C,3,FALSE),\"En Cours\")","v":"BILLARD CLUB DE LA PLAINE DU FOREZ"},"156797G",null,null,null,16]
[16,{"$f":"IFERROR(VLOOKUP(E17,'Liste des Joueurs'!A:C,2,FALSE),\"En Cours\")","v":"En Cours"},null,{"$f":"IFERROR(VLOOKUP(E17,'Liste des Joueurs'!A:C,3,FALSE),\"En Cours\")","v":"En Cours"},null,null,null,null,null,null,null,"OU"]
[]
[]
[]
[]
[]
[]
[]
[]
[null,null,null,null,null,null,null,null,null,null,null,3]
[]
[]
[]
[]
[]
[]
[]
[]
[null,null,{"$f":"IF(B19=\"\",\"\",VLOOKUP(B19,#REF!,3,FALSE))","v":""}]
[null,null,{"$f":"IF(B20=\"\",\"\",VLOOKUP(B20,#REF!,3,FALSE))","v":""}]
[null,null,{"$f":"IF(B21=\"\",\"\",VLOOKUP(B21,#REF!,3,FALSE))","v":""}]
[null,null,{"$f":"IF(B22=\"\",\"\",VLOOKUP(B22,#REF!,3,FALSE))","v":""}]
[null,null,{"$f":"IF(B23=\"\",\"\",VLOOKUP(B23,#REF!,3,FALSE))","v":""}]
[null,null,{"$f":"IF(B24=\"\",\"\",VLOOKUP(B24,#REF!,3,FALSE))","v":""}]
[null,null,{"$f":"IF(B25=\"\",\"\",VLOOKUP(B25,#REF!,3,FALSE))","v":""}]
[null,null,{"$f":"IF(B26=\"\",\"\",VLOOKUP(B26,#REF!,3,FALSE))","v":""}]

{"sheet":"1","index":3,"n_rows":21,"n_cols":45,"rows_kept":21,"cut":false,"hidden":false,"merged":[[20,9,20,17],[12,1,12,2],[0,9,0,17],[1,42,1,45],[11,42,11,45],[10,20,10,21]]}
[null,null,null,null,null,null,null,null,null,{"$f":"\"(MATCHS EN \"&Accueil!D18&\" GAGNANTES COTE GAGNANTS) \"","v":"(MATCHS EN 3 GAGNANTES COTE GAGNANTS) "}]
[null,null,null,null,null,null,null,null,null,null,null,null,null,null,null,null,null,null,null,null,null,null,null,null,null,null,null,null,null,null,null,null,null,null,null,null,null,null,null,null,null,null,"QUALIFIES"]
[null,null,null,null,null,null,null,null,null,null,"P1",1,{"$f":"IF(IF(ISNA(VLOOKUP(L3,Inscrits!$A$2:$C$33,2,FALSE)),\"\",VLOOKUP(L3,Inscrits!$A$2:$C$33,2,FALSE))=0,\"\",IF(ISNA(VLOOKUP(L3,Inscrits!$A$2:$C$33,2,FALSE)),\"\",VLOOKUP(L3,Inscrits!$A$2:$C$33,2,FALSE)))","v":"MOREIRA ALBERTO"},{"$f":"IF(IF(ISNA(VLOOKUP(L3,Inscrits!$A$2:$C$33,3,FALSE)),\"\",\"(\"&(VLOOKUP(L3,Inscrits!$A$2:$C$33,3,FALSE))&\")\")=\"()\",\"\",IF(ISNA(VLOOKUP(L3,Inscrits!$A$2:$C$33,3,FALSE)),\"\",\"(\"&(VLOOKUP(L3,Inscrits!$A$2:$C$33,3,FALSE))&\")\"))","v":"(1)"},null,null,"G1",null,null,null,null,null,null,null,null,null,null,null,"G","P","G","P","G","P","G","P","G","P","G","P","Ga",null,null,"NOM","Ga"]
[null,null,null,null,null,null,null,null,"F",{"$f":"IF(OR(AND(O3=\"F\",O5=\"F\"),AND(O3=\"A\",O5=\"A\")),M5,IF(OR(O3=\"F\",O3=\"A\"),M3,IF(OR(O5=\"F\",O5=\"A\"),M5,IF(O3=O5,\"\",(IF(O3<O5,M3,M5))))))","v":"En Cours"},{"$f":"IF(OR(AND(O3=\"F\",O5=\"F\"),AND(O3=\"A\",O5=\"A\")),N5,IF(OR(O3=\"F\",O3=\"A\"),N3,IF(OR(O5=\"F\",O5=\"A\"),N5,IF(O3=O5,\"\",(IF(O3<O5,N3,N5))))))","v":""},null,"Match 1 - Billard",null,null,null,{"$f":"IF(OR(AND(O3=\"F\",O5=\"F\"),AND(O3=\"A\",O5=\"A\")),M3,IF(OR(O3=\"F\",O3=\"A\"),M5,IF(OR(O5=\"F\",O5=\"A\"),M3,IF(O3=O5,\"\",(IF(O3>O5,M3,M5))))))","v":"MOREIRA ALBERTO"},{"$f":"IF(OR(AND(O3=\"F\",O5=\"F\"),AND(O3=\"A\",O5=\"A\")),N3,IF(OR(O3=\"F\",O3=\"A\"),N5,IF(OR(O5=\"F\",O5=\"A\"),N3,IF(O3=O5,\"\",(IF(O3>O5,N3,N5))))))","v":"(1)"},null,null,null,null,null,null,1,{"$f":"IF(U6=\"\",\"\",IF(U6=Q4,Q4,Q8))","v":""},null,{"$f":"M3","v":"MOREIRA ALBERTO"},{"$f":"IF(AB4=M3,IF(O5=\"F\",\"\",O3),0)","v":""},{"$f":"IF(AB4=M3,IF(O3=\"F\",\"\",O5),0)","v":"F"},{"$f":"IF(AB4=Q4,IF(S8=\"F\",\"\",S4),0)","v":0},{"$f":"IF(AB4=Q4,IF(S4=\"F\",\"\",S8),0)","v":0},{"$f":"IF(AB4=J4,IF(I8=\"F\",\"\",I4),0)","v":0},{"$f":"IF(AB4=J4,IF(I4=\"F\",\"\",I8),0)","v":0},{"$f":"IF(AB4=F6,IF(E10=\"F\",\"\",E6),0)","v":0},{"$f":"IF(AB4=F6,IF(E6=\"F\",\"\",E10),0)","v":0},{"$f":"IF(AB4=F20,IF(E16=\"F\",\"\",E20),0)","v":0},{"$f":"IF(AB4=F20,IF(E20=\"F\",\"\",E16),0)","v":0},{"$f":"SUM(AC4,AE4,AG4,AI4,AK4)","v":0},0,{"$f":"AM4-AN4","v":0},null,null,{"$f":"Z4","v":""},{"$f":"IF(AR4=\"\",\"\",(VLOOKUP(AR4,AB4:AO17,14,FALSE)))","v":""}]
[null,null,null,null,null,null,"G7",null,null,null,null,16,{"$f":"IF(IF(ISNA(VLOOKUP(L5,Inscrits!$A$2:$C$33,2,FALSE)),\"\",VLOOKUP(L5,Inscrits!$A$2:$C$33,2,FALSE))=0,\"\",IF(ISNA(VLOOKUP(L5,Inscrits!$A$2:$C$33,2,FALSE)),\"\",VLOOKUP(L5,Inscrits!$A$2:$C$33,2,FALSE)))","v":"En Cours"},{"$f":"IF(IF(ISNA(VLOOKUP(L5,Inscrits!$A$2:$C$33,3,FALSE)),\"\",\"(\"&(VLOOKUP(L5,Inscrits!$A$2:$C$33,3,FALSE))&\")\")=\"()\",\"\",IF(ISNA(VLOOKUP(L5,Inscrits!$A$2:$C$33,3,FALSE)),\"\",\"(\"&(VLOOKUP(L5,Inscrits!$A$2:$C$33,3,FALSE))&\")\"))","v":""},"F",null,null,null,null,null,"G5",null,null,null,3,{"$f":"IF(B8=\"\",\"\",IF(B8=F6,F6,F10))","v":""},null,{"$f":"M5","v":"En Cours"},{"$f":"IF(AB5=M5,IF(O3=\"F\",\"\",O5),0)","v":"F"},{"$f":"IF(AB5=M5,IF(O5=\"F\",\"\",O3),0)","v":""},{"$f":"IF(AB5=Q4,IF(S8=\"F\",\"\",S4),0)","v":0},{"$f":"IF(AB5=Q4,IF(S4=\"F\",\"\",S8),0)","v":0},{"$f":"IF(AB5=J4,IF(I8=\"F\",\"\",I4),0)","v":"F"},{"$f":"IF(AB5=J4,IF(I4=\"F\",\"\",I8),0)","v":""},{"$f":"IF(AB5=F6,IF(E10=\"F\",\"\",E6),0)","v":0},{"$f":"IF(AB5=F6,IF(E6=\"F\",\"\",E10),0)","v":0},{"$f":"IF(AB5=F20,IF(E16=\"F\",\"\",E20),0)","v":0},{"$f":"IF(AB5=F20,IF(E20=\"F\",\"\",E16),0)","v":0},0,0,{"$f":"AM5-AN5","v":0},null,null,{"$f":"Z14","v":""},{"$f":"IF(AR5=\"\",\"\",(VLOOKUP(AR5,AB4:AO17,14,FALSE)))","v":""}]
[null,null,null,null,null,{"$f":"IF(OR(I4=\"F\",I4=\"A\"),J8,IF(OR(I8=\"F\",I8=\"A\"),J4,IF(I4=I8,\"\",(IF(I4>I8,J4,J8)))))","v":""},{"$f":"IF(OR(I4=\"F\",I4=\"A\"),K8,IF(OR(I8=\"F\",I8=\"A\"),K4,IF(I4=I8,\"\",(IF(I4>I8,K4,K8)))))","v":""},null,null,"Match 7 - Billard",null,null,null,null,null,null,"Match 5 - Billard",null,null,null,{"$f":"IF(OR(S4=\"F\",S4=\"A\"),Q8,IF(OR(S8=\"F\",S8=\"A\"),Q4,IF(S4=S8,\"\",(IF(S4>S8,Q4,Q8)))))","v":""},{"$f":"IF(OR(S4=\"F\",S4=\"A\"),R8,IF(OR(S8=\"F\",S8=\"A\"),R4,IF(S4=S8,\"\",(IF(S4>S8,R4,R8)))))","v":""},"A",null,5,{"$f":"IF(B8=\"\",\"\",IF(B8=F6,F10,F6))","v":""},null,{"$f":"M7","v":"DEPUYDT EDDY"},{"$f":"IF(AB6=M7,IF(O9=\"F\",\"\",O7),0)","v":0},{"$f":"IF(AB6=M7,IF(O7=\"F\",\"\",O9),0)","v":0},{"$f":"IF(AB6=Q8,IF(S4=\"F\",\"\",S8),0)","v":0},{"$f":"IF(AB6=Q8,IF(S8=\"F\",\"\",S4),0)","v":0},{"$f":"IF(AB6=J8,IF(I4=\"F\",\"\",I8),0)","v":0},{"$f":"IF(AB6=J8,IF(I8=\"F\",\"\",I4),0)","v":0},{"$f":"IF(AB6=F6,IF(E10=\"F\",\"\",E6),0)","v":0},{"$f":"IF(AB6=F6,IF(E6=\"F\",\"\",E10),0)","v":0},{"$f":"IF(AB6=F20,IF(E16=\"F\",\"\",E20),0)","v":0},{"$f":"IF(AB6=F20,IF(E20=\"F\",\"\",E16),0)","v":0},0,0,{"$f":"AM6-AN6","v":0},null,null,{"$f":"Z5","v":""},{"$f":"IF(AR6=\"\",\"\",(VLOOKUP(AR6,AB4:AO17,14,FALSE)))","v":""}]
[null,null,"G9",null,null,null,null,null,null,null,null,9,{"$f":"IF(IF(ISNA(VLOOKUP(L7,Inscrits!$A$2:$C$33,2,FALSE)),\"\",VLOOKUP(L7,Inscrits!$A$2:$C$33,2,FALSE))=0,\"\",IF(ISNA(VLOOKUP(L7,Inscrits!$A$2:$C$33,2,FALSE)),\"\",VLOOKUP(L7,Inscrits!$A$2:$C$33,2,FALSE)))","v":"DEPUYDT EDDY"},{"$f":"IF(IF(ISNA(VLOOKUP(L7,Inscrits!$A$2:$C$33,3,FALSE)),\"\",\"(\"&(VLOOKUP(L7,Inscrits!$A$2:$C$33,3,FALSE))&\")\")=\"()\",\"\",IF(ISNA(VLOOKUP(L7,Inscrits!$A$2:$C$33,3,FALSE)),\"\",\"(\"&(VLOOKUP(L7,Inscrits!$A$2:$C$33,3,FALSE))&\")\"))","v":"(11)"},null,null,null,null,null,null,null,null,null,null,7,{"$f":"IF(F6=\"\",\"\",IF(F6=J4,J8,J4))","v":""},null,{"$f":"M9","v":"LESKOVSEK LAURENT"},{"$f":"IF(AB7=M9,IF(O7=\"F\",\"\",O9),0)","v":0},{"$f":"IF(AB7=M9,IF(O9=\"F\",\"\",O7),0)","v":0},{"$f":"IF(AB7=Q8,IF(S4=\"F\",\"\",S8),0)","v":0},{"$f":"IF(AB7=Q8,IF(S8=\"F\",\"\",S4),0)","v":0},{"$f":"IF(AB7=J8,IF(I4=\"F\",\"\",I8),0)","v":0},{"$f":"IF(AB7=J8,IF(I8=\"F\",\"\",I4),0)","v":0},{"$f":"IF(AB7=F6,IF(E10=\"F\",\"\",E6),0)","v":0},{"$f":"IF(AB7=F6,IF(E6=\"F\",\"\",E10),0)","v":0},{"$f":"IF(AB7=F20,IF(E16=\"F\",\"\",E20),0)","v":0},{"$f":"IF(AB7=F20,IF(E20=\"F\",\"\",E16),0)","v":0},0,0,{"$f":"AM7-AN7","v":0},null,null,{"$f":"Z15","v":""},{"$f":"IF(AR7=\"\",\"\",(VLOOKUP(AR7,AB4:AO17,14,FALSE)))","v":""}]
["W",{"$f":"IF(OR(E6=\"F\",E6=\"A\"),F10,IF(OR(E10=\"F\",E10=\"A\"),F6,IF(E6=E10,\"\",(IF(E6>E10,F6,F10)))))","v":""},{"$f":"IF(OR(E6=\"F\",E6=\"A\"),G10,IF(OR(E10=\"F\",E10=\"A\"),G6,IF(E6=E10,\"\",(IF(E6>E10,G6,G10)))))","v":""},null,null,"Match 9 - Billard",null,null,null,{"$f":"IF(OR(AND(O7=\"F\",O9=\"F\"),AND(O7=\"A\",O9=\"A\")),M9,IF(OR(O7=\"F\",O7=\"A\"),M7,IF(OR(O9=\"F\",O9=\"A\"),M9,IF(O7=O9,\"\",(IF(O7<O9,M7,M9))))))","v":""},{"$f":"IF(OR(AND(O7=\"F\",O9=\"F\"),AND(O7=\"A\",O9=\"A\")),N9,IF(OR(O7=\"F\",O7=\"A\"),N7,IF(OR(O9=\"F\",O9=\"A\"),N9,IF(O7=O9,\"\",(IF(O7<O9,N7,N9))))))","v":""},null,"Match 2 - Billard",null,null,null,{"$f":"IF(OR(AND(O7=\"F\",O9=\"F\"),AND(O7=\"A\",O9=\"A\")),M7,IF(OR(O7=\"F\",O7=\"A\"),M9,IF(OR(O9=\"F\",O9=\"A\"),M7,IF(O7=O9,\"\",(IF(O7>O9,M7,M9))))))","v":""},{"$f":"IF(OR(AND(O7=\"F\",O9=\"F\"),AND(O7=\"A\",O9=\"A\")),N7,IF(OR(O7=\"F\",O7=\"A\"),N9,IF(OR(O9=\"F\",O9=\"A\"),N7,IF(O7=O9,\"\",(IF(O7>O9,N7,N9))))))","v":""}]
[null,null,null,null,null,null,null,null,null,null,"P2",8,{"$f":"IF(IF(ISNA(VLOOKUP(L9,Inscrits!$A$2:$C$33,2,FALSE)),\"\",VLOOKUP(L9,Inscrits!$A$2:$C$33,2,FALSE))=0,\"\",IF(ISNA(VLOOKUP(L9,Inscrits!$A$2:$C$33,2,FALSE)),\"\",VLOOKUP(L9,Inscrits!$A$2:$C$33,2,FALSE)))","v":"LESKOVSEK LAURENT"},{"$f":"IF(IF(ISNA(VLOOKUP(L9,Inscrits!$A$2:$C$33,3,FALSE)),\"\",\"(\"&(VLOOKUP(L9,Inscrits!$A$2:$C$33,3,FALSE))&\")\")=\"()\",\"\",IF(ISNA(VLOOKUP(L9,Inscrits!$A$2:$C$33,3,FALSE)),\"\",\"(\"&(VLOOKUP(L9,Inscrits!$A$2:$C$33,3,FALSE))&\")\"))","v":"(9)"},null,null,"G2"]
[null,null,null,null,null,{"$f":"IF(OR(S14=\"F\",S14=\"A\"),Q14,IF(OR(S18=\"F\",S18=\"A\"),Q18,IF(S14=S18,\"\",(IF(S14<S18,Q14,Q18)))))","v":""},{"$f":"IF(OR(S14=\"F\",S14=\"A\"),R14,IF(OR(S18=\"F\",S18=\"A\"),R18,IF(S14=S18,\"\",(IF(S14<S18,R14,R18)))))","v":""}]
[null,null,null,null,null,null,"P6",null,null,null,null,null,null,null,null,null,null,null,null,null,"QUALIFIES"]
[null,null,null,null,null,null,null,null,null,null,null,null,null,null,null,null,null,null,null,null,null,null,null,null,null,null,null,null,null,null,null,null,null,null,null,null,null,null,null,null,null,null,"ELIMINES"]
[null,"QUALIFIES",null,null,null,null,null,null,null,null,"P3",5,{"$f":"IF(IF(ISNA(VLOOKUP(L13,Inscrits!$A$2:$C$33,2,FALSE)),\"\",VLOOKUP(L13,Inscrits!$A$2:$C$33,2,FALSE))=0,\"\",IF(ISNA(VLOOKUP(L13,Inscrits!$A$2:$C$33,2,FALSE)),\"\",VLOOKUP(L13,Inscrits!$A$2:$C$33,2,FALSE)))","v":"CUBIZOLLES ALAIN"},{"$f":"IF(IF(ISNA(VLOOKUP(L13,Inscrits!$A$2:$C$33,3,FALSE)),\"\",\"(\"&(VLOOKUP(L13,Inscrits!$A$2:$C$33,3,FALSE))&\")\")=\"()\",\"\",IF(ISNA(VLOOKUP(L13,Inscrits!$A$2:$C$33,3,FALSE)),\"\",\"(\"&(VLOOKUP(L13,Inscrits!$A$2:$C$33,3,FALSE))&\")\"))","v":"(5)"},null,null,"G3",null,null,null,null,null,null,null,null,null,null,null,"G","P","G","P","G","P","G","P","G","P","G","P","Ga",null,null,"NOM","Ga"]
[null,null,null,null,null,null,null,null,null,{"$f":"IF(OR(AND(O13=\"F\",O15=\"F\"),AND(O13=\"A\",O15=\"A\")),M15,IF(OR(O13=\"F\",O13=\"A\"),M13,IF(OR(O15=\"F\",O15=\"A\"),M15,IF(O13=O15,\"\",(IF(O13<O15,M13,M15))))))","v":""},{"$f":"IF(OR(AND(O13=\"F\",O15=\"F\"),AND(O13=\"A\",O15=\"A\")),N15,IF(OR(O13=\"F\",O13=\"A\"),N13,IF(OR(O15=\"F\",O15=\"A\"),N15,IF(O13=O15,\"\",(IF(O13<O15,N13,N15))))))","v":""},null,"Match 3 - Billard",null,null,null,{"$f":"IF(OR(AND(O13=\"F\",O15=\"F\"),AND(O13=\"A\",O15=\"A\")),M13,IF(OR(O13=\"F\",O13=\"A\"),M15,IF(OR(O15=\"F\",O15=\"A\"),M13,IF(O13=O15,\"\",(IF(O13>O15,M13,M15))))))","v":""},{"$f":"IF(OR(AND(O13=\"F\",O15=\"F\"),AND(O13=\"A\",O15=\"A\")),N13,IF(OR(O13=\"F\",O13=\"A\"),N15,IF(OR(O15=\"F\",O15=\"A\"),N13,IF(O13=O15,\"\",(IF(O13>O15,N13,N15))))))","v":""},null,null,null,null,null,null,2,{"$f":"IF(U16=\"\",\"\",IF(U16=Q14,Q14,Q18))","v":""},null,{"$f":"M13","v":"CUBIZOLLES ALAIN"},{"$f":"IF(AB14=M13,IF(O15=\"F\",\"\",O13),0)","v":0},{"$f":"IF(AB14=M13,IF(O13=\"F\",\"\",O15),0)","v":0},{"$f":"IF(AB14=Q14,IF(S18=\"F\",\"\",S14),0)","v":0},{"$f":"IF(AB14=Q14,IF(S14=\"F\",\"\",S18),0)","v":0},{"$f":"IF(AB14=J14,IF(I18=\"F\",\"\",I14),0)","v":0},{"$f":"IF(AB14=J14,IF(I14=\"F\",\"\",I18),0)","v":0},{"$f":"IF(AB14=F16,IF(E20=\"F\",\"\",E16),0)","v":0},{"$f":"IF(AB14=F16,IF(E16=\"F\",\"\",E20),0)","v":0},{"$f":"IF(AB14=F10,IF(E6=\"F\",\"\",E10),0)","v":0},{"$f":"IF(AB14=F10,IF(E10=\"F\",\"\",E6),0)","v":0},{"$f":"SUM(AC14,AE14,AG14,AI14,AK14)","v":0},0,{"$f":"AM14-AN14","v":0},null,null,{"$f":"Z6","v":""},{"$f":"IF(AR14=\"\",\"\",(VLOOKUP(AR14,AB4:AO17,14,FALSE)))","v":""}]
[null,null,null,null,null,null,"G8",null,null,null,null,12,{"$f":"IF(IF(ISNA(VLOOKUP(L15,Inscrits!$A$2:$C$33,2,FALSE)),\"\",VLOOKUP(L15,Inscrits!$A$2:$C$33,2,FALSE))=0,\"\",IF(ISNA(VLOOKUP(L15,Inscrits!$A$2:$C$33,2,FALSE)),\"\",VLOOKUP(L15,Inscrits!$A$2:$C$33,2,FALSE)))","v":"MEUNIER PHILIPPE"},{"$f":"IF(IF(ISNA(VLOOKUP(L15,Inscrits!$A$2:$C$33,3,FALSE)),\"\",\"(\"&(VLOOKUP(L15,Inscrits!$A$2:$C$33,3,FALSE))&\")\")=\"()\",\"\",IF(ISNA(VLOOKUP(L15,Inscrits!$A$2:$C$33,3,FALSE)),\"\",\"(\"&(VLOOKUP(L15,Inscrits!$A$2:$C$33,3,FALSE))&\")\"))","v":"(14)"},null,null,null,null,null,null,"G6",null,null,null,4,{"$f":"IF(B18=\"\",\"\",IF(B18=F16,F16,F20))","v":""},null,{"$f":"M15","v":"MEUNIER PHILIPPE"},{"$f":"IF(AB15=M15,IF(O13=\"F\",\"\",O15),0)","v":0},{"$f":"IF(AB15=M15,IF(O15=\"F\",\"\",O13),0)","v":0},{"$f":"IF(AB15=Q14,IF(S18=\"F\",\"\",S14),0)","v":0},{"$f":"IF(AB15=Q14,IF(S14=\"F\",\"\",S18),0)","v":0},{"$f":"IF(AB15=J14,IF(I18=\"F\",\"\",I14),0)","v":0},{"$f":"IF(AB15=J14,IF(I14=\"F\",\"\",I18),0)","v":0},{"$f":"IF(AB15=F16,IF(E20=\"F\",\"\",E16),0)","v":0},{"$f":"IF(AB15=F16,IF(E16=\"F\",\"\",E20),0)","v":0},{"$f":"IF(AB15=F10,IF(E6=\"F\",\"\",E10),0)","v":0},{"$f":"IF(AB15=F10,IF(E10=\"F\",\"\",E6),0)","v":0},0,0,{"$f":"AM15-AN15","v":0},null,null,{"$f":"Z16","v":""},{"$f":"IF(AR15=\"\",\"\",(VLOOKUP(AR15,AB4:AO17,14,FALSE)))","v":""}]
[null,null,null,null,null,{"$f":"IF(OR(I14=\"F\",I14=\"A\"),J18,IF(OR(I18=\"F\",I18=\"A\"),J14,IF(I14=I18,\"\",(IF(I14>I18,J14,J18)))))","v":""},{"$f":"IF(OR(I14=\"F\",I14=\"A\"),K18,IF(OR(I18=\"F\",I18=\"A\"),K14,IF(I14=I18,\"\",(IF(I14>I18,K14,K18)))))","v":""},null,null,"Match 8 - Billard",null,null,null,null,null,null,"Match 6 - Billard",null,null,null,{"$f":"IF(OR(S14=\"F\",S14=\"A\"),Q18,IF(OR(S18=\"F\",S18=\"A\"),Q14,IF(S14=S18,\"\",(IF(S14>S18,Q14,Q18)))))","v":""},{"$f":"IF(OR(S14=\"F\",S14=\"A\"),R18,IF(OR(S18=\"F\",S18=\"A\"),R14,IF(S14=S18,\"\",(IF(S14>S18,R14,R18)))))","v":""},"B",null,6,{"$f":"IF(B18=\"\",\"\",IF(B18=F16,F20,F16))","v":""},null,{"$f":"M17","v":"BAYON BRUNO"},{"$f":"IF(AB16=M17,IF(O19=\"F\",\"\",O17),0)","v":0},{"$f":"IF(AB16=M17,IF(O17=\"F\",\"\",O19),0)","v":0},{"$f":"IF(AB16=Q18,IF(S14=\"F\",\"\",S18),0)","v":0},{"$f":"IF(AB16=Q18,IF(S18=\"F\",\"\",S14),0)","v":0},{"$f":"IF(AB16=J18,IF(I14=\"F\",\"\",I18),0)","v":0},{"$f":"IF(AB16=J18,IF(I18=\"F\",\"\",I14),0)","v":0},{"$f":"IF(AB16=F16,IF(E20=\"F\",\"\",E16),0)","v":0},{"$f":"IF(AB16=F16,IF(E16=\"F\",\"\",E20),0)","v":0},{"$f":"IF(AB16=F10,IF(E6=\"F\",\"\",E10),0)","v":0},{"$f":"IF(AB16=F10,IF(E10=\"F\",\"\",E6),0)","v":0},0,0,{"$f":"AM16-AN16","v":0},null,null,{"$f":"Z7","v":""},{"$f":"IF(AR16=\"\",\"\",(VLOOKUP(AR16,AB4:AO17,14,FALSE)))","v":""}]
[null,null,"G10",null,null,null,null,null,null,null,null,13,{"$f":"IF(IF(ISNA(VLOOKUP(L17,Inscrits!$A$2:$C$33,2,FALSE)),\"\",VLOOKUP(L17,Inscrits!$A$2:$C$33,2,FALSE))=0,\"\",IF(ISNA(VLOOKUP(L17,Inscrits!$A$2:$C$33,2,FALSE)),\"\",VLOOKUP(L17,Inscrits!$A$2:$C$33,2,FALSE)))","v":"BAYON BRUNO"},{"$f":"IF(IF(ISNA(VLOOKUP(L17,Inscrits!$A$2:$C$33,3,FALSE)),\"\",\"(\"&(VLOOKUP(L17,Inscrits!$A$2:$C$33,3,FALSE))&\")\")=\"()\",\"\",IF(ISNA(VLOOKUP(L17,Inscrits!$A$2:$C$33,3,FALSE)),\"\",\"(\"&(VLOOKUP(L17,Inscrits!$A$2:$C$33,3,FALSE))&\")\"))","v":"(16)"},null,null,null,null,null,null,null,null,null,null,8,{"$f":"IF(F16=\"\",\"\",IF(F16=J14,J18,J14))","v":""},null,{"$f":"M19","v":"PRAL LAURENT"},{"$f":"IF(AB17=M19,IF(O17=\"F\",\"\",O19),0)","v":0},{"$f":"IF(AB17=M19,IF(O19=\"F\",\"\",O17),0)","v":0},{"$f":"IF(AB17=Q18,IF(S14=\"F\",\"\",S18),0)","v":0},{"$f":"IF(AB17=Q18,IF(S18=\"F\",\"\",S14),0)","v":0},{"$f":"IF(AB17=J18,IF(I14=\"F\",\"\",I18),0)","v":0},{"$f":"IF(AB17=J18,IF(I18=\"F\",\"\",I14),0)","v":0},{"$f":"IF(AB17=F16,IF(E20=\"F\",\"\",E16),0)","v":0},{"$f":"IF(AB17=F16,IF(E16=\"F\",\"\",E20),0)","v":0},{"$f":"IF(AB17=F10,IF(E6=\"F\",\"\",E10),0)","v":0},{"$f":"IF(AB17=F10,IF(E10=\"F\",\"\",E6),0)","v":0},0,{"$f":"SUM(AD17,AF17,AH17,AJ17,AL17)","v":0},{"$f":"AM17-AN17","v":0},null,null,{"$f":"Z17","v":""},{"$f":"IF(AR17=\"\",\"\",(VLOOKUP(AR17,AB4:AO17,14,FALSE)))","v":""}]
["X",{"$f":"IF(OR(E16=\"F\",E16=\"A\"),F20,IF(OR(E20=\"F\",E20=\"A\"),F16,IF(E16=E20,\"\",(IF(E16>E20,F16,F20)))))","v":""},{"$f":"IF(OR(E16=\"F\",E16=\"A\"),G20,IF(OR(E20=\"F\",E20=\"A\"),G16,IF(E16=E20,\"\",(IF(E16>E20,G16,G20)))))","v":""},null,null,"Match 10 - Billard",null,null,null,{"$f":"IF(OR(AND(O17=\"F\",O19=\"F\"),AND(O17=\"A\",O19=\"A\")),M19,IF(OR(O17=\"F\",O17=\"A\"),M17,IF(OR(O19=\"F\",O19=\"A\"),M19,IF(O17=O19,\"\",(IF(O17<O19,M17,M19))))))","v":""},{"$f":"IF(OR(AND(O17=\"F\",O19=\"F\"),AND(O17=\"A\",O19=\"A\")),N19,IF(OR(O17=\"F\",O17=\"A\"),N17,IF(OR(O19=\"F\",O19=\"A\"),N19,IF(O17=O19,\"\",(IF(O17<O19,N17,N19))))))","v":""},null,"Match 4 - Billard",null,null,null,{"$f":"IF(OR(AND(O17=\"F\",O19=\"F\"),AND(O17=\"A\",O19=\"A\")),M17,IF(OR(O17=\"F\",O17=\"A\"),M19,IF(OR(O19=\"F\",O19=\"A\"),M17,IF(O17=O19,\"\",(IF(O17>O19,M17,M19))))))","v":""},{"$f":"IF(OR(AND(O17=\"F\",O19=\"F\"),AND(O17=\"A\",O19=\"A\")),N17,IF(OR(O17=\"F\",O17=\"A\"),N19,IF(OR(O19=\"F\",O19=\"A\"),N17,IF(O17=O19,\"\",(IF(O17>O19,N17,N19))))))","v":""}]
[null,null,null,null,null,null,null,null,null,null,"P4",4,{"$f":"IF(IF(ISNA(VLOOKUP(L19,Inscrits!$A$2:$C$33,2,FALSE)),\"\",VLOOKUP(L19,Inscrits!$A$2:$C$33,2,FALSE))=0,\"\",IF(ISNA(VLOOKUP(L19,Inscrits!$A$2:$C$33,2,FALSE)),\"\",VLOOKUP(L19,Inscrits!$A$2:$C$33,2,FALSE)))","v":"PRAL LAURENT"},{"$f":"IF(IF(ISNA(VLOOKUP(L19,Inscrits!$A$2:$C$33,3,FALSE)),\"\",\"(\"&(VLOOKUP(L19,Inscrits!$A$2:$C$33,3,FALSE))&\")\")=\"()\",\"\",IF(ISNA(VLOOKUP(L19,Inscrits!$A$2:$C$33,3,FALSE)),\"\",\"(\"&(VLOOKUP(L19,Inscrits!$A$2:$C$33,3,FALSE))&\")\"))","v":"(4)"},null,null,"G4"]
[null,null,null,null,null,{"$f":"IF(OR(S4=\"F\",S4=\"A\"),Q4,IF(OR(S8=\"F\",S8=\"A\"),Q8,IF(S4=S8,\"\",(IF(S4<S8,Q4,Q8)))))","v":""},{"$f":"IF(OR(S4=\"F\",S4=\"A\"),R4,IF(OR(S8=\"F\",S8=\"A\"),R8,IF(S4=S8,\"\",(IF(S4<S8,R4,R8)))))","v":""}]
[null,null,null,null,null,null,"P5",null,null,{"$f":"\"(MATCHS EN \"&Accueil!G18&\" GAGNANTES COTE PERDANT) \"","v":"(MATCHS EN 3 GAGNANTES COTE PERDANT) "}]

{"sheet":"2","index":4,"n_rows":21,"n_cols":45,"rows_kept":21,"cut":false,"hidden":false,"merged":[[20,9,20,17],[0,9,0,17],[12,1,12,2],[10,20,10,21],[1,42,1,45],[11,42,11,45]]}
[null,null,null,null,null,null,null,null,null,{"$f":"\"(MATCHS EN \"&Accueil!D18&\" GAGNANTES COTE GAGNANTS) \"","v":"(MATCHS EN 3 GAGNANTES COTE GAGNANTS) "}]
[null,null,null,null,null,null,null,null,null,null,null,null,null,null,null,null,null,null,null,null,null,null,null,null,null,null,null,null,null,null,null,null,null,null,null,null,null,null,null,null,null,null,"QUALIFIES"]
[null,null,null,null,null,null,null,null,null,null,"P1",3,{"$f":"IF(IF(ISNA(VLOOKUP(L3,Inscrits!$A$2:$C$33,2,FALSE)),\"\",VLOOKUP(L3,Inscrits!$A$2:$C$33,2,FALSE))=0,\"\",IF(ISNA(VLOOKUP(L3,Inscrits!$A$2:$C$33,2,FALSE)),\"\",VLOOKUP(L3,Inscrits!$A$2:$C$33,2,FALSE)))","v":"VIRGA JOEL"},{"$f":"IF(IF(ISNA(VLOOKUP(L3,Inscrits!$A$2:$C$33,3,FALSE)),\"\",\"(\"&(VLOOKUP(L3,Inscrits!$A$2:$C$33,3,FALSE))&\")\")=\"()\",\"\",IF(ISNA(VLOOKUP(L3,Inscrits!$A$2:$C$33,3,FALSE)),\"\",\"(\"&(VLOOKUP(L3,Inscrits!$A$2:$C$33,3,FALSE))&\")\"))","v":"(3)"},null,null,"G1",null,null,null,null,null,null,null,null,null,null,null,"G","P","G","P","G","P","G","P","G","P","G","P","Ga",null,null,"NOM","Ga"]
[null,null,null,null,null,null,null,null,null,{"$f":"IF(OR(AND(O3=\"F\",O5=\"F\"),AND(O3=\"A\",O5=\"A\")),M5,IF(OR(O3=\"F\",O3=\"A\"),M3,IF(OR(O5=\"F\",O5=\"A\"),M5,IF(O3=O5,\"\",(IF(O3<O5,M3,M5))))))","v":""},{"$f":"IF(OR(AND(O3=\"F\",O5=\"F\"),AND(O3=\"A\",O5=\"A\")),N5,IF(OR(O3=\"F\",O3=\"A\"),N3,IF(OR(O5=\"F\",O5=\"A\"),N5,IF(O3=O5,\"\",(IF(O3<O5,N3,N5))))))","v":""},null,"Match 1 - Billard",null,null,null,{"$f":"IF(OR(AND(O3=\"F\",O5=\"F\"),AND(O3=\"A\",O5=\"A\")),M3,IF(OR(O3=\"F\",O3=\"A\"),M5,IF(OR(O5=\"F\",O5=\"A\"),M3,IF(O3=O5,\"\",(IF(O3>O5,M3,M5))))))","v":""},{"$f":"IF(OR(AND(O3=\"F\",O5=\"F\"),AND(O3=\"A\",O5=\"A\")),N3,IF(OR(O3=\"F\",O3=\"A\"),N5,IF(OR(O5=\"F\",O5=\"A\"),N3,IF(O3=O5,\"\",(IF(O3>O5,N3,N5))))))","v":""},null,null,null,null,null,null,1,{"$f":"IF(U6=\"\",\"\",IF(U6=Q4,Q4,Q8))","v":""},null,{"$f":"M3","v":"VIRGA JOEL"},{"$f":"IF(AB4=M3,IF(O5=\"F\",\"\",O3),0)","v":0},{"$f":"IF(AB4=M3,IF(O3=\"F\",\"\",O5),0)","v":0},{"$f":"IF(AB4=Q4,IF(S8=\"F\",\"\",S4),0)","v":0},{"$f":"IF(AB4=Q4,IF(S4=\"F\",\"\",S8),0)","v":0},{"$f":"IF(AB4=J4,IF(I8=\"F\",\"\",I4),0)","v":0},{"$f":"IF(AB4=J4,IF(I4=\"F\",\"\",I8),0)","v":0},{"$f":"IF(AB4=F6,IF(E10=\"F\",\"\",E6),0)","v":0},{"$f":"IF(AB4=F6,IF(E6=\"F\",\"\",E10),0)","v":0},{"$f":"IF(AB4=F20,IF(E16=\"F\",\"\",E20),0)","v":0},{"$f":"IF(AB4=F20,IF(E20=\"F\",\"\",E16),0)","v":0},{"$f":"SUM(AC4,AE4,AG4,AI4,AK4)","v":0},0,{"$f":"AM4-AN4","v":0},null,null,{"$f":"Z4","v":""},{"$f":"IF(AR4=\"\",\"\",(VLOOKUP(AR4,AB4:AO17,14,FALSE)))","v":""}]
[null,null,null,null,null,null,"G7",null,null,null,null,14,{"$f":"IF(IF(ISNA(VLOOKUP(L5,Inscrits!$A$2:$C$33,2,FALSE)),\"\",VLOOKUP(L5,Inscrits!$A$2:$C$33,2,FALSE))=0,\"\",IF(ISNA(VLOOKUP(L5,Inscrits!$A$2:$C$33,2,FALSE)),\"\",VLOOKUP(L5,Inscrits!$A$2:$C$33,2,FALSE)))","v":"LEBRE PHILIPPE"},{"$f":"IF(IF(ISNA(VLOOKUP(L5,Inscrits!$A$2:$C$33,3,FALSE)),\"\",\"(\"&(VLOOKUP(L5,Inscrits!$A$2:$C$33,3,FALSE))&\")\")=\"()\",\"\",IF(ISNA(VLOOKUP(L5,Inscrits!$A$2:$C$33,3,FALSE)),\"\",\"(\"&(VLOOKUP(L5,Inscrits!$A$2:$C$33,3,FALSE))&\")\"))","v":"(17)"},null,null,null,null,null,null,"G5",null,null,null,3,{"$f":"IF(B8=\"\",\"\",IF(B8=F6,F6,F10))","v":""},null,{"$f":"M5","v":"LEBRE PHILIPPE"},{"$f":"IF(AB5=M5,IF(O3=\"F\",\"\",O5),0)","v":0},{"$f":"IF(AB5=M5,IF(O5=\"F\",\"\",O3),0)","v":0},{"$f":"IF(AB5=Q4,IF(S8=\"F\",\"\",S4),0)","v":0},{"$f":"IF(AB5=Q4,IF(S4=\"F\",\"\",S8),0)","v":0},{"$f":"IF(AB5=J4,IF(I8=\"F\",\"\",I4),0)","v":0},{"$f":"IF(AB5=J4,IF(I4=\"F\",\"\",I8),0)","v":0},{"$f":"IF(AB5=F6,IF(E10=\"F\",\"\",E6),0)","v":0},{"$f":"IF(AB5=F6,IF(E6=\"F\",\"\",E10),0)","v":0},{"$f":"IF(AB5=F20,IF(E16=\"F\",\"\",E20),0)","v":0},{"$f":"IF(AB5=F20,IF(E20=\"F\",\"\",E16),0)","v":0},0,0,{"$f":"AM5-AN5","v":0},null,null,{"$f":"Z14","v":""},{"$f":"IF(AR5=\"\",\"\",(VLOOKUP(AR5,AB4:AO17,14,FALSE)))","v":""}]
[null,null,null,null,null,{"$f":"IF(OR(I4=\"F\",I4=\"A\"),J8,IF(OR(I8=\"F\",I8=\"A\"),J4,IF(I4=I8,\"\",(IF(I4>I8,J4,J8)))))","v":""},{"$f":"IF(OR(I4=\"F\",I4=\"A\"),K8,IF(OR(I8=\"F\",I8=\"A\"),K4,IF(I4=I8,\"\",(IF(I4>I8,K4,K8)))))","v":""},null,null,"Match 7 - Billard",null,null,null,null,null,null,"Match 5 - Billard",null,null,null,{"$f":"IF(OR(S4=\"F\",S4=\"A\"),Q8,IF(OR(S8=\"F\",S8=\"A\"),Q4,IF(S4=S8,\"\",(IF(S4>S8,Q4,Q8)))))","v":""},{"$f":"IF(OR(S4=\"F\",S4=\"A\"),R8,IF(OR(S8=\"F\",S8=\"A\"),R4,IF(S4=S8,\"\",(IF(S4>S8,R4,R8)))))","v":""},"C",null,5,{"$f":"IF(B8=\"\",\"\",IF(B8=F6,F10,F6))","v":""},null,{"$f":"M7","v":"VIGUIER FRANCK"},{"$f":"IF(AB6=M7,IF(O9=\"F\",\"\",O7),0)","v":0},{"$f":"IF(AB6=M7,IF(O7=\"F\",\"\",O9),0)","v":0},{"$f":"IF(AB6=Q8,IF(S4=\"F\",\"\",S8),0)","v":0},{"$f":"IF(AB6=Q8,IF(S8=\"F\",\"\",S4),0)","v":0},{"$f":"IF(AB6=J8,IF(I4=\"F\",\"\",I8),0)","v":0},{"$f":"IF(AB6=J8,IF(I8=\"F\",\"\",I4),0)","v":0},{"$f":"IF(AB6=F6,IF(E10=\"F\",\"\",E6),0)","v":0},{"$f":"IF(AB6=F6,IF(E6=\"F\",\"\",E10),0)","v":0},{"$f":"IF(AB6=F20,IF(E16=\"F\",\"\",E20),0)","v":0},{"$f":"IF(AB6=F20,IF(E20=\"F\",\"\",E16),0)","v":0},0,0,{"$f":"AM6-AN6","v":0},null,null,{"$f":"Z5","v":""},{"$f":"IF(AR6=\"\",\"\",(VLOOKUP(AR6,AB4:AO17,14,FALSE)))","v":""}]
[null,null,"G9",null,null,null,null,null,null,null,null,11,{"$f":"IF(IF(ISNA(VLOOKUP(L7,Inscrits!$A$2:$C$33,2,FALSE)),\"\",VLOOKUP(L7,Inscrits!$A$2:$C$33,2,FALSE))=0,\"\",IF(ISNA(VLOOKUP(L7,Inscrits!$A$2:$C$33,2,FALSE)),\"\",VLOOKUP(L7,Inscrits!$A$2:$C$33,2,FALSE)))","v":"VIGUIER FRANCK"},{"$f":"IF(IF(ISNA(VLOOKUP(L7,Inscrits!$A$2:$C$33,3,FALSE)),\"\",\"(\"&(VLOOKUP(L7,Inscrits!$A$2:$C$33,3,FALSE))&\")\")=\"()\",\"\",IF(ISNA(VLOOKUP(L7,Inscrits!$A$2:$C$33,3,FALSE)),\"\",\"(\"&(VLOOKUP(L7,Inscrits!$A$2:$C$33,3,FALSE))&\")\"))","v":"(13)"},null,null,null,null,null,null,null,null,null,null,7,{"$f":"IF(F6=\"\",\"\",IF(F6=J4,J8,J4))","v":""},null,{"$f":"M9","v":"VILA VERDE EZEQUIEL"},{"$f":"IF(AB7=M9,IF(O7=\"F\",\"\",O9),0)","v":0},{"$f":"IF(AB7=M9,IF(O9=\"F\",\"\",O7),0)","v":0},{"$f":"IF(AB7=Q8,IF(S4=\"F\",\"\",S8),0)","v":0},{"$f":"IF(AB7=Q8,IF(S8=\"F\",\"\",S4),0)","v":0},{"$f":"IF(AB7=J8,IF(I4=\"F\",\"\",I8),0)","v":0},{"$f":"IF(AB7=J8,IF(I8=\"F\",\"\",I4),0)","v":0},{"$f":"IF(AB7=F6,IF(E10=\"F\",\"\",E6),0)","v":0},{"$f":"IF(AB7=F6,IF(E6=\"F\",\"\",E10),0)","v":0},{"$f":"IF(AB7=F20,IF(E16=\"F\",\"\",E20),0)","v":0},{"$f":"IF(AB7=F20,IF(E20=\"F\",\"\",E16),0)","v":0},0,0,{"$f":"AM7-AN7","v":0},null,null,{"$f":"Z15","v":""},{"$f":"IF(AR7=\"\",\"\",(VLOOKUP(AR7,AB4:AO17,14,FALSE)))","v":""}]
["Y",{"$f":"IF(OR(E6=\"F\",E6=\"A\"),F10,IF(OR(E10=\"F\",E10=\"A\"),F6,IF(E6=E10,\"\",(IF(E6>E10,F6,F10)))))","v":""},{"$f":"IF(OR(E6=\"F\",E6=\"A\"),G10,IF(OR(E10=\"F\",E10=\"A\"),G6,IF(E6=E10,\"\",(IF(E6>E10,G6,G10)))))","v":""},null,null,"Match 9 - Billard",null,null,null,{"$f":"IF(OR(AND(O7=\"F\",O9=\"F\"),AND(O7=\"A\",O9=\"A\")),M9,IF(OR(O7=\"F\",O7=\"A\"),M7,IF(OR(O9=\"F\",O9=\"A\"),M9,IF(O7=O9,\"\",(IF(O7<O9,M7,M9))))))","v":""},{"$f":"IF(OR(AND(O7=\"F\",O9=\"F\"),AND(O7=\"A\",O9=\"A\")),N9,IF(OR(O7=\"F\",O7=\"A\"),N7,IF(OR(O9=\"F\",O9=\"A\"),N9,IF(O7=O9,\"\",(IF(O7<O9,N7,N9))))))","v":""},null,"Match 2 - Billard",null,null,null,{"$f":"IF(OR(AND(O7=\"F\",O9=\"F\"),AND(O7=\"A\",O9=\"A\")),M7,IF(OR(O7=\"F\",O7=\"A\"),M9,IF(OR(O9=\"F\",O9=\"A\"),M7,IF(O7=O9,\"\",(IF(O7>O9,M7,M9))))))","v":""},{"$f":"IF(OR(AND(O7=\"F\",O9=\"F\"),AND(O7=\"A\",O9=\"A\")),N7,IF(OR(O7=\"F\",O7=\"A\"),N9,IF(OR(O9=\"F\",O9=\"A\"),N7,IF(O7=O9,\"\",(IF(O7>O9,N7,N9))))))","v":""}]
[null,null,null,null,null,null,null,null,null,null,"P2",6,{"$f":"IF(IF(ISNA(VLOOKUP(L9,Inscrits!$A$2:$C$33,2,FALSE)),\"\",VLOOKUP(L9,Inscrits!$A$2:$C$33,2,FALSE))=0,\"\",IF(ISNA(VLOOKUP(L9,Inscrits!$A$2:$C$33,2,FALSE)),\"\",VLOOKUP(L9,Inscrits!$A$2:$C$33,2,FALSE)))","v":"VILA VERDE EZEQUIEL"},{"$f":"IF(IF(ISNA(VLOOKUP(L9,Inscrits!$A$2:$C$33,3,FALSE)),\"\",\"(\"&(VLOOKUP(L9,Inscrits!$A$2:$C$33,3,FALSE))&\")\")=\"()\",\"\",IF(ISNA(VLOOKUP(L9,Inscrits!$A$2:$C$33,3,FALSE)),\"\",\"(\"&(VLOOKUP(L9,Inscrits!$A$2:$C$33,3,FALSE))&\")\"))","v":"(6)"},null,null,"G2"]
[null,null,null,null,null,{"$f":"IF(OR(S14=\"F\",S14=\"A\"),Q14,IF(OR(S18=\"F\",S18=\"A\"),Q18,IF(S14=S18,\"\",(IF(S14<S18,Q14,Q18)))))","v":""},{"$f":"IF(OR(S14=\"F\",S14=\"A\"),R14,IF(OR(S18=\"F\",S18=\"A\"),R18,IF(S14=S18,\"\",(IF(S14<S18,R14,R18)))))","v":""}]
[null,null,null,null,null,null,"P6",null,null,null,null,null,null,null,null,null,null,null,null,null,"QUALIFIES"]
[null,null,null,null,null,null,null,null,null,null,null,null,null,null,null,null,null,null,null,null,null,null,null,null,null,null,null,null,null,null,null,null,null,null,null,null,null,null,null,null,null,null,"ELIMINES"]
[null,"QUALIFIES",null,null,null,null,null,null,null,null,"P3",7,{"$f":"IF(IF(ISNA(VLOOKUP(L13,Inscrits!$A$2:$C$33,2,FALSE)),\"\",VLOOKUP(L13,Inscrits!$A$2:$C$33,2,FALSE))=0,\"\",IF(ISNA(VLOOKUP(L13,Inscrits!$A$2:$C$33,2,FALSE)),\"\",VLOOKUP(L13,Inscrits!$A$2:$C$33,2,FALSE)))","v":"VACOSSIN NICOLAS"},{"$f":"IF(IF(ISNA(VLOOKUP(L13,Inscrits!$A$2:$C$33,3,FALSE)),\"\",\"(\"&(VLOOKUP(L13,Inscrits!$A$2:$C$33,3,FALSE))&\")\")=\"()\",\"\",IF(ISNA(VLOOKUP(L13,Inscrits!$A$2:$C$33,3,FALSE)),\"\",\"(\"&(VLOOKUP(L13,Inscrits!$A$2:$C$33,3,FALSE))&\")\"))","v":"(7)"},null,null,"G3",null,null,null,null,null,null,null,null,null,null,null,"G","P","G","P","G","P","G","P","G","P","G","P","Ga",null,null,"NOM","Ga"]
[null,null,null,null,null,null,null,null,null,{"$f":"IF(OR(AND(O13=\"F\",O15=\"F\"),AND(O13=\"A\",O15=\"A\")),M15,IF(OR(O13=\"F\",O13=\"A\"),M13,IF(OR(O15=\"F\",O15=\"A\"),M15,IF(O13=O15,\"\",(IF(O13<O15,M13,M15))))))","v":""},{"$f":"IF(OR(AND(O13=\"F\",O15=\"F\"),AND(O13=\"A\",O15=\"A\")),N15,IF(OR(O13=\"F\",O13=\"A\"),N13,IF(OR(O15=\"F\",O15=\"A\"),N15,IF(O13=O15,\"\",(IF(O13<O15,N13,N15))))))","v":""},null,"Match 3 - Billard",null,null,null,{"$f":"IF(OR(AND(O13=\"F\",O15=\"F\"),AND(O13=\"A\",O15=\"A\")),M13,IF(OR(O13=\"F\",O13=\"A\"),M15,IF(OR(O15=\"F\",O15=\"A\"),M13,IF(O13=O15,\"\",(IF(O13>O15,M13,M15))))))","v":""},{"$f":"IF(OR(AND(O13=\"F\",O15=\"F\"),AND(O13=\"A\",O15=\"A\")),N13,IF(OR(O13=\"F\",O13=\"A\"),N15,IF(OR(O15=\"F\",O15=\"A\"),N13,IF(O13=O15,\"\",(IF(O13>O15,N13,N15))))))","v":""},null,null,null,null,null,null,2,{"$f":"IF(U16=\"\",\"\",IF(U16=Q14,Q14,Q18))","v":""},null,{"$f":"M13","v":"VACOSSIN NICOLAS"},{"$f":"IF(AB14=M13,IF(O15=\"F\",\"\",O13),0)","v":0},{"$f":"IF(AB14=M13,IF(O13=\"F\",\"\",O15),0)","v":0},{"$f":"IF(AB14=Q14,IF(S18=\"F\",\"\",S14),0)","v":0},{"$f":"IF(AB14=Q14,IF(S14=\"F\",\"\",S18),0)","v":0},{"$f":"IF(AB14=J14,IF(I18=\"F\",\"\",I14),0)","v":0},{"$f":"IF(AB14=J14,IF(I14=\"F\",\"\",I18),0)","v":0},{"$f":"IF(AB14=F16,IF(E20=\"F\",\"\",E16),0)","v":0},{"$f":"IF(AB14=F16,IF(E16=\"F\",\"\",E20),0)","v":0},{"$f":"IF(AB14=F10,IF(E6=\"F\",\"\",E10),0)","v":0},{"$f":"IF(AB14=F10,IF(E10=\"F\",\"\",E6),0)","v":0},{"$f":"SUM(AC14,AE14,AG14,AI14,AK14)","v":0},0,{"$f":"AM14-AN14","v":0},null,null,{"$f":"Z6","v":""},{"$f":"IF(AR14=\"\",\"\",(VLOOKUP(AR14,AB4:AO17,14,FALSE)))","v":""}]
[null,null,null,null,null,null,"G8",null,null,null,null,10,{"$f":"IF(IF(ISNA(VLOOKUP(L15,Inscrits!$A$2:$C$33,2,FALSE)),\"\",VLOOKUP(L15,Inscrits!$A$2:$C$33,2,FALSE))=0,\"\",IF(ISNA(VLOOKUP(L15,Inscrits!$A$2:$C$33,2,FALSE)),\"\",VLOOKUP(L15,Inscrits!$A$2:$C$33,2,FALSE)))","v":"LEPAGE PATRICK"},{"$f":"IF(IF(ISNA(VLOOKUP(L15,Inscrits!$A$2:$C$33,3,FALSE)),\"\",\"(\"&(VLOOKUP(L15,Inscrits!$A$2:$C$33,3,FALSE))&\")\")=\"()\",\"\",IF(ISNA(VLOOKUP(L15,Inscrits!$A$2:$C$33,3,FALSE)),\"\",\"(\"&(VLOOKUP(L15,Inscrits!$A$2:$C$33,3,FALSE))&\")\"))","v":"(12)"},null,null,null,null,null,null,"G6",null,null,null,4,{"$f":"IF(B18=\"\",\"\",IF(B18=F16,F16,F20))","v":""},null,{"$f":"M15","v":"LEPAGE PATRICK"},{"$f":"IF(AB15=M15,IF(O13=\"F\",\"\",O15),0)","v":0},{"$f":"IF(AB15=M15,IF(O15=\"F\",\"\",O13),0)","v":0},{"$f":"IF(AB15=Q14,IF(S18=\"F\",\"\",S14),0)","v":0},{"$f":"IF(AB15=Q14,IF(S14=\"F\",\"\",S18),0)","v":0},{"$f":"IF(AB15=J14,IF(I18=\"F\",\"\",I14),0)","v":0},{"$f":"IF(AB15=J14,IF(I14=\"F\",\"\",I18),0)","v":0},{"$f":"IF(AB15=F16,IF(E20=\"F\",\"\",E16),0)","v":0},{"$f":"IF(AB15=F16,IF(E16=\"F\",\"\",E20),0)","v":0},{"$f":"IF(AB15=F10,IF(E6=\"F\",\"\",E10),0)","v":0},{"$f":"IF(AB15=F10,IF(E10=\"F\",\"\",E6),0)","v":0},0,0,{"$f":"AM15-AN15","v":0},null,null,{"$f":"Z16","v":""},{"$f":"IF(AR15=\"\",\"\",(VLOOKUP(AR15,AB4:AO17,14,FALSE)))","v":""}]
[null,null,null,null,null,{"$f":"IF(OR(I14=\"F\",I14=\"A\"),J18,IF(OR(I18=\"F\",I18=\"A\"),J14,IF(I14=I18,\"\",(IF(I14>I18,J14,J18)))))","v":""},{"$f":"IF(OR(I14=\"F\",I14=\"A\"),K18,IF(OR(I18=\"F\",I18=\"A\"),K14,IF(I14=I18,\"\",(IF(I14>I18,K14,K18)))))","v":""},null,null,"Match 8 - Billard",null,null,null,null,null,null,"Match 6 - Billard",null,null,null,{"$f":"IF(OR(S14=\"F\",S14=\"A\"),Q18,IF(OR(S18=\"F\",S18=\"A\"),Q14,IF(S14=S18,\"\",(IF(S14>S18,Q14,Q18)))))","v":""},{"$f":"IF(OR(S14=\"F\",S14=\"A\"),R18,IF(OR(S18=\"F\",S18=\"A\"),R14,IF(S14=S18,\"\",(IF(S14>S18,R14,R18)))))","v":""},"D",null,6,{"$f":"IF(B18=\"\",\"\",IF(B18=F16,F20,F16))","v":""},null,{"$f":"M17","v":"GATTINO PATRICK"},{"$f":"IF(AB16=M17,IF(O19=\"F\",\"\",O17),0)","v":0},{"$f":"IF(AB16=M17,IF(O17=\"F\",\"\",O19),0)","v":0},{"$f":"IF(AB16=Q18,IF(S14=\"F\",\"\",S18),0)","v":0},{"$f":"IF(AB16=Q18,IF(S18=\"F\",\"\",S14),0)","v":0},{"$f":"IF(AB16=J18,IF(I14=\"F\",\"\",I18),0)","v":0},{"$f":"IF(AB16=J18,IF(I18=\"F\",\"\",I14),0)","v":0},{"$f":"IF(AB16=F16,IF(E20=\"F\",\"\",E16),0)","v":0},{"$f":"IF(AB16=F16,IF(E16=\"F\",\"\",E20),0)","v":0},{"$f":"IF(AB16=F10,IF(E6=\"F\",\"\",E10),0)","v":0},{"$f":"IF(AB16=F10,IF(E10=\"F\",\"\",E6),0)","v":0},0,0,{"$f":"AM16-AN16","v":0},null,null,{"$f":"Z7","v":""},{"$f":"IF(AR16=\"\",\"\",(VLOOKUP(AR16,AB4:AO17,14,FALSE)))","v":""}]
[null,null,"G10",null,null,null,null,null,null,null,null,15,{"$f":"IF(IF(ISNA(VLOOKUP(L17,Inscrits!$A$2:$C$33,2,FALSE)),\"\",VLOOKUP(L17,Inscrits!$A$2:$C$33,2,FALSE))=0,\"\",IF(ISNA(VLOOKUP(L17,Inscrits!$A$2:$C$33,2,FALSE)),\"\",VLOOKUP(L17,Inscrits!$A$2:$C$33,2,FALSE)))","v":"GATTINO PATRICK"},{"$f":"IF(IF(ISNA(VLOOKUP(L17,Inscrits!$A$2:$C$33,3,FALSE)),\"\",\"(\"&(VLOOKUP(L17,Inscrits!$A$2:$C$33,3,FALSE))&\")\")=\"()\",\"\",IF(ISNA(VLOOKUP(L17,Inscrits!$A$2:$C$33,3,FALSE)),\"\",\"(\"&(VLOOKUP(L17,Inscrits!$A$2:$C$33,3,FALSE))&\")\"))","v":"(18)"},null,null,null,null,null,null,null,null,null,null,8,{"$f":"IF(F16=\"\",\"\",IF(F16=J14,J18,J14))","v":""},null,{"$f":"M19","v":"JACOBERGER FABIEN"},{"$f":"IF(AB17=M19,IF(O17=\"F\",\"\",O19),0)","v":0},{"$f":"IF(AB17=M19,IF(O19=\"F\",\"\",O17),0)","v":0},{"$f":"IF(AB17=Q18,IF(S14=\"F\",\"\",S18),0)","v":0},{"$f":"IF(AB17=Q18,IF(S18=\"F\",\"\",S14),0)","v":0},{"$f":"IF(AB17=J18,IF(I14=\"F\",\"\",I18),0)","v":0},{"$f":"IF(AB17=J18,IF(I18=\"F\",\"\",I14),0)","v":0},{"$f":"IF(AB17=F16,IF(E20=\"F\",\"\",E16),0)","v":0},{"$f":"IF(AB17=F16,IF(E16=\"F\",\"\",E20),0)","v":0},{"$f":"IF(AB17=F10,IF(E6=\"F\",\"\",E10),0)","v":0},{"$f":"IF(AB17=F10,IF(E10=\"F\",\"\",E6),0)","v":0},0,0,{"$f":"AM17-AN17","v":0},null,null,{"$f":"Z17","v":""},{"$f":"IF(AR17=\"\",\"\",(VLOOKUP(AR17,AB4:AO17,14,FALSE)))","v":""}]
["Z",{"$f":"IF(OR(E16=\"F\",E16=\"A\"),F20,IF(OR(E20=\"F\",E20=\"A\"),F16,IF(E16=E20,\"\",(IF(E16>E20,F16,F20)))))","v":""},{"$f":"IF(OR(E16=\"F\",E16=\"A\"),G20,IF(OR(E20=\"F\",E20=\"A\"),G16,IF(E16=E20,\"\",(IF(E16>E20,G16,G20)))))","v":""},null,null,"Match 10 - Billard",null,null,null,{"$f":"IF(OR(AND(O17=\"F\",O19=\"F\"),AND(O17=\"A\",O19=\"A\")),M19,IF(OR(O17=\"F\",O17=\"A\"),M17,IF(OR(O19=\"F\",O19=\"A\"),M19,IF(O17=O19,\"\",(IF(O17<O19,M17,M19))))))","v":""},{"$f":"IF(OR(AND(O17=\"F\",O19=\"F\"),AND(O17=\"A\",O19=\"A\")),N19,IF(OR(O17=\"F\",O17=\"A\"),N17,IF(OR(O19=\"F\",O19=\"A\"),N19,IF(O17=O19,\"\",(IF(O17<O19,N17,N19))))))","v":""},null,"Match 4 - Billard",null,null,null,{"$f":"IF(OR(AND(O17=\"F\",O19=\"F\"),AND(O17=\"A\",O19=\"A\")),M17,IF(OR(O17=\"F\",O17=\"A\"),M19,IF(OR(O19=\"F\",O19=\"A\"),M17,IF(O17=O19,\"\",(IF(O17>O19,M17,M19))))))","v":""},{"$f":"IF(OR(AND(O17=\"F\",O19=\"F\"),AND(O17=\"A\",O19=\"A\")),N17,IF(OR(O17=\"F\",O17=\"A\"),N19,IF(OR(O19=\"F\",O19=\"A\"),N17,IF(O17=O19,\"\",(IF(O17>O19,N17,N19))))))","v":""}]
[null,null,null,null,null,null,null,null,null,null,"P4",2,{"$f":"IF(IF(ISNA(VLOOKUP(L19,Inscrits!$A$2:$C$33,2,FALSE)),\"\",VLOOKUP(L19,Inscrits!$A$2:$C$33,2,FALSE))=0,\"\",IF(ISNA(VLOOKUP(L19,Inscrits!$A$2:$C$33,2,FALSE)),\"\",VLOOKUP(L19,Inscrits!$A$2:$C$33,2,FALSE)))","v":"JACOBERGER FABIEN"},{"$f":"IF(IF(ISNA(VLOOKUP(L19,Inscrits!$A$2:$C$33,3,FALSE)),\"\",\"(\"&(VLOOKUP(L19,Inscrits!$A$2:$C$33,3,FALSE))&\")\")=\"()\",\"\",IF(ISNA(VLOOKUP(L19,Inscrits!$A$2:$C$33,3,FALSE)),\"\",\"(\"&(VLOOKUP(L19,Inscrits!$A$2:$C$33,3,FALSE))&\")\"))","v":"(2)"},null,null,"G4"]
[null,null,null,null,null,{"$f":"IF(OR(S4=\"F\",S4=\"A\"),Q4,IF(OR(S8=\"F\",S8=\"A\"),Q8,IF(S4=S8,\"\",(IF(S4<S8,Q4,Q8)))))","v":""},{"$f":"IF(OR(S4=\"F\",S4=\"A\"),R4,IF(OR(S8=\"F\",S8=\"A\"),R8,IF(S4=S8,\"\",(IF(S4<S8,R4,R8)))))","v":""}]
[null,null,null,null,null,null,"P5",null,null,{"$f":"\"(MATCHS EN \"&Accueil!G18&\" GAGNANTES COTE PERDANT) \"","v":"(MATCHS EN 3 GAGNANTES COTE PERDANT) "}]

{"sheet":"Final","index":5,"n_rows":27,"n_cols":31,"rows_kept":27,"cut":false,"hidden":false,"merged":[[1,1,1,3],[1,5,1,7],[1,9,1,11],[0,9,0,11],[0,5,0,7],[0,1,0,3]]}
[null,"1/4 de finale",null,null,null,"1/2 finale",null,null,null,"Finale"]
[null,{"$f":"\"(\"&Accueil!G20&\" manches gagnantes)\"","v":"(4 manches gagnantes)"},null,null,null,{"$f":"\"(\"&Accueil!D22&\" manches gagnantes)\"","v":"(4 manches gagnantes)"},null,null,null,{"$f":"\"(\"&Accueil!G22&\" manches gagnantes)\"","v":"(5 manches gagnantes)"}]
[null,null,null,null,null,null,null,null,null,null,null,null,null,null,null,null,null,"JOUEURS","1/8","1/4","1/2","Finale","GA Final",null,"JOUEURS","GA Poules",null,"JOUEURS","GA Poules","GA Final","GA TOTAL"]
[null,null,null,null,null,null,null,null,null,null,null,null,null,null,null,null,null,{"$f":"B5","v":""},null,{"$f":"IF(AND(D5=\"A\",D7=\"A\"),0,IF(D5=\"A\",-D7,IF(D7=\"A\",D5,D5-D7)))","v":0},{"$f":"IF(F6=R4,IF(AND(H6=\"A\",H12=\"A\"),0,IF(OR(T4>0,D7=\"A\"),IF(H6=\"A\",-H12,IF(H12=\"A\",H6,H6-H12)),0)),0)","v":0},{"$f":"IF(J9=R4,IF(AND(L9=\"A\",L21=\"A\"),0,IF(OR(U4>0,H12=\"A\"),IF(L9=\"A\",-L21,IF(L21=\"A\",L9,L9-L21)),0)),0)","v":0},{"$f":"SUM(S4:V4)","v":0},null,{"$f":"'1'!AR4","v":""},{"$f":"'1'!AS4","v":""},null,{"$f":"IF(Inscrits!B2=0,\"\",Inscrits!B2)","v":"MOREIRA ALBERTO"},{"$f":"VLOOKUP(AB4,$Y$4:$Z$35,2,FALSE)","v":{"$error":"#N/A"}},{"$f":"VLOOKUP(AB4,$R$4:$W$35,6,FALSE)","v":{"$error":"#N/A"}},{"$f":"AC4+AD4","v":{"$error":"#N/A"}}]
["A",{"$f":"IF('1'!U6=0,\"\",'1'!U6)","v":""},{"$f":"IF('1'!V6=0,\"\",'1'!V6)","v":""},null,null,null,null,null,null,null,null,null,null,null,null,null,null,null,null,null,null,null,null,null,{"$f":"'1'!AR5","v":""},{"$f":"'1'!AS5","v":""},null,{"$f":"IF(Inscrits!B3=0,\"\",Inscrits!B3)","v":"JACOBERGER FABIEN"},{"$f":"VLOOKUP(AB5,$Y$4:$Z$35,2,FALSE)","v":{"$error":"#N/A"}},{"$f":"VLOOKUP(AB5,$R$4:$W$35,6,FALSE)","v":{"$error":"#N/A"}},{"$error":"#N/A"}]
[null,"Match 1 - Billard",null,null,null,{"$f":"IF(AND(D5=\"A\",D7=\"A\"),B5,IF(D5=\"A\",B7,IF(D7=\"A\",B5,IF(D5=D7,\"\",(IF(D5>D7,B5,B7))))))","v":""},{"$f":"IF(AND(D5=\"A\",D7=\"A\"),C5,IF(D5=\"A\",C7,IF(D7=\"A\",C5,IF(D5=D7,\"\",(IF(D5>D7,C5,C7))))))","v":""},null,null,null,null,null,null,null,null,null,null,{"$f":"B7","v":""},null,{"$f":"IF(AND(D5=\"A\",D7=\"A\"),0,IF(D7=\"A\",-D5,IF(D5=\"A\",D7,D7-D5)))","v":0},{"$f":"IF(F6=R6,IF(AND(H6=\"A\",H12=\"A\"),0,IF(OR(T6>0,D5=\"A\"),IF(H6=\"A\",-H12,IF(H12=\"A\",H6,H6-H12)),0)),0)","v":0},{"$f":"IF(J9=R6,IF(AND(L9=\"A\",L21=\"A\"),0,IF(OR(U6>0,H12=\"A\"),IF(L9=\"A\",-L21,IF(L21=\"A\",L9,L9-L21)),0)),0)","v":0},{"$f":"SUM(S6:V6)","v":0},null,{"$f":"'1'!AR6","v":""},{"$f":"'1'!AS6","v":""},null,{"$f":"IF(Inscrits!B4=0,\"\",Inscrits!B4)","v":"VIRGA JOEL"},{"$error":"#N/A"},{"$error":"#N/A"},{"$error":"#N/A"}]
["Z",{"$f":"IF('2'!B18=0,\"\",'2'!B18)","v":""},{"$f":"IF('2'!C18=0,\"\",'2'!C18)","v":""},null,null,null,null,null,null,null,null,null,null,null,null,null,null,null,null,null,null,null,null,null,{"$f":"'1'!AR7","v":""},{"$f":"'1'!AS7","v":""},null,{"$f":"IF(Inscrits!B5=0,\"\",Inscrits!B5)","v":"PRAL LAURENT"},{"$error":"#N/A"},{"$error":"#N/A"},{"$error":"#N/A"}]
[null,null,null,null,null,null,null,null,null,null,null,null,null,null,null,null,null,{"$f":"B11","v":""},null,{"$f":"IF(AND(D11=\"A\",D13=\"A\"),0,IF(D11=\"A\",-D13,IF(D13=\"A\",D11,D11-D13)))","v":0},{"$f":"IF(F12=R8,IF(AND(H6=\"A\",H12=\"A\"),0,IF(OR(T8>0,D13=\"A\"),IF(H12=\"A\",-H6,IF(H6=\"A\",H12,H12-H6)),0)),0)","v":0},{"$f":"IF(J9=R8,IF(AND(L9=\"A\",L21=\"A\"),0,IF(OR(U8>0,H6=\"A\"),IF(L9=\"A\",-L21,IF(L21=\"A\",L9,L9-L21)),0)),0)","v":0},0,null,{"$f":"'1'!AR14","v":""},{"$f":"'1'!AS14","v":""},null,{"$f":"IF(Inscrits!B6=0,\"\",Inscrits!B6)","v":"CUBIZOLLES ALAIN"},{"$error":"#N/A"},{"$error":"#N/A"},{"$error":"#N/A"}]
[null,null,null,null,null,"Match 5 - Billard",null,null,null,{"$f":"IF(AND(H6=\"A\",H12=\"A\"),F6,IF(H6=\"A\",F12,IF(H12=\"A\",F6,IF(H6=H12,\"\",(IF(H6>H12,F6,F12))))))","v":""},{"$f":"IF(AND(H6=\"A\",H12=\"A\"),G6,IF(H6=\"A\",G12,IF(H12=\"A\",G6,IF(H6=H12,\"\",(IF(H6>H12,G6,G12))))))","v":""},null,null,null,null,null,null,null,null,null,null,null,null,null,{"$f":"'1'!AR15","v":""},{"$f":"'1'!AS15","v":""},null,{"$f":"IF(Inscrits!B7=0,\"\",Inscrits!B7)","v":"VILA VERDE EZEQUIEL"},{"$error":"#N/A"},{"$error":"#N/A"},{"$error":"#N/A"}]
[null,null,null,null,null,null,null,null,null,null,null,null,null,null,null,null,null,{"$f":"B13","v":""},null,{"$f":"IF(AND(D11=\"A\",D13=\"A\"),0,IF(D13=\"A\",-D11,IF(D11=\"A\",D13,D13-D11)))","v":0},{"$f":"IF(F12=R10,IF(AND(H6=\"A\",H12=\"A\"),0,IF(OR(T10>0,D11=\"A\"),IF(H12=\"A\",-H6,IF(H6=\"A\",H12,H12-H6)),0)),0)","v":0},{"$f":"IF(J9=R10,IF(AND(L9=\"A\",L21=\"A\"),0,IF(OR(U10>0,H6=\"A\"),IF(L9=\"A\",-L21,IF(L21=\"A\",L9,L9-L21)),0)),0)","v":0},0,null,{"$f":"'1'!AR16","v":""},{"$f":"'1'!AS16","v":""},null,{"$f":"IF(Inscrits!B8=0,\"\",Inscrits!B8)","v":"VACOSSIN NICOLAS"},{"$error":"#N/A"},{"$error":"#N/A"},{"$error":"#N/A"}]
["B",{"$f":"IF('1'!U16=0,\"\",'1'!U16)","v":""},{"$f":"IF('1'!V16=0,\"\",'1'!V16)","v":""},null,null,null,null,null,null,null,null,null,null,null,null,null,null,null,null,null,null,null,null,null,{"$f":"'1'!AR17","v":""},{"$f":"'1'!AS17","v":""},null,{"$f":"IF(Inscrits!B9=0,\"\",Inscrits!B9)","v":"LESKOVSEK LAURENT"},{"$error":"#N/A"},{"$error":"#N/A"},{"$error":"#N/A"}]
[null,"Match 2 - Billard",null,null,null,{"$f":"IF(AND(D11=\"A\",D13=\"A\"),B11,IF(D11=\"A\",B13,IF(D13=\"A\",B11,IF(D11=D13,\"\",(IF(D11>D13,B11,B13))))))","v":""},{"$f":"IF(AND(D11=\"A\",D13=\"A\"),C11,IF(D11=\"A\",C13,IF(D13=\"A\",C11,IF(D11=D13,\"\",(IF(D11>D13,C11,C13))))))","v":""},null,null,null,null,null,null,null,null,null,null,null,null,null,null,null,null,null,{"$f":"'2'!AR4","v":""},{"$f":"'2'!AS4","v":""},null,{"$f":"IF(Inscrits!B10=0,\"\",Inscrits!B10)","v":"DEPUYDT EDDY"},{"$error":"#N/A"},{"$error":"#N/A"},{"$error":"#N/A"}]
["Y",{"$f":"IF('2'!B8=0,\"\",'2'!B8)","v":""},{"$f":"IF('2'!C8=0,\"\",'2'!C8)","v":""},null,null,null,null,null,null,null,null,null,null,null,null,null,null,{"$f":"B17","v":""},null,{"$f":"IF(AND(D17=\"A\",D19=\"A\"),0,IF(D17=\"A\",-D19,IF(D19=\"A\",D17,D17-D19)))","v":0},{"$f":"IF(F18=R13,IF(AND(H18=\"A\",H24=\"A\"),0,IF(OR(T13>0,D19=\"A\"),IF(H18=\"A\",-H24,IF(H24=\"A\",H18,H18-H24)),0)),0)","v":0},{"$f":"IF(J21=R13,IF(AND(L9=\"A\",L21=\"A\"),0,IF(OR(U13>0,H24=\"A\"),IF(L21=\"A\",-L9,IF(L9=\"A\",L21,L21-L9)),0)),0)","v":0},0,null,{"$f":"'2'!AR5","v":""},{"$f":"'2'!AS5","v":""},null,{"$f":"IF(Inscrits!B11=0,\"\",Inscrits!B11)","v":"LEPAGE PATRICK"},{"$error":"#N/A"},{"$error":"#N/A"},{"$error":"#N/A"}]
[null,null,null,null,null,null,null,null,null,null,null,null,null,null,null,null,null,null,null,null,null,null,null,null,{"$f":"'2'!AR6","v":""},{"$f":"'2'!AS6","v":""},null,{"$f":"IF(Inscrits!B12=0,\"\",Inscrits!B12)","v":"VIGUIER FRANCK"},{"$error":"#N/A"},{"$error":"#N/A"},{"$error":"#N/A"}]
[null,null,null,null,null,null,null,null,null,"Match 7 - Billard",null,null,null,{"$f":"IF(AND(L9=\"A\",L21=\"A\"),J9,IF(L9=\"A\",J21,IF(L21=\"A\",J9,IF(L9=L21,\"\",(IF(L9>L21,J9,J21))))))","v":""},{"$f":"IF(AND(L9=\"F\",L21=\"F\"),K9,IF(L9=\"F\",K21,IF(L21=\"F\",K9,IF(L9=L21,\"\",(IF(L9>L21,K9,K21))))))","v":""},null,null,{"$f":"B19","v":""},null,{"$f":"IF(AND(D17=\"A\",D19=\"A\"),0,IF(D19=\"A\",-D17,IF(D17=\"A\",D19,D19-D17)))","v":0},{"$f":"IF(F18=R15,IF(AND(H18=\"A\",H24=\"A\"),0,IF(OR(T15>0,D17=\"A\"),IF(H18=\"A\",-H24,IF(H24=\"A\",H18,H18-H24)),0)),0)","v":0},{"$f":"IF(J21=R15,IF(AND(L9=\"A\",L21=\"A\"),0,IF(OR(U15>0,H24=\"A\"),IF(L21=\"A\",-L9,IF(L9=\"A\",L21,L21-L9)),0)),0)","v":0},0,null,{"$f":"'2'!AR7","v":""},{"$f":"'2'!AS7","v":""},null,{"$f":"IF(Inscrits!B13=0,\"\",Inscrits!B13)","v":"MEUNIER PHILIPPE"},{"$error":"#N/A"},{"$error":"#N/A"},{"$error":"#N/A"}]
[null,null,null,null,null,null,null,null,null,null,null,null,null,null,null,null,null,null,null,null,null,null,null,null,{"$f":"'2'!AR14","v":""},{"$f":"'2'!AS14","v":""},null,{"$f":"IF(Inscrits!B14=0,\"\",Inscrits!B14)","v":"BAYON BRUNO"},{"$error":"#N/A"},{"$error":"#N/A"},{"$error":"#N/A"}]
["C",{"$f":"IF('2'!U6=0,\"\",'2'!U6)","v":""},{"$f":"IF('2'!V6=0,\"\",'2'!V6)","v":""},null,null,null,null,null,null,null,null,null,null,null,null,null,null,{"$f":"B23","v":""},null,{"$f":"IF(AND(D23=\"A\",D25=\"A\"),0,IF(D23=\"A\",-D25,IF(D25=\"A\",D23,D23-D25)))","v":0},{"$f":"IF(F24=R17,IF(AND(H18=\"A\",H24=\"A\"),0,IF(OR(T17>0,D25=\"A\"),IF(H24=\"A\",-H18,IF(H18=\"A\",H24,H24-H18)),0)),0)","v":0},{"$f":"IF(J21=R17,IF(AND(L9=\"A\",L21=\"A\"),0,IF(OR(U17>0,H18=\"A\"),IF(L21=\"A\",-L9,IF(L9=\"A\",L21,L21-L9)),0)),0)","v":0},0,null,{"$f":"'2'!AR15","v":""},{"$f":"'2'!AS15","v":""},null,{"$f":"IF(Inscrits!B15=0,\"\",Inscrits!B15)","v":"LEBRE PHILIPPE"},{"$error":"#N/A"},{"$error":"#N/A"},{"$error":"#N/A"}]
[null,"Match 3 - Billard",null,null,null,{"$f":"IF(AND(D17=\"A\",D19=\"A\"),B17,IF(D17=\"A\",B19,IF(D19=\"A\",B17,IF(D17=D19,\"\",(IF(D17>D19,B17,B19))))))","v":""},{"$f":"IF(AND(D17=\"A\",D19=\"A\"),C17,IF(D17=\"A\",C19,IF(D19=\"A\",C17,IF(D17=D19,\"\",(IF(D17>D19,C17,C19))))))","v":""},null,null,null,null,null,null,null,null,null,null,null,null,null,null,null,null,null,{"$f":"'2'!AR16","v":""},{"$f":"'2'!AS16","v":""},null,{"$f":"IF(Inscrits!B16=0,\"\",Inscrits!B16)","v":"GATTINO PATRICK"},{"$error":"#N/A"},{"$error":"#N/A"},{"$error":"#N/A"}]
["X",{"$f":"IF('1'!B18=0,\"\",'1'!B18)","v":""},{"$f":"IF('1'!C18=0,\"\",'1'!C18)","v":""},null,null,null,null,null,null,null,null,null,null,null,null,null,null,{"$f":"B25","v":""},null,{"$f":"IF(AND(D23=\"A\",D25=\"A\"),0,IF(D25=\"A\",-D23,IF(D23=\"A\",D25,D25-D23)))","v":0},{"$f":"IF(F24=R19,IF(AND(H18=\"A\",H24=\"A\"),0,IF(OR(T19>0,D23=\"A\"),IF(H24=\"A\",-H18,IF(H18=\"A\",H24,H24-H18)),0)),0)","v":0},{"$f":"IF(J21=R19,IF(AND(L9=\"A\",L21=\"A\"),0,IF(OR(U19>0,H18=\"A\"),IF(L21=\"A\",-L9,IF(L9=\"A\",L21,L21-L9)),0)),0)","v":0},0,null,{"$f":"'2'!AR17","v":""},{"$f":"'2'!AS17","v":""},null,{"$f":"IF(Inscrits!B17=0,\"\",Inscrits!B17)","v":"En Cours"},{"$error":"#N/A"},{"$error":"#N/A"},{"$error":"#N/A"}]
[null,null,null,null,null,null,null,null,null,null,null,null,null,null,null,null,null,{"$f":"'1'!AR14","v":""},null,null,null,null,0]
[null,null,null,null,null,"Match 6 - Billard",null,null,null,{"$f":"IF(AND(H18=\"A\",H24=\"A\"),F18,IF(H18=\"A\",F24,IF(H24=\"A\",F18,IF(H18=H24,\"\",(IF(H18>H24,F18,F24))))))","v":""},{"$f":"IF(AND(H18=\"A\",H24=\"A\"),G18,IF(H18=\"A\",G24,IF(H24=\"A\",G18,IF(H18=H24,\"\",(IF(H18>H24,G18,G24))))))","v":""},null,null,null,null,null,null,{"$f":"'1'!AR15","v":""},null,null,null,null,0]
[null,null,null,null,null,null,null,null,null,null,null,null,null,null,null,null,null,{"$f":"'1'!AR16","v":""},null,null,null,null,0]
["D",{"$f":"IF('2'!U16=0,\"\",'2'!U16)","v":""},{"$f":"IF('2'!V16=0,\"\",'2'!V16)","v":""},null,null,null,null,null,null,null,null,null,null,null,null,null,null,{"$f":"'1'!AR17","v":""},null,null,null,null,0]
[null,"Match 4 - Billard",null,null,null,{"$f":"IF(AND(D23=\"A\",D25=\"A\"),B23,IF(D23=\"A\",B25,IF(D25=\"A\",B23,IF(D23=D25,\"\",(IF(D23>D25,B23,B25))))))","v":""},{"$f":"IF(AND(D23=\"A\",D25=\"A\"),C23,IF(D23=\"A\",C25,IF(D25=\"A\",C23,IF(D23=D25,\"\",(IF(D23>D25,C23,C25))))))","v":""},null,null,null,null,null,null,null,null,null,null,{"$f":"'2'!AR14","v":""},null,null,null,null,0]
["W",{"$f":"IF('1'!B8=0,\"\",'1'!B8)","v":""},{"$f":"IF('1'!C8=0,\"\",'1'!C8)","v":""},null,null,null,null,null,null,null,null,null,null,null,null,null,null,{"$f":"'2'!AR15","v":""},null,null,null,null,0]
[null,null,null,null,null,null,null,null,null,null,null,null,null,null,null,null,null,{"$f":"'2'!AR16","v":""},null,null,null,null,0]
[null,null,null,null,null,null,null,null,null,null,null,null,null,null,null,null,null,{"$f":"'2'!AR17","v":""},null,null,null,null,0]

{"sheet":"Classement","index":6,"n_rows":17,"n_cols":13,"rows_kept":17,"cut":false,"hidden":false,"merged":[]}
[null,null,"Formules Initiales","Nom & Prénom","Place","Points","GA","CF","RF","Club","Ville","Licence","Division"]
[null,null,1,{"$f":"Final!N15","v":""},null,{"$f":"IF(ISNA(IF(LEFT(Division,2)=\"R1\",VLOOKUP(E2,Points!$A$2:$D$20,2,FALSE),IF(LEFT(Division,2)=\"R2\",VLOOKUP(E2,Points!$A$2:$D$20,3,FALSE),IF(LEFT(Division,2)=\"R3\",VLOOKUP(E2,Points!$A$2:$D$20,4,FALSE),\"DIV ???\")))),0,IF(LEFT(Division,2)=\"R1\",VLOOKUP(E2,Points!$A$2:$D$20,2,FALSE),IF(LEFT(Division,2)=\"R2\",VLOOKUP(E2,Points!$A$2:$D$20,3,FALSE),IF(LEFT(Division,2)=\"R3\",VLOOKUP(E2,Points!$A$2:$D$20,4,FALSE),\"DIV ???\"))))","v":0},{"$f":"IF(ISERROR(VLOOKUP(D2,Final!$AB$4:$AE$35,4,FALSE)),\"\",VLOOKUP(D2,Final!$AB$4:$AE$35,4,FALSE))","v":""},null,null,{"$f":"IF(ISNA(VLOOKUP(D2,Inscrits!B:F,3,FALSE)),\"\",VLOOKUP(D2,Inscrits!B:F,3,FALSE))","v":""},{"$f":"IF(ISNA(VLOOKUP(D2,Inscrits!B:F,4,FALSE)),\"\",VLOOKUP(D2,Inscrits!B:F,4,FALSE))","v":""},{"$f":"IF(ISNA(VLOOKUP(D2,Inscrits!B:F,5,FALSE)),\"\",VLOOKUP(D2,Inscrits!B:F,5,FALSE))","v":""},{"$f":"IF(NB_JOUEURS_UP>0,IF(LEN(Division)=2,\"R\"&RIGHT(Division,1)-1&\"\",IF(LEN(Division)=3,IF(RIGHT(LEFT(Division,2),1)=\"2\",\"R1\",IF(Nb_R2=1,\"R2\",\"R\"&RIGHT(LEFT(Division,2),1)-1&\"\"&RIGHT(Division,1)&\"\")),IF(LEN(Division)=4,IF(RIGHT(LEFT(Division,2),1)=\"2\",\"R1\",\"R\"&RIGHT(LEFT(Division,2),1)-1&\"\"&RIGHT(LEFT(Division,3),1)&\"\"),\"?\"))),Division)","v":"R1"}]
[null,null,2,{"$f":"IF(Final!L21=\"A\",Final!J21,IF(Final!L9=\"A\",Final!J9,IF(Final!L9<Final!L21,Final!J9,Final!J21)))","v":""},null,{"$f":"IF(ISNA(IF(LEFT(Division,2)=\"R1\",VLOOKUP(E3,Points!$A$2:$D$20,2,FALSE),IF(LEFT(Division,2)=\"R2\",VLOOKUP(E3,Points!$A$2:$D$20,3,FALSE),IF(LEFT(Division,2)=\"R3\",VLOOKUP(E3,Points!$A$2:$D$20,4,FALSE),\"DIV ???\")))),0,IF(LEFT(Division,2)=\"R1\",VLOOKUP(E3,Points!$A$2:$D$20,2,FALSE),IF(LEFT(Division,2)=\"R2\",VLOOKUP(E3,Points!$A$2:$D$20,3,FALSE),IF(LEFT(Division,2)=\"R3\",VLOOKUP(E3,Points!$A$2:$D$20,4,FALSE),\"DIV ???\"))))","v":0},{"$f":"IF(ISERROR(VLOOKUP(D3,Final!$AB$4:$AE$35,4,FALSE)),\"\",VLOOKUP(D3,Final!$AB$4:$AE$35,4,FALSE))","v":""},null,null,{"$f":"IF(ISNA(VLOOKUP(D3,Inscrits!B:F,3,FALSE)),\"\",VLOOKUP(D3,Inscrits!B:F,3,FALSE))","v":""},{"$f":"IF(ISNA(VLOOKUP(D3,Inscrits!B:F,4,FALSE)),\"\",VLOOKUP(D3,Inscrits!B:F,4,FALSE))","v":""},{"$f":"IF(ISNA(VLOOKUP(D3,Inscrits!B:F,5,FALSE)),\"\",VLOOKUP(D3,Inscrits!B:F,5,FALSE))","v":""},{"$f":"IF(NB_JOUEURS_UP>1,IF(LEN(Division)=2,\"R\"&RIGHT(Division,1)-1&\"\",IF(LEN(Division)=3,IF(RIGHT(LEFT(Division,2),1)=\"2\",\"R1\",IF(Nb_R2=1,\"R2\",\"R\"&RIGHT(LEFT(Division,2),1)-1&\"\"&RIGHT(Division,1)&\"\")),IF(LEN(Division)=4,IF(RIGHT(LEFT(Division,2),1)=\"2\",\"R1\",\"R\"&RIGHT(LEFT(Division,2),1)-1&\"\"&RIGHT(LEFT(Division,3),1)&\"\"),\"?\"))),Division)","v":"R1"}]
[null,null,4,{"$f":"IF(Final!H24=\"A\",Final!F24,IF(Final!H18=\"A\",Final!F18,IF(Final!H18<Final!H24,Final!F18,Final!F24)))","v":""},null,{"$f":"IF(ISNA(IF(LEFT(Division,2)=\"R1\",VLOOKUP(E4,Points!$A$2:$D$20,2,FALSE),IF(LEFT(Division,2)=\"R2\",VLOOKUP(E4,Points!$A$2:$D$20,3,FALSE),IF(LEFT(Division,2)=\"R3\",VLOOKUP(E4,Points!$A$2:$D$20,4,FALSE),\"DIV ???\")))),0,IF(LEFT(Division,2)=\"R1\",VLOOKUP(E4,Points!$A$2:$D$20,2,FALSE),IF(LEFT(Division,2)=\"R2\",VLOOKUP(E4,Points!$A$2:$D$20,3,FALSE),IF(LEFT(Division,2)=\"R3\",VLOOKUP(E4,Points!$A$2:$D$20,4,FALSE),\"DIV ???\"))))","v":0},{"$f":"IF(ISERROR(VLOOKUP(D4,Final!$AB$4:$AE$35,4,FALSE)),\"\",VLOOKUP(D4,Final!$AB$4:$AE$35,4,FALSE))","v":""},null,null,{"$f":"IF(ISNA(VLOOKUP(D4,Inscrits!B:F,3,FALSE)),\"\",VLOOKUP(D4,Inscrits!B:F,3,FALSE))","v":""},{"$f":"IF(ISNA(VLOOKUP(D4,Inscrits!B:F,4,FALSE)),\"\",VLOOKUP(D4,Inscrits!B:F,4,FALSE))","v":""},{"$f":"IF(ISNA(VLOOKUP(D4,Inscrits!B:F,5,FALSE)),\"\",VLOOKUP(D4,Inscrits!B:F,5,FALSE))","v":""},{"$f":"IF(NB_JOUEURS_UP>2,IF(LEN(Division)=2,\"R\"&RIGHT(Division,1)-1&\"\",IF(LEN(Division)=3,IF(RIGHT(LEFT(Division,2),1)=\"2\",\"R1\",IF(Nb_R2=1,\"R2\",\"R\"&RIGHT(LEFT(Division,2),1)-1&\"\"&RIGHT(Division,1)&\"\")),IF(LEN(Division)=4,IF(RIGHT(LEFT(Division,2),1)=\"2\",\"R1\",\"R\"&RIGHT(LEFT(Division,2),1)-1&\"\"&RIGHT(LEFT(Division,3),1)&\"\"),\"?\"))),Division)","v":"R1"}]
[null,null,3,{"$f":"IF(Final!H12=\"A\",Final!F12,IF(Final!H6=\"A\",Final!F6,IF(Final!H6<Final!H12,Final!F6,Final!F12)))","v":""},null,{"$f":"IF(ISNA(IF(LEFT(Division,2)=\"R1\",VLOOKUP(E5,Points!$A$2:$D$20,2,FALSE),IF(LEFT(Division,2)=\"R2\",VLOOKUP(E5,Points!$A$2:$D$20,3,FALSE),IF(LEFT(Division,2)=\"R3\",VLOOKUP(E5,Points!$A$2:$D$20,4,FALSE),\"DIV ???\")))),0,IF(LEFT(Division,2)=\"R1\",VLOOKUP(E5,Points!$A$2:$D$20,2,FALSE),IF(LEFT(Division,2)=\"R2\",VLOOKUP(E5,Points!$A$2:$D$20,3,FALSE),IF(LEFT(Division,2)=\"R3\",VLOOKUP(E5,Points!$A$2:$D$20,4,FALSE),\"DIV ???\"))))","v":0},{"$f":"IF(ISERROR(VLOOKUP(D5,Final!$AB$4:$AE$35,4,FALSE)),\"\",VLOOKUP(D5,Final!$AB$4:$AE$35,4,FALSE))","v":""},null,null,{"$f":"IF(ISNA(VLOOKUP(D5,Inscrits!B:F,3,FALSE)),\"\",VLOOKUP(D5,Inscrits!B:F,3,FALSE))","v":""},{"$f":"IF(ISNA(VLOOKUP(D5,Inscrits!B:F,4,FALSE)),\"\",VLOOKUP(D5,Inscrits!B:F,4,FALSE))","v":""},{"$f":"IF(ISNA(VLOOKUP(D5,Inscrits!B:F,5,FALSE)),\"\",VLOOKUP(D5,Inscrits!B:F,5,FALSE))","v":""},{"$f":"IF(NB_JOUEURS_UP>3,IF(LEN(Division)=2,\"R\"&RIGHT(Division,1)-1&\"\",IF(LEN(Division)=3,IF(RIGHT(LEFT(Division,2),1)=\"2\",\"R1\",IF(Nb_R2=1,\"R2\",\"R\"&RIGHT(LEFT(Division,2),1)-1&\"\"&RIGHT(Division,1)&\"\")),IF(LEN(Division)=4,IF(RIGHT(LEFT(Division,2),1)=\"2\",\"R1\",\"R\"&RIGHT(LEFT(Division,2),1)-1&\"\"&RIGHT(LEFT(Division,3),1)&\"\"),\"?\"))),Division)","v":"R1"}]
[null,null,5,{"$f":"IF(Final!D7=\"A\",Final!B7,IF(Final!D5=\"A\",Final!B5,IF(Final!D5<Final!D7,Final!B5,Final!B7)))","v":""},null,{"$f":"IF(ISNA(IF(LEFT(Division,2)=\"R1\",VLOOKUP(E6,Points!$A$2:$D$20,2,FALSE),IF(LEFT(Division,2)=\"R2\",VLOOKUP(E6,Points!$A$2:$D$20,3,FALSE),IF(LEFT(Division,2)=\"R3\",VLOOKUP(E6,Points!$A$2:$D$20,4,FALSE),\"DIV ???\")))),0,IF(LEFT(Division,2)=\"R1\",VLOOKUP(E6,Points!$A$2:$D$20,2,FALSE),IF(LEFT(Division,2)=\"R2\",VLOOKUP(E6,Points!$A$2:$D$20,3,FALSE),IF(LEFT(Division,2)=\"R3\",VLOOKUP(E6,Points!$A$2:$D$20,4,FALSE),\"DIV ???\"))))","v":0},{"$f":"IF(ISERROR(VLOOKUP(D6,Final!$AB$4:$AE$35,4,FALSE)),\"\",VLOOKUP(D6,Final!$AB$4:$AE$35,4,FALSE))","v":""},null,null,{"$f":"IF(ISNA(VLOOKUP(D6,Inscrits!B:F,3,FALSE)),\"\",VLOOKUP(D6,Inscrits!B:F,3,FALSE))","v":""},{"$f":"IF(ISNA(VLOOKUP(D6,Inscrits!B:F,4,FALSE)),\"\",VLOOKUP(D6,Inscrits!B:F,4,FALSE))","v":""},{"$f":"IF(ISNA(VLOOKUP(D6,Inscrits!B:F,5,FALSE)),\"\",VLOOKUP(D6,Inscrits!B:F,5,FALSE))","v":""},{"$f":"IF(NB_JOUEURS_UP>4,IF(LEN(Division)=2,\"R\"&RIGHT(Division,1)-1&\"\",IF(LEN(Division)=3,IF(RIGHT(LEFT(Division,2),1)=\"2\",\"R1\",IF(Nb_R2=1,\"R2\",\"R\"&RIGHT(LEFT(Division,2),1)-1&\"\"&RIGHT(Division,1)&\"\")),IF(LEN(Division)=4,IF(RIGHT(LEFT(Division,2),1)=\"2\",\"R1\",\"R\"&RIGHT(LEFT(Division,2),1)-1&\"\"&RIGHT(LEFT(Division,3),1)&\"\"),\"?\"))),Division)","v":"R1"}]
[null,null,6,{"$f":"IF(Final!D13=\"A\",Final!B13,IF(Final!D11=\"A\",Final!B11,IF(Final!D11<Final!D13,Final!B11,Final!B13)))","v":""},null,{"$f":"IF(ISNA(IF(LEFT(Division,2)=\"R1\",VLOOKUP(E7,Points!$A$2:$D$20,2,FALSE),IF(LEFT(Division,2)=\"R2\",VLOOKUP(E7,Points!$A$2:$D$20,3,FALSE),IF(LEFT(Division,2)=\"R3\",VLOOKUP(E7,Points!$A$2:$D$20,4,FALSE),\"DIV ???\")))),0,IF(LEFT(Division,2)=\"R1\",VLOOKUP(E7,Points!$A$2:$D$20,2,FALSE),IF(LEFT(Division,2)=\"R2\",VLOOKUP(E7,Points!$A$2:$D$20,3,FALSE),IF(LEFT(Division,2)=\"R3\",VLOOKUP(E7,Points!$A$2:$D$20,4,FALSE),\"DIV ???\"))))","v":0},{"$f":"IF(ISERROR(VLOOKUP(D7,Final!$AB$4:$AE$35,4,FALSE)),\"\",VLOOKUP(D7,Final!$AB$4:$AE$35,4,FALSE))","v":""},null,null,{"$f":"IF(ISNA(VLOOKUP(D7,Inscrits!B:F,3,FALSE)),\"\",VLOOKUP(D7,Inscrits!B:F,3,FALSE))","v":""},{"$f":"IF(ISNA(VLOOKUP(D7,Inscrits!B:F,4,FALSE)),\"\",VLOOKUP(D7,Inscrits!B:F,4,FALSE))","v":""},{"$f":"IF(ISNA(VLOOKUP(D7,Inscrits!B:F,5,FALSE)),\"\",VLOOKUP(D7,Inscrits!B:F,5,FALSE))","v":""},{"$f":"IF(NB_JOUEURS_UP>5,IF(LEN(Division)=2,\"R\"&RIGHT(Division,1)-1&\"\",IF(LEN(Division)=3,IF(RIGHT(LEFT(Division,2),1)=\"2\",\"R1\",IF(Nb_R2=1,\"R2\",\"R\"&RIGHT(LEFT(Division,2),1)-1&\"\"&RIGHT(Division,1)&\"\")),IF(LEN(Division)=4,IF(RIGHT(LEFT(Division,2),1)=\"2\",\"R1\",\"R\"&RIGHT(LEFT(Division,2),1)-1&\"\"&RIGHT(LEFT(Division,3),1)&\"\"),\"?\"))),Division)","v":"R1"}]
[null,null,8,{"$f":"IF(Final!D25=\"A\",Final!B25,IF(Final!D23=\"A\",Final!B23,IF(Final!D23<Final!D25,Final!B23,Final!B25)))","v":""},null,{"$f":"IF(ISNA(IF(LEFT(Division,2)=\"R1\",VLOOKUP(E8,Points!$A$2:$D$20,2,FALSE),IF(LEFT(Division,2)=\"R2\",VLOOKUP(E8,Points!$A$2:$D$20,3,FALSE),IF(LEFT(Division,2)=\"R3\",VLOOKUP(E8,Points!$A$2:$D$20,4,FALSE),\"DIV ???\")))),0,IF(LEFT(Division,2)=\"R1\",VLOOKUP(E8,Points!$A$2:$D$20,2,FALSE),IF(LEFT(Division,2)=\"R2\",VLOOKUP(E8,Points!$A$2:$D$20,3,FALSE),IF(LEFT(Division,2)=\"R3\",VLOOKUP(E8,Points!$A$2:$D$20,4,FALSE),\"DIV ???\"))))","v":0},{"$f":"IF(ISERROR(VLOOKUP(D8,Final!$AB$4:$AE$35,4,FALSE)),\"\",VLOOKUP(D8,Final!$AB$4:$AE$35,4,FALSE))","v":""},null,null,{"$f":"IF(ISNA(VLOOKUP(D8,Inscrits!B:F,3,FALSE)),\"\",VLOOKUP(D8,Inscrits!B:F,3,FALSE))","v":""},{"$f":"IF(ISNA(VLOOKUP(D8,Inscrits!B:F,4,FALSE)),\"\",VLOOKUP(D8,Inscrits!B:F,4,FALSE))","v":""},{"$f":"IF(ISNA(VLOOKUP(D8,Inscrits!B:F,5,FALSE)),\"\",VLOOKUP(D8,Inscrits!B:F,5,FALSE))","v":""},{"$f":"IF(NB_JOUEURS_UP>6,IF(LEN(Division)=2,\"R\"&RIGHT(Division,1)-1&\"\",IF(LEN(Division)=3,IF(RIGHT(LEFT(Division,2),1)=\"2\",\"R1\",IF(Nb_R2=1,\"R2\",\"R\"&RIGHT(LEFT(Division,2),1)-1&\"\"&RIGHT(Division,1)&\"\")),IF(LEN(Division)=4,IF(RIGHT(LEFT(Division,2),1)=\"2\",\"R1\",\"R\"&RIGHT(LEFT(Division,2),1)-1&\"\"&RIGHT(LEFT(Division,3),1)&\"\"),\"?\"))),Division)","v":"R1"}]
[null,null,7,{"$f":"IF(Final!D19=\"A\",Final!B19,IF(Final!D17=\"A\",Final!B17,IF(Final!D17<Final!D19,Final!B17,Final!B19)))","v":""},null,{"$f":"IF(ISNA(IF(LEFT(Division,2)=\"R1\",VLOOKUP(E9,Points!$A$2:$D$20,2,FALSE),IF(LEFT(Division,2)=\"R2\",VLOOKUP(E9,Points!$A$2:$D$20,3,FALSE),IF(LEFT(Division,2)=\"R3\",VLOOKUP(E9,Points!$A$2:$D$20,4,FALSE),\"DIV ???\")))),0,IF(LEFT(Division,2)=\"R1\",VLOOKUP(E9,Points!$A$2:$D$20,2,FALSE),IF(LEFT(Division,2)=\"R2\",VLOOKUP(E9,Points!$A$2:$D$20,3,FALSE),IF(LEFT(Division,2)=\"R3\",VLOOKUP(E9,Points!$A$2:$D$20,4,FALSE),\"DIV ???\"))))","v":0},{"$f":"IF(ISERROR(VLOOKUP(D9,Final!$AB$4:$AE$35,4,FALSE)),\"\",VLOOKUP(D9,Final!$AB$4:$AE$35,4,FALSE))","v":""},null,null,{"$f":"IF(ISNA(VLOOKUP(D9,Inscrits!B:F,3,FALSE)),\"\",VLOOKUP(D9,Inscrits!B:F,3,FALSE))","v":""},{"$f":"IF(ISNA(VLOOKUP(D9,Inscrits!B:F,4,FALSE)),\"\",VLOOKUP(D9,Inscrits!B:F,4,FALSE))","v":""},{"$f":"IF(ISNA(VLOOKUP(D9,Inscrits!B:F,5,FALSE)),\"\",VLOOKUP(D9,Inscrits!B:F,5,FALSE))","v":""},{"$f":"IF(NB_JOUEURS_UP>7,IF(LEN(Division)=2,\"R\"&RIGHT(Division,1)-1&\"\",IF(LEN(Division)=3,IF(RIGHT(LEFT(Division,2),1)=\"2\",\"R1\",IF(Nb_R2=1,\"R2\",\"R\"&RIGHT(LEFT(Division,2),1)-1&\"\"&RIGHT(Division,1)&\"\")),IF(LEN(Division)=4,IF(RIGHT(LEFT(Division,2),1)=\"2\",\"R1\",\"R\"&RIGHT(LEFT(Division,2),1)-1&\"\"&RIGHT(LEFT(Division,3),1)&\"\"),\"?\"))),Division)","v":"R1"}]
[null,null,9,{"$f":"'1'!AR14","v":""},null,{"$f":"IF(ISNA(IF(LEFT(Division,2)=\"R1\",VLOOKUP(E10,Points!$A$2:$D$20,2,FALSE),IF(LEFT(Division,2)=\"R2\",VLOOKUP(E10,Points!$A$2:$D$20,3,FALSE),IF(LEFT(Division,2)=\"R3\",VLOOKUP(E10,Points!$A$2:$D$20,4,FALSE),\"DIV ???\")))),0,IF(LEFT(Division,2)=\"R1\",VLOOKUP(E10,Points!$A$2:$D$20,2,FALSE),IF(LEFT(Division,2)=\"R2\",VLOOKUP(E10,Points!$A$2:$D$20,3,FALSE),IF(LEFT(Division,2)=\"R3\",VLOOKUP(E10,Points!$A$2:$D$20,4,FALSE),\"DIV ???\"))))","v":0},{"$f":"IF(ISERROR(VLOOKUP(D10,Final!$AB$4:$AE$35,4,FALSE)),\"\",VLOOKUP(D10,Final!$AB$4:$AE$35,4,FALSE))","v":""},null,null,{"$f":"IF(ISNA(VLOOKUP(D10,Inscrits!B:F,3,FALSE)),\"\",VLOOKUP(D10,Inscrits!B:F,3,FALSE))","v":""},{"$f":"IF(ISNA(VLOOKUP(D10,Inscrits!B:F,4,FALSE)),\"\",VLOOKUP(D10,Inscrits!B:F,4,FALSE))","v":""},{"$f":"IF(ISNA(VLOOKUP(D10,Inscrits!B:F,5,FALSE)),\"\",VLOOKUP(D10,Inscrits!B:F,5,FALSE))","v":""},{"$f":"Division","v":"R1"}]
[null,null,11,{"$f":"'2'!AR14","v":""},null,{"$f":"IF(ISNA(IF(LEFT(Division,2)=\"R1\",VLOOKUP(E11,Points!$A$2:$D$20,2,FALSE),IF(LEFT(Division,2)=\"R2\",VLOOKUP(E11,Points!$A$2:$D$20,3,FALSE),IF(LEFT(Division,2)=\"R3\",VLOOKUP(E11,Points!$A$2:$D$20,4,FALSE),\"DIV ???\")))),0,IF(LEFT(Division,2)=\"R1\",VLOOKUP(E11,Points!$A$2:$D$20,2,FALSE),IF(LEFT(Division,2)=\"R2\",VLOOKUP(E11,Points!$A$2:$D$20,3,FALSE),IF(LEFT(Division,2)=\"R3\",VLOOKUP(E11,Points!$A$2:$D$20,4,FALSE),\"DIV ???\"))))","v":0},{"$f":"IF(ISERROR(VLOOKUP(D11,Final!$AB$4:$AE$35,4,FALSE)),\"\",VLOOKUP(D11,Final!$AB$4:$AE$35,4,FALSE))","v":""},null,null,{"$f":"IF(ISNA(VLOOKUP(D11,Inscrits!B:F,3,FALSE)),\"\",VLOOKUP(D11,Inscrits!B:F,3,FALSE))","v":""},{"$f":"IF(ISNA(VLOOKUP(D11,Inscrits!B:F,4,FALSE)),\"\",VLOOKUP(D11,Inscrits!B:F,4,FALSE))","v":""},{"$f":"IF(ISNA(VLOOKUP(D11,Inscrits!B:F,5,FALSE)),\"\",VLOOKUP(D11,Inscrits!B:F,5,FALSE))","v":""},{"$f":"Division","v":"R1"}]
[null,null,12,{"$f":"'2'!AR15","v":""},null,{"$f":"IF(ISNA(IF(LEFT(Division,2)=\"R1\",VLOOKUP(E12,Points!$A$2:$D$20,2,FALSE),IF(LEFT(Division,2)=\"R2\",VLOOKUP(E12,Points!$A$2:$D$20,3,FALSE),IF(LEFT(Division,2)=\"R3\",VLOOKUP(E12,Points!$A$2:$D$20,4,FALSE),\"DIV ???\")))),0,IF(LEFT(Division,2)=\"R1\",VLOOKUP(E12,Points!$A$2:$D$20,2,FALSE),IF(LEFT(Division,2)=\"R2\",VLOOKUP(E12,Points!$A$2:$D$20,3,FALSE),IF(LEFT(Division,2)=\"R3\",VLOOKUP(E12,Points!$A$2:$D$20,4,FALSE),\"DIV ???\"))))","v":0},{"$f":"IF(ISERROR(VLOOKUP(D12,Final!$AB$4:$AE$35,4,FALSE)),\"\",VLOOKUP(D12,Final!$AB$4:$AE$35,4,FALSE))","v":""},null,null,{"$f":"IF(ISNA(VLOOKUP(D12,Inscrits!B:F,3,FALSE)),\"\",VLOOKUP(D12,Inscrits!B:F,3,FALSE))","v":""},{"$f":"IF(ISNA(VLOOKUP(D12,Inscrits!B:F,4,FALSE)),\"\",VLOOKUP(D12,Inscrits!B:F,4,FALSE))","v":""},{"$f":"IF(ISNA(VLOOKUP(D12,Inscrits!B:F,5,FALSE)),\"\",VLOOKUP(D12,Inscrits!B:F,5,FALSE))","v":""},{"$f":"Division","v":"R1"}]
[null,null,10,{"$f":"'1'!AR15","v":""},null,{"$f":"IF(ISNA(IF(LEFT(Division,2)=\"R1\",VLOOKUP(E13,Points!$A$2:$D$20,2,FALSE),IF(LEFT(Division,2)=\"R2\",VLOOKUP(E13,Points!$A$2:$D$20,3,FALSE),IF(LEFT(Division,2)=\"R3\",VLOOKUP(E13,Points!$A$2:$D$20,4,FALSE),\"DIV ???\")))),0,IF(LEFT(Division,2)=\"R1\",VLOOKUP(E13,Points!$A$2:$D$20,2,FALSE),IF(LEFT(Division,2)=\"R2\",VLOOKUP(E13,Points!$A$2:$D$20,3,FALSE),IF(LEFT(Division,2)=\"R3\",VLOOKUP(E13,Points!$A$2:$D$20,4,FALSE),\"DIV ???\"))))","v":0},{"$f":"IF(ISERROR(VLOOKUP(D13,Final!$AB$4:$AE$35,4,FALSE)),\"\",VLOOKUP(D13,Final!$AB$4:$AE$35,4,FALSE))","v":""},null,null,{"$f":"IF(ISNA(VLOOKUP(D13,Inscrits!B:F,3,FALSE)),\"\",VLOOKUP(D13,Inscrits!B:F,3,FALSE))","v":""},{"$f":"IF(ISNA(VLOOKUP(D13,Inscrits!B:F,4,FALSE)),\"\",VLOOKUP(D13,Inscrits!B:F,4,FALSE))","v":""},{"$f":"IF(ISNA(VLOOKUP(D13,Inscrits!B:F,5,FALSE)),\"\",VLOOKUP(D13,Inscrits!B:F,5,FALSE))","v":""},{"$f":"Division","v":"R1"}]
[null,null,14,{"$f":"'1'!AR17","v":""},null,{"$f":"IF(ISNA(IF(LEFT(Division,2)=\"R1\",VLOOKUP(E14,Points!$A$2:$D$20,2,FALSE),IF(LEFT(Division,2)=\"R2\",VLOOKUP(E14,Points!$A$2:$D$20,3,FALSE),IF(LEFT(Division,2)=\"R3\",VLOOKUP(E14,Points!$A$2:$D$20,4,FALSE),\"DIV ???\")))),0,IF(LEFT(Division,2)=\"R1\",VLOOKUP(E14,Points!$A$2:$D$20,2,FALSE),IF(LEFT(Division,2)=\"R2\",VLOOKUP(E14,Points!$A$2:$D$20,3,FALSE),IF(LEFT(Division,2)=\"R3\",VLOOKUP(E14,Points!$A$2:$D$20,4,FALSE),\"DIV ???\"))))","v":0},{"$f":"IF(ISERROR(VLOOKUP(D14,Final!$AB$4:$AE$35,4,FALSE)),\"\",VLOOKUP(D14,Final!$AB$4:$AE$35,4,FALSE))","v":""},null,null,{"$f":"IF(ISNA(VLOOKUP(D14,Inscrits!B:F,3,FALSE)),\"\",VLOOKUP(D14,Inscrits!B:F,3,FALSE))","v":""},{"$f":"IF(ISNA(VLOOKUP(D14,Inscrits!B:F,4,FALSE)),\"\",VLOOKUP(D14,Inscrits!B:F,4,FALSE))","v":""},{"$f":"IF(ISNA(VLOOKUP(D14,Inscrits!B:F,5,FALSE)),\"\",VLOOKUP(D14,Inscrits!B:F,5,FALSE))","v":""},{"$f":"IF(NB_JOUEURS_DOWN>3,\"Relégué(e)\",Division)","v":"R1"}]
[null,null,15,{"$f":"'2'!AR16","v":""},null,{"$f":"IF(ISNA(IF(LEFT(Division,2)=\"R1\",VLOOKUP(E15,Points!$A$2:$D$20,2,FALSE),IF(LEFT(Division,2)=\"R2\",VLOOKUP(E15,Points!$A$2:$D$20,3,FALSE),IF(LEFT(Division,2)=\"R3\",VLOOKUP(E15,Points!$A$2:$D$20,4,FALSE),\"DIV ???\")))),0,IF(LEFT(Division,2)=\"R1\",VLOOKUP(E15,Points!$A$2:$D$20,2,FALSE),IF(LEFT(Division,2)=\"R2\",VLOOKUP(E15,Points!$A$2:$D$20,3,FALSE),IF(LEFT(Division,2)=\"R3\",VLOOKUP(E15,Points!$A$2:$D$20,4,FALSE),\"DIV ???\"))))","v":0},{"$f":"IF(ISERROR(VLOOKUP(D15,Final!$AB$4:$AE$35,4,FALSE)),\"\",VLOOKUP(D15,Final!$AB$4:$AE$35,4,FALSE))","v":""},null,null,{"$f":"IF(ISNA(VLOOKUP(D15,Inscrits!B:F,3,FALSE)),\"\",VLOOKUP(D15,Inscrits!B:F,3,FALSE))","v":""},{"$f":"IF(ISNA(VLOOKUP(D15,Inscrits!B:F,4,FALSE)),\"\",VLOOKUP(D15,Inscrits!B:F,4,FALSE))","v":""},{"$f":"IF(ISNA(VLOOKUP(D15,Inscrits!B:F,5,FALSE)),\"\",VLOOKUP(D15,Inscrits!B:F,5,FALSE))","v":""},{"$f":"IF(NB_JOUEURS_DOWN>2,\"Relégué(e)\",Division)","v":"R1"}]
[null,null,13,{"$f":"'1'!AR16","v":""},null,{"$f":"IF(ISNA(IF(LEFT(Division,2)=\"R1\",VLOOKUP(E16,Points!$A$2:$D$20,2,FALSE),IF(LEFT(Division,2)=\"R2\",VLOOKUP(E16,Points!$A$2:$D$20,3,FALSE),IF(LEFT(Division,2)=\"R3\",VLOOKUP(E16,Points!$A$2:$D$20,4,FALSE),\"DIV ???\")))),0,IF(LEFT(Division,2)=\"R1\",VLOOKUP(E16,Points!$A$2:$D$20,2,FALSE),IF(LEFT(Division,2)=\"R2\",VLOOKUP(E16,Points!$A$2:$D$20,3,FALSE),IF(LEFT(Division,2)=\"R3\",VLOOKUP(E16,Points!$A$2:$D$20,4,FALSE),\"DIV ???\"))))","v":0},{"$f":"IF(ISERROR(VLOOKUP(D16,Final!$AB$4:$AE$35,4,FALSE)),\"\",VLOOKUP(D16,Final!$AB$4:$AE$35,4,FALSE))","v":""},null,null,{"$f":"IF(ISNA(VLOOKUP(D16,Inscrits!B:F,3,FALSE)),\"\",VLOOKUP(D16,Inscrits!B:F,3,FALSE))","v":""},{"$f":"IF(ISNA(VLOOKUP(D16,Inscrits!B:F,4,FALSE)),\"\",VLOOKUP(D16,Inscrits!B:F,4,FALSE))","v":""},{"$f":"IF(ISNA(VLOOKUP(D16,Inscrits!B:F,5,FALSE)),\"\",VLOOKUP(D16,Inscrits!B:F,5,FALSE))","v":""},{"$f":"IF(NB_JOUEURS_DOWN>1,\"Relégué(e)\",Division)","v":"R1"}]
[null,null,16,{"$f":"'2'!AR17","v":""},null,{"$f":"IF(ISNA(IF(LEFT(Division,2)=\"R1\",VLOOKUP(E17,Points!$A$2:$D$20,2,FALSE),IF(LEFT(Division,2)=\"R2\",VLOOKUP(E17,Points!$A$2:$D$20,3,FALSE),IF(LEFT(Division,2)=\"R3\",VLOOKUP(E17,Points!$A$2:$D$20,4,FALSE),\"DIV ???\")))),0,IF(LEFT(Division,2)=\"R1\",VLOOKUP(E17,Points!$A$2:$D$20,2,FALSE),IF(LEFT(Division,2)=\"R2\",VLOOKUP(E17,Points!$A$2:$D$20,3,FALSE),IF(LEFT(Division,2)=\"R3\",VLOOKUP(E17,Points!$A$2:$D$20,4,FALSE),\"DIV ???\"))))","v":0},{"$f":"IF(ISERROR(VLOOKUP(D17,Final!$AB$4:$AE$35,4,FALSE)),\"\",VLOOKUP(D17,Final!$AB$4:$AE$35,4,FALSE))","v":""},null,null,{"$f":"IF(ISNA(VLOOKUP(D17,Inscrits!B:F,3,FALSE)),\"\",VLOOKUP(D17,Inscrits!B:F,3,FALSE))","v":""},{"$f":"IF(ISNA(VLOOKUP(D17,Inscrits!B:F,4,FALSE)),\"\",VLOOKUP(D17,Inscrits!B:F,4,FALSE))","v":""},{"$f":"IF(ISNA(VLOOKUP(D17,Inscrits!B:F,5,FALSE)),\"\",VLOOKUP(D17,Inscrits!B:F,5,FALSE))","v":""},{"$f":"IF(NB_JOUEURS_DOWN>0,\"Relégué(e)\",Division)","v":"R1"}]

{"sheet":"Liste des Joueurs","index":7,"n_rows":1236,"n_cols":3,"rows_kept":1236,"cut":false,"hidden":true,"merged":[]}
["Licence","Nom Prenom","Nom Club"]
["163282F","AARAB LAHOUSINE","CLUB CHAMBERIEN DE BILLARD"]
["164727B","ABBO SEBASTIAN","CLUB CHAMBERIEN DE BILLARD"]
["113202Y","ABDOULZABAR CARIME","GROUPE SPORTIF LUGDUNUM"]
["151373L","ABLONDI LAURENT","CERCLE DES CHEFS D ATELIER"]
["015873N","ABOUAF DANIEL","ACADEMIE BILLARD OUEST LYONNAIS"]
["152956G","ACCETTOLA ELIO","ACADEMIE DE BILLARD DE CHASSIEU"]
["016009T","ACHARD LOUIS","ACAD. DE BILLARD DE SAINT-ETIENNE"]
["020465D","ACHARD PATRICK","ACADEMIE DE BILLARD DE HAUTE LOIRE"]
["161258F","ADON MARC OLIVIER","ACADEMIE DE BILLARD DE LA VALSERINE"]
["144036W","AGEORGES PIERRE ANDRE","ACADEMIE BILLARD OUEST LYONNAIS"]
["163554B","AGNEL FLORENT","LES SQUALES"]
["152592L","ALTISEN ELIOS","GROUPE SPORTIF LUGDUNUM"]
["157089Z","AMORETTI JACQUES","VALENCE BILLARD CLUB"]
["100896Q","ANDRE PASCAL","BILLARD CLUB DE LA PLAINE DU FOREZ"]
["167082L","ANDRIAMPININA NOMENA MARYSE","BILLARD CLUB LYONNAIS 8 POOL"]
["153556J","ANDRIEU EVELYNE","BILLARD CLUB GRENOBLOIS"]
["153555H","ANDRIEU JEAN PIERRE","BILLARD CLUB GRENOBLOIS"]
["164360C","ANNEQUIN JEAN FRANCOIS","CERCLE DES CHEFS D ATELIER"]
["164835T","ANTOLINEZ LUIS","ACADEMIE ANNECIENNE DE BILLARD"]
["160875P","ARCIDIACONO ANTOINE","GROUPE SPORTIF LUGDUNUM"]
["015777V","ARMAND BRUNO","VALENCE BILLARD CLUB"]
["152479N","ARMANDI JEAN CLAUDE","BILLARD CLUB MOULINS"]
["159063V","ARNAUD JEAN PHILIPPE","BILLARD CLUB DE CLARAFOND ARCINE"]
["100971N","ARNAUD PHILIPPE","CLUB DE BILLARD MONTBRISONNAIS"]
["162532Q","ARTICO JOEL","BILLARD STELLA THONON"]
["165964W","ASTIC AURELIEN","BILLARD CLUB ROMANAIS PEAGEOIS"]
["164726A","ASTIC JULIAN","BILLARD CLUB ROMANAIS PEAGEOIS"]
["149077Q","AUBERT LIBERTO","BILLARD CLUB MOULINS"]
["130057F","AUBERT PIERRE","ACADEMIE ANNECIENNE DE BILLARD"]
["022383X","AUBERT ROUECHE ERIC","CLUB OMNISPORTS DE SAINT FONS"]
["166982C","AUBOSSU PATRICK","ACADEMIE DE BILLARD D AUBENAS"]
["136248I","AUDIN GUY","ACADEMIE ANNECIENNE DE BILLARD"]
["016015Z","AUDONNET JEREMY","AMICALE LAIQUE RICAMARIE"]
["125994Y","AUDOUARD JEAN CLAUDE","BILLARD CLUB DE SAINT-GALMIER"]
["148023V","AUFFRET MARCEL","BILLARD STELLA THONON"]
["016143X","AUGAGNEUR JEAN PAUL","ASS. SPORTIVE MUNICIPALE ST ETIENNE"]
["015881V","AURAND LOUIS","BILLARD CLUB PONTOIS"]
["163952J","AUVITY SEBASTIEN","EIGHT'S POOL GAME"]
["100953V","AVEDISSIAN HENRI","ACADEMIE DE BILLARD DE CHASSIEU"]
["147114G","AVET BERNARD","BILLARD CLUB AIXOIS"]
["126989F","AZUELOS MAXIME","CLUB CHAMBERIEN DE BILLARD"]
["159062T","BABEL STEPHANIE","BILLARD CLUB DE CLARAFOND ARCINE"]
["137597F","BACCAM BOUNLIENG","NIGHT BILLARD CLUB"]
["146104K","BACCAM HELENE","NIGHT BILLARD CLUB"]
["159789J","BACHELET DANIEL","A.B. DE BOURGOIN-JALLIEU"]
["016416K","BAILLY CLAUDE","CLUB CHAMBERIEN DE BILLARD"]
["126039R","BAILLY FABRICE","BILLARD CLUB LYONNAIS 8 POOL"]
["015869J","BAIZET CHRISTIAN","BILLARD CLUB ROMANAIS PEAGEOIS"]
["160643M","BALHAND SEBASTIEN","CLUB CHAMBERIEN DE BILLARD"]
["PS004879D","BALLISTRERI GIOVANNI","CLUB DE BILLARD MONTBRISONNAIS"]
["143441Z","BANCILHON JEAN","BILLARD CLUB ROMANAIS PEAGEOIS"]
["160730G","BAPST CHRISTIAN","SAINT CHAMOND BILLARD CLUB"]
["140706U","BARBERA ANTHONY","ACADEMIE DE BILLARD D AUBENAS"]
["138977H","BARBIER YANN","BILLARD CLUB DE SAINT-GALMIER"]
["164274J","BARIZZA DANIEL","CLUB CHAMBERIEN DE BILLARD"]
["140811V","BARRALON FREDERIC","BILLARD CLUB DE SAINT-GALMIER"]
["132960W","BARRAUD PIERRE","BILLARD CLUB DE VILLEFRANCHE"]
["149764M","BARSE BRUNO","BILLARD CLUB VICHY"]
["147501C","BASTIDA ROBERT","LE TAPIS VERT ROANNAIS"]
["015826S","BATAILLE RAYMOND","BILLARD CLUB PONTOIS"]
["160876Q","BAUDIN LILIANE","GROUPE SPORTIF LUGDUNUM"]
["161105P","BAUMANN CLAUDE","LE TAPIS VERT ROANNAIS"]
["016085R","BAUP PASCAL","ACADEMIE ANNECIENNE DE BILLARD"]
["163988Y","BAYA FOUAD","DEVIL'S POOL CLUB"]
["132971H","BAYET BENOIT","CLUB DE BILLARD MONTBRISONNAIS"]
["137591Z","BAYET BRUNO","CLUB DE BILLARD MONTBRISONNAIS"]
["167190D","BAYLE NOAH","CLUB DE BILLARD MONTBRISONNAIS"]
["166692M","BAYON BRUNO","BILLARD CLUB DE LA PLAINE DU FOREZ"]
["117153X","BEAL JEAN PAUL","ACADEMIE DE BILLARD DE HAUTE LOIRE"]
["150876W","BEAUCLAIR JEAN RENE","ACADEMIE DE BILLARD DE LA VALSERINE"]
["158185Q","BEAUD CHRISTOPHE","CLUB CHAMBERIEN DE BILLARD"]
["149841W","BEAUFILS JEAN PATRICK","CLUB CHAMBERIEN DE BILLARD"]
["160179H","BECCHIA CLAUDE","ACADEMIE ANNECIENNE DE BILLARD"]
["166742R","BEDDOUCHE GHALI","ACADEMIE DE BILLARD DE CHASSIEU"]
["167507Y","BEDDOUCHE MOHAMED","ACADEMIE DE BILLARD DE CHASSIEU"]
["144173D","BEE JEAN LUC","B.S.CLERMONTOIS"]
["PS004867Q","BEGONIN FORCHEZ KEO","CLUB DE BILLARD MONTBRISONNAIS"]
["130046U","BELBECIR MOURAD","BILLARD CLUB 109"]
["157793P","BELGUERMI NICOLAS","ASS. SPORTIVE MUNICIPALE ST ETIENNE"]
["162814X","BELLET SYLVAIN","CHARLEMAGNE SNOOKER CLUB"]
["163592S","BENABDESSELAM YASSINE","BILLARD CLUB LYONNAIS 8 POOL"]
["112619N","BENAISSA NAIM","BILLARD CLUB 109"]
["141255X","BENALI MOHAMED","BILLARD CLUB LYONNAIS 8 POOL"]
["159790K","BENOIT MICHEL","ACADEMIE DE BILLARD D AUBENAS"]
["166631W","BENSACQ BONTOUX ALICIA","EIGHT'S POOL GAME"]
["135834K","BERARD HERVE","BILLARD CLUB 109"]
["156508S","BERCHE JEAN LUC","BILLARD CLUB ISSOIRE"]
["165940V","BERCHET MOGUET NICOLAS","LA CARAMBOLE LISSILOISE"]
["137610S","BERENGUER MANUEL","ACADEMIE DE BILLARD DE CHASSIEU"]
["016488E","BERGER CHRISTIAN","BILLARD CLUB DE SAINT-GALMIER"]
["127290U","BERGER MICHEL","VALENCE BILLARD CLUB"]
["155901H","BERGNES LENNY","BILLARD CLUB PONTOIS"]
["157623E","BERLIET ODILE","CERCLE DES CHEFS D ATELIER"]
["142693F","BERNARD ALAIN","CLUB DE BILLARD MONTBRISONNAIS"]
["164764R","BERNARD MAZZURCO MICHEL","LES SQUALES"]
["167215F","BERNARD MAZZURCO MORGANE","LES SQUALES"]
["156134L","BERNE MARC","AMICALE BILLARD CLUB DE DAVEZIEUX"]
["100867N","BERNILLON MARCEL","CLUB OMNISPORTS DE SAINT FONS"]
["153217Q","BERRAHOU SOLANGE","ACADEMIE DE BILLARD DE LA VALSERINE"]
["167668Y","BERRAUD LIAM","BILLARD CLUB DE BOURG EN BRESSE"]
["125035B","BERRIN RENAUD","CERCLE DES CHEFS D ATELIER"]
["015900O","BERRUYER ROGER","BILLARD CLUB ROMANAIS PEAGEOIS"]
["015959V","BERTHELIER PATRICK","LE TAPIS VERT ROANNAIS"]
["151771T","BERTHET JACQUES","CERCLE DES CHEFS D ATELIER"]
["100869P","BERTHIER DOMINIQUE","CLUB OMNISPORTS DE SAINT FONS"]
["016073F","BERTHOLON GERARD","ACAD. DE BILLARD DE SAINT-ETIENNE"]
["129026O","BERTOTTO CHRISTIAN","BILLARD CLUB ISSOIRE"]
["160731H","BERTRAND ADRIEN","ACADEMIE DE BILLARD DE CHASSIEU"]
["149988F","BESNIER ALAIN","GROUPE SPORTIF LUGDUNUM"]
["159641Y","BESSE DANIEL","BILLARD CLUB GRENOBLOIS"]
["136247H","BESSE YVES","ACADEMIE ANNECIENNE DE BILLARD"]
["107766W","BESSON JEAN BAPTISTE","CERCLE DES CHEFS D ATELIER"]
["150947Y","BESSON JEROME","BILLARD CLUB DE CLARAFOND ARCINE"]
["100973P","BETTES JEAN LOUIS","BILLARD CLUB ROMANAIS PEAGEOIS"]
["136030Y","BEZIER RENAUD","ACADEMIE BILLARD OUEST LYONNAIS"]
["153987C","BIBIER COCATRIX MICHEL","ACADEMIE ANNECIENNE DE BILLARD"]
["165953J","BIDAULT PASCAL","BILLARD CLUB AIXOIS"]
["164109E","BIED CHARRETON OSCAR","ACAD. DE BILLARD DE SAINT-ETIENNE"]
["137839N","BIENNE CYRIL","CHARLEMAGNE SNOOKER CLUB"]
["100915J","BILLARD JEAN LOUIS","BILLARD CLUB AIXOIS"]
["165794L","BILLOUX JOHANN","VULCAIN 8 POOL"]
["150687Q","BITTON HUBERT","GROUPE SPORTIF LUGDUNUM"]
["112458I","BLANC FRANCIS","ACADEMIE BILLARD OUEST LYONNAIS"]
["112490O","BLANCHARD CLAUDE","ACADEMIE ANNECIENNE DE BILLARD"]
["138188Y","BLANCHET PATRICK","BLACKBALL BILLARD CLUB BESAYES 26"]
["136202O","BLANCHIN GERARD","LE TAPIS VERT ROANNAIS"]
["166813T","BLEIN SEBASTIEN","BLACKBALL CULOZIEN"]
["014638A","BLETON CLAUDE","CERCLE DES CHEFS D ATELIER"]
["163788F","BLONDELLE CLEMENT","BILLARD CLUB 8 POOL EVIAN"]
["016219V","BLONDOT YVES","ACADEMIE ANNECIENNE DE BILLARD"]
["133632S","BLUET JEAN MARIE","ACADEMIE DE BILLARD DE CHASSIEU"]
["100009N","BOBEE GREGORY","BILLARD CLUB DE SAINT-GALMIER"]
["156521G","BOCHARD PHILIPPE","BILLARD CLUB ISSOIRE"]
["016378Y","BOISSIERAS JEAN","GROUPE SPORTIF LUGDUNUM"]
["143741N","BOISSIERE VINCENT","BILLARD CLUB GRENOBLOIS"]
["015787F","BOISSOU ROBERT","CLUB CHAMBERIEN DE BILLARD"]
["146112S","BONDOUY FREDERIK","ACADEMIE DE BILLARD D AUBENAS"]
["150445C","BONDOUY NAHEL","ACADEMIE DE BILLARD D AUBENAS"]
["145637L","BONNAMOUR ETIENNE","CLUB DE BILLARD MONTBRISONNAIS"]
["160605W","BONNARD MARTINE","ACADEMIE DE BILLARD DE CHASSIEU"]
["015796O","BONNEFOI RICHARD","CLUB OMNISPORTS DE SAINT FONS"]
["148303Z","BONNEFOND CHRISTIAN","ACADEMIE BILLARD OUEST LYONNAIS"]
["157880J","BONTOUX SYLVIE","EIGHT'S POOL GAME"]
["147937B","BORDET ANDRE","CERCLE DES CHEFS D ATELIER"]
["148330D","BORDET JOSETTE","CERCLE DES CHEFS D ATELIER"]
["163047A","BORDET LEO","ACADEMIE DE BILLARD DE CHASSIEU"]
["150745D","BOREL ALAIN","ACADEMIE ANNECIENNE DE BILLARD"]
["156534W","BORGEAT CHRISTIANE","ACADEMIE DE BILLARD DE LA VALSERINE"]
["016337J","BORNET PHILIPPE","CERCLE DES CHEFS D ATELIER"]
["016111R","BORY PHILIPPE","CLUB DE BILLARD MONTBRISONNAIS"]
["133771B","BOSIA JULIEN","BILLARD CLUB DE GAILLARD"]
["154029Y","BOSQUET HENRI","VALENCE BILLARD CLUB"]
["015843J","BOTTON JACKY","BILLARD CLUB PONTOIS"]
["166911A","BOTU MATHIEU","ACADEMIE DE BILLARD DE CHASSIEU"]
["167839J","BOUCHACOURT MARC","ACADEMIE BILLARD OUEST LYONNAIS"]
["107243T","BOUCHER JEAN CLAUDE","BILLARD CLUB DE GAILLARD"]
["011105D","BOUDAILLIER PIERRE","B.S.CLERMONTOIS"]
["160877R","BOULADE COLETTE","GROUPE SPORTIF LUGDUNUM"]
["157063W","BOULAND DANIEL","ACADEMIE ANNECIENNE DE BILLARD"]
["152907D","BOURDIER JACQUES","BILLARD CLUB VICHY"]
["016056O","BOURGEOIS GERARD","BILLARD STELLA THONON"]
["021913V","BOURHIS JEAN","BILLARD CLUB PONTOIS"]
["164876N","BOURJA MOUNIR","BILLARD CLUB LYONNAIS 8 POOL"]
["016222Y","BOURLIER MAX","ACADEMIE ANNECIENNE DE BILLARD"]
["153570Z","BOURNAT MICHEL","VALENCE BILLARD CLUB"]
["156432K","BOURREAU JEAN LUC","LE TAPIS VERT ROANNAIS"]
["155880K","BOUTET MAYEUL","BILLARD CLUB VICHY"]
["117186E","BOUTIN ANDRE","ACADEMIE BILLARD OUEST LYONNAIS"]
["160878S","BOUVAIST JEAN MARC","GROUPE SPORTIF LUGDUNUM"]
["160879T","BOUVAIST MARTINE","GROUPE SPORTIF LUGDUNUM"]
["164853N","BOUVAT DANIEL","LA CARAMBOLE LISSILOISE"]
["015703Z","BOUVET ANDRE","ACADEMIE BILLARD OUEST LYONNAIS"]
["132936Y","BOUVIER CHRISTIAN","VALENCE BILLARD CLUB"]
["157649H","BOUVIER NATHALIE","BILLARD CLUB MOULINS"]
["135457X","BOUVIER PIERRE ADOLPHE","ACADEMIE BILLARD OUEST LYONNAIS"]
["162644M","BOUZOUZOU HAMID","BILLARD CLUB 109"]
["145377L","BOYER BERNARD","BILLARD CLUB ROMANAIS PEAGEOIS"]
["142216W","BOYER THIERRY","CERCLE DES CHEFS D ATELIER"]
["127310O","BRACEIRO JOSE","LES SQUALES"]
["166884W","BRAHIMI BRUNET ADAM","BILLARD CLUB DE BOURG EN BRESSE"]
["166885X","BRAHIMI BRUNET GERMAIN","BILLARD CLUB DE BOURG EN BRESSE"]
["166705B","BRANGBOUR MARYACIN","BILLARD CLUB LYONNAIS 8 POOL"]
["016411F","BRAYER DENIS","CERCLE DES CHEFS D ATELIER"]
["164854P","BREDA CLAUDE","LA CARAMBOLE LISSILOISE"]
["112866A","BREDA YVES","BILLARD CLUB AIXOIS"]
["162580S","BREGRE LILOU","VULCAIN 8 POOL"]
["162579R","BREGRE MAELYS","VULCAIN 8 POOL"]
["159347D","BREGRE SEBASTIEN","VULCAIN 8 POOL"]
["135920S","BRENDEL CHRISTIAN","BILLARD CLUB DE BOURG EN BRESSE"]
["100921P","BRICHET CHRISTIAN","ACADEMIE ANNECIENNE DE BILLARD"]
["135925X","BRISSE THIERRY","ACADEMIE DE BILLARD DE HAUTE LOIRE"]
["112484I","BROC AIME","ACADEMIE DE BILLARD DE CHASSIEU"]
["161067Y","BROCARD GILLES","CERCLE DES CHEFS D ATELIER"]
["163160Y","BROCHAND EVELYNE","CERCLE DES CHEFS D ATELIER"]
["015727X","BROCHAND PATRICK","CERCLE DES CHEFS D ATELIER"]
["152651A","BROCHIER PATRICK","ACADEMIE DE BILLARD DE CHASSIEU"]
["110480G","BROUX JEAN MARC","CHARLEMAGNE SNOOKER CLUB"]
["141635N","BRUGIERE JEAN LOUIS","CERCLE DES CHEFS D ATELIER"]
["155902J","BRUN CHRISTOPHE","BILLARD CLUB PONTOIS"]
["155127R","BRUNET GILLES","SAINT CHAMOND BILLARD CLUB"]
["163037P","BRUNET MARC","B.S.CLERMONTOIS"]
["156980F","BRUNET MAURICE","BILLARD CLUB DE BOURG EN BRESSE"]
["141194O","BRUNET SABRILLA","BILLARD CLUB PONTOIS"]
["150014J","BRUNETAUD ALAIN","BILLARD CLUB GRENOBLOIS"]
["100972O","BRUYAS ANTOINE","ASS. SPORTIVE MUNICIPALE ST ETIENNE"]
["165008G","BUFFERNE CALVIN","AMICALE BILLARD CLUB DE DAVEZIEUX"]
["152401D","BUGIS ANDRE","BILLARD CLUB AIXOIS"]
["152593M","BUISSON JACQUES","GROUPE SPORTIF LUGDUNUM"]
["155923G","BUISSONNIERE DUSTIN","BILLARD CLUB VICHY"]
["132193J","BUREAU BENJAMIN","BILLARD CLUB LYONNAIS 8 POOL"]
["163857F","BURLET FRANCK","BILLARD CLUB 109"]
["164855Q","BURLET JEAN PAUL","LA CARAMBOLE LISSILOISE"]
["167278Z","BURNET EVAN","ACADEMIE ANNECIENNE DE BILLARD"]
["167410S","BURNET LUC","ACADEMIE ANNECIENNE DE BILLARD"]
["015748S","CABANES PHILIPPE","BILLARD CLUB PONTOIS"]
["150869N","CABANET FLORENCE","NIGHT BILLARD CLUB"]
["127650Q","CABARET MICHEL","BILLARD CLUB GRENOBLOIS"]
["167952G","CABROL DAVID","BILLARD CLUB LYONNAIS 8 POOL"]
["132962Y","CACACE UMBERTO","NIGHT BILLARD CLUB"]
["161384S","CADET DAVID CHRISTOPHER","BILLARD CLUB LYONNAIS 8 POOL"]
["112460K","CADORE JEAN LUC","ACADEMIE BILLARD OUEST LYONNAIS"]
["156463T","CAESTEKER MARCEL","BILLARD CLUB ISSOIRE"]
["011036M","CAILLAT ANDRE","BILLARD CLUB MOULINS"]
["159763F","CAILLON ANNE CLAIRE","ACADEMIE DE BILLARD DE CHASSIEU"]
["167377G","CAILLOT PATRICK","ACADEMIE BILLARD OUEST LYONNAIS"]
["156114P","CALISTRI LIONEL","GROUPE SPORTIF LUGDUNUM"]
["161059P","CALYAKA ABDURRAHMAN","SAINT CHAMOND BILLARD CLUB"]
["011908A","CAMBERLIN ERIC","ACADEMIE DE BILLARD DE CHASSIEU"]
["016478U","CAMIN NORBERT","ACADEMIE DE BILLARD D AUBENAS"]
["164856R","CAMOUT GILBERT","LA CARAMBOLE LISSILOISE"]
["157318Y","CANTINEAU MARTINE","ACAD. DE BILLARD DE SAINT-ETIENNE"]
["122563Z","CAO VAN TRUONG JULIEN","GROUPE SPORTIF LUGDUNUM"]
["152780Q","CARAVATI PASCAL","BILLARD CLUB ROMANAIS PEAGEOIS"]
["153644E","CARDOT MICHEL","ACADEMIE DE BILLARD DE CHASSIEU"]
["159396G","CARENZI ROLLAND","BILLARD CLUB AIXOIS"]
["015983T","CARNAT ROBERT","LE TAPIS VERT ROANNAIS"]
["166553L","CARON FRANCK","LES SQUALES"]
["167378H","CARREAU DANIEL","ACADEMIE BILLARD OUEST LYONNAIS"]
["152673Z","CARRERES MANUEL","LE TAPIS VERT ROANNAIS"]
["158097V","CARRET THALLER EVELYNE","CERCLE DES CHEFS D ATELIER"]
["145222M","CARRIER JULIEN","ASSOCIATION DU LAKE PUB 74"]
["156554S","CARRION TORRES ALBERTO","CERCLE DES CHEFS D ATELIER"]
["015822O","CARRON GERARD","GROUPE SPORTIF LUGDUNUM"]
["134297H","CAS MICHEL","BILLARD CLUB GRENOBLOIS"]
["108521X","CASSIS MAXIME","BILLARD CLUB GRENOBLOIS"]
["166134F","CASTANIER JEAN FRANCOIS","VULCAIN 8 POOL"]
["122482W","CATTIN LOUIS","ACADEMIE BILLARD OUEST LYONNAIS"]
["136167F","CAUBERGS JEAN CLAUDE","ACADEMIE DE BILLARD D AUBENAS"]
["153472S","CAUCHY ALAIN","BILLARD CLUB MOULINS"]
["144703N","CAZANAVE PAUL","BLACKBALL BILLARD CLUB BESAYES 26"]
["143750W","CELETTE MICHEL","BILLARD CLUB GRENOBLOIS"]
["104768O","CENDRIER DAVID","ASSOCIATION DU LAKE PUB 74"]
["141633L","CERVERA IRIS","BILLARD CLUB GRENOBLOIS"]
["107387H","CHABRAY DANIEL","BILLARD CLUB ROMANAIS PEAGEOIS"]
["016247X","CHADELAUD JEAN MICHEL","BILLARD CLUB ALBERTVILLE"]
["161278C","CHAFI MAJID","VULCAIN 8 POOL"]
["148985Q","CHAIR MOURAD","NIGHT BILLARD CLUB"]
["015728Y","CHALAND JEAN","CERCLE DES CHEFS D ATELIER"]
["157539N","CHALLEAT PAUL","AMICALE BILLARD CLUB DE DAVEZIEUX"]
["100904Y","CHAMONAZ VANESSA","BILLARD CLUB PONTOIS"]
["104708G","CHAMPEAU CLAUDE","BILLARD CLUB PONTOIS"]
["149865X","CHANNAUX PATRICK","AMICALE LAIQUE RICAMARIE"]
["150082H","CHANTREAU DIDIER","ACADEMIE ANNECIENNE DE BILLARD"]
["100834G","CHAPATON DOMINIQUE","BILLARD CLUB 109"]
["015813F","CHAPEAUX EMILE","BILLARD CLUB DE VILLEFRANCHE"]
["143193L","CHAPON JEAN MARIE","ACADEMIE DE BILLARD DE LA VALSERINE"]
["163543P","CHAPPERT ADRIEN LUDOVIC","CLUB CHAMBERIEN DE BILLARD"]
["104469B","CHAPUIS ERIC","ACADEMIE BILLARD OUEST LYONNAIS"]
["163984T","CHAPUIS MAXIME","BLACKBALL BILLARD CLUB BESAYES 26"]
["150688R","CHAPUT FRANCOIS","CERCLE DES CHEFS D ATELIER"]
["166516W","CHARRON INGRID","EIGHT'S POOL GAME"]
["153323F","CHASSAGNE JACQUES","B.S.CLERMONTOIS"]
["157824Y","CHASTAGNER PHILIPPE","CERCLE DES CHEFS D ATELIER"]
["150950B","CHATENOUD ARNAUD","BILLARD CLUB DE CLARAFOND ARCINE"]
["163675H","CHAUMAZ SERGE","ACADEMIE ANNECIENNE DE BILLARD"]
["016054M","CHAUSSAT JEAN MARC","ACAD. DE BILLARD DE SAINT-ETIENNE"]
["137566A","CHAUVET IVAN","BILLARD CLUB ISSOIRE"]
["PS004869S","CHAVAGNEUX FAYARD LOGAN","CLUB DE BILLARD MONTBRISONNAIS"]
["PS004121E","CHAZAL CORENTIN","CLUB DE BILLARD MONTBRISONNAIS"]
["163547T","CHEFDEBIEN DIDIER","CERCLE DES CHEFS D ATELIER"]
["139524I","CHEMIN PIERRE","CLUB CHAMBERIEN DE BILLARD"]
["167287J","CHEROUANA FARID","CLUB CHAMBERIEN DE BILLARD"]
["131290Q","CHERPIN GUY","LE TAPIS VERT ROANNAIS"]
["114665F","CHEUNG LANDRY","CERCLE BELLECOMBE DE LYON"]
["128996K","CHIEZE MIREILLE","NIGHT BILLARD CLUB"]
["160807Q","CHOPIN TANGUY","ASSOCIATION DU LAKE PUB 74"]
["138140C","CIOLEK ALEXANDRE","BLACKBALL BILLARD CLUB BESAYES 26"]
["122570G","CIVRAIS CHRISTIAN","LE TAPIS VERT ROANNAIS"]
["158186R","CLARET GEORGES","CLUB CHAMBERIEN DE BILLARD"]
["164749A","CLAUDON PIERRE YVES","LES SQUALES"]
["166660C","CLAVEL DAMIEN","BILLARD CLUB PONTOIS"]
["167951F","CLEMENT FABRICE","BILLARD CLUB PONTOIS"]
["143279T","CLEMENT GERARD","CERCLE DES CHEFS D ATELIER"]
["150689S","CLEMENT JEAN LOUP","CERCLE DES CHEFS D ATELIER"]
["155702R","CLERMONT PASCAL","CLUB OMNISPORTS DE SAINT FONS"]
["107706O","CLUZEL JACQUES","BILLARD CLUB GRENOBLOIS"]
["122770Y","COCHEZ FREDERIC","VEYRE-MONTON BILLARD CLUB"]
["015888C","COEURET JACQUES","A.B. DE BOURGOIN-JALLIEU"]
["146267R","COFFY JEROME","BILLARD CLUB PONTOIS"]
["012828K","COHEN STEPHAN","BILLARD CLUB 109"]
["015903R","COLLET BERNARD","CERCLE DES CHEFS D ATELIER"]
["147331S","COLLET JEAN CLAUDE","LE TAPIS VERT ROANNAIS"]
["138974E","COLLIER LOIC","LES SQUALES"]
["164210P","COMBAZ ALBAN","ACADEMIE ANNECIENNE DE BILLARD"]
["153539Q","COMBAZ GUY","CLUB CHAMBERIEN DE BILLARD"]
["149125S","COMTE MICHEL","ACADEMIE ANNECIENNE DE BILLARD"]
["137433X","CONSTANTIN JACQUES","BILLARD STELLA THONON"]
["010957L","CONTAMINE ALAIN","BILLARD CLUB MONTLUCONNAIS"]
["160166T","CORBY JEAN CLAUDE","BILLARD CLUB AIXOIS"]
["137585T","CORNET ANTOINE","BILLARD CLUB AMICALE CHAPELON"]
["016154I","CORNET ROGER","ACADEMIE BILLARD OUEST LYONNAIS"]
["167787C","CORREIA JOSE","B.S.CLERMONTOIS"]
["107696E","CORREIA MARC","ACADEMIE ANNECIENNE DE BILLARD"]
["140814Y","CORVAISIER DOMINIQUE","SAINT CHAMOND BILLARD CLUB"]
["145351L","COSNARD SEBASTIEN","BILLARD CLUB DE GAILLARD"]
["131320U","COSNIER ROMAIN","VULCAIN 8 POOL"]
["159237J","COSTA GERARD","BILLARD CLUB AIXOIS"]
["150468C","COTTIN EMMANUEL","SAINT CHAMOND BILLARD CLUB"]
["145627B","COUCHAUD GERARD","CLUB DE BILLARD MONTBRISONNAIS"]
["015890E","COUQUET CHRISTOPHE","CERCLE DES CHEFS D ATELIER"]
["152649Y","COURVOISIER MYRIAM","ACADEMIE DE BILLARD DE CHASSIEU"]
["133106M","COUSTENOBLE CHRISTOPHE","BILLARD STELLA THONON"]
["129879J","COUTAREL YVES","ACADEMIE BILLARD OUEST LYONNAIS"]
["141021X","CREMY JULIEN","NIGHT BILLARD CLUB"]
["164857S","CREPEL BENOIT","LA CARAMBOLE LISSILOISE"]
["167674E","CROC GEORGES","ACAD. DE BILLARD DE SAINT-ETIENNE"]
["144305F","CROS DAVID","LES SQUALES"]
["122400S","CUBIZOLLES ALAIN","VEYRE-MONTON BILLARD CLUB"]
["131904G","CUBIZOLLES EVA","VEYRE-MONTON BILLARD CLUB"]
["107701J","CUCCO FREDERIC","CERCLE BELLECOMBE DE LYON"]
["167624A","CUGERONE BERNARD","BILLARD CLUB ROMANAIS PEAGEOIS"]
["016165T","CUNY ALAIN","AMICALE BILLARD CLUB DE DAVEZIEUX"]
["131284K","CURT ALAIN","BILLARD CLUB ALBERTVILLE"]
["144306G","CURTIL SEBASTIEN","BILLARD CLUB 8 POOL EVIAN"]
["156083F","CUZIN JACQUES","ACADEMIE BILLARD OUEST LYONNAIS"]
["167742D","D ACAMPORA LAURENT","BILLARD CLUB ROMANAIS PEAGEOIS"]
["143275P","DA ENCARNACAO JOSE","CERCLE BELLECOMBE DE LYON"]
["164181H","DA SILVA NOHAM","CLUB DE BILLARD MONTBRISONNAIS"]
["113580M","DAGNIAUX DANIEL","BILLARD STELLA THONON"]
["015758C","DALLOYEAU CHRISTIAN","BILLARD STELLA THONON"]
["105671H","DAMIER NICOLAS","BILLARD CLUB ROMANAIS PEAGEOIS"]
["015730A","DANANCIER DOMINIQUE","CERCLE DES CHEFS D ATELIER"]
["127265V","DANIS MARIE EVE","ACAD. DE BILLARD DE SAINT-ETIENNE"]
["137613V","DARAKDJIAN CLAUDE","VALENCE BILLARD CLUB"]
["162917J","DAUBERT PATRICE","BILLARD CLUB DE VILLEFRANCHE"]
["167401H","DAUTRICHE ALAIN","ACADEMIE DE BILLARD D AUBENAS"]
["016194W","DAVID PATRICK","CLUB DE BILLARD MONTBRISONNAIS"]
["146972C","DE ALMEIDA DUARTE FREDERICO","BILLARD CLUB DE CLARAFOND ARCINE"]
["158189V","DE BORTOLI PATRICK","CLUB CHAMBERIEN DE BILLARD"]
["141464Y","DE DOMENICO ROBERTO","BILLARD STELLA THONON"]
["164276L","DE KEYSER JEAN PIERRE","CLUB CHAMBERIEN DE BILLARD"]
["164858T","DE LA SERNA CESAR","LA CARAMBOLE LISSILOISE"]
["154022Q","DE SAINT ROMAIN PIERRE","VALENCE BILLARD CLUB"]
["145373H","DEBENOIT FRANCK","CLUB OMNISPORTS DE SAINT FONS"]
["155357R","DEBRAY SERGE","ACADEMIE ANNECIENNE DE BILLARD"]
["153544W","DECALF JEAN","CLUB CHAMBERIEN DE BILLARD"]
["132935X","DECHAMPS JULIE","VALENCE BILLARD CLUB"]
["123379J","DECHAMPS WILLIAM","VALENCE BILLARD CLUB"]
["107336I","DECOMBE JEAN PIERRE","BILLARD CLUB DE VILLEFRANCHE"]
["164577N","DECOUZON JEAN FRANCOIS","BILLARD CLUB LYONNAIS 8 POOL"]
["015771P","DECROUX BERNARD","VALENCE BILLARD CLUB"]
["016486C","DEFOSSE MICHEL","LE TAPIS VERT ROANNAIS"]
["167811D","DEFRANOUX ALAIN","ACADEMIE ANNECIENNE DE BILLARD"]
["152400C","DEFRANOUX FRANCIS","BILLARD CLUB AIXOIS"]
["164717Q","DEGUILHEN ROMAIN","ACADEMIE DE BILLARD D AUBENAS"]
["110372C","DEJONGHE JEAN MICHEL","BILLARD CLUB VICHY"]
["015805X","DELANGE GUY","BILLARD CLUB DE VILLEFRANCHE"]
["140563H","DELATTRE SERGE","A.B. DE BOURGOIN-JALLIEU"]
["167191E","DELAYE XAVIER","CLUB DE BILLARD MONTBRISONNAIS"]
["163951H","DELENNE JEAN FRANCOIS","EIGHT'S POOL GAME"]
["147555L","DELEPAUT ANDRE","BILLARD CLUB AIXOIS"]
["119749T","DELHAYE THOMAS","BILLARD CLUB DE LA PLAINE DU FOREZ"]
["132952O","DELLA BOSCA PAOLO","BILLARD CLUB 109"]
["122491F","DELORME ANDRE","ASS. SPORTIVE MUNICIPALE ST ETIENNE"]
["117149T","DELORME JOSEPH","BILLARD CLUB AMICALE CHAPELON"]
["163504X","DELORME STEPHANE","BILLARD CLUB LYONNAIS 8 POOL"]
["127292W","DELORME STEPHANE","BILLARD CLUB ROMANAIS PEAGEOIS"]
["127765B","DELOUCHE ANTOINE","VEYRE-MONTON BILLARD CLUB"]
["166579P","DELPLANQUE JEAN PIERRE","BILLARD CLUB DE SAINT-GALMIER"]
["149078R","DEMARTY ALAIN","BILLARD CLUB MOULINS"]
["164728C","DEMELLIER STEPHANE","CLUB CHAMBERIEN DE BILLARD"]
["157695H","DEMONET ANTOINE","CLUB DE BILLARD MONTBRISONNAIS"]
["129874E","DEMONET DAVID","CHARLEMAGNE SNOOKER CLUB"]
["140693H","DENIAU GEORGES","ACADEMIE ANNECIENNE DE BILLARD"]
["159156W","DENIS DANIEL","AMIC.SPOR.MONTMARAULTOISE BILLARD"]
["146999G","DENNI THIERRY","GROUPE SPORTIF LUGDUNUM"]
["160681D","DEODATI PIERRE","BILLARD CLUB ROMANAIS PEAGEOIS"]
["012951D","DEPOND DOMINIQUE","CERCLE DES CHEFS D ATELIER"]
["101066E","DEPRUGNEY LIONEL","CERCLE BELLECOMBE DE LYON"]
["159235G","DEPUYDT EDDY","VEYRE-MONTON BILLARD CLUB"]
["164042G","DERANCOURT JEROME","CERCLE DES CHEFS D ATELIER"]
["156396W","DERORY SEBASTIEN","VEYRE-MONTON BILLARD CLUB"]
["122086Q","DEROUALLIERE JEAN MARC","BILLARD CLUB PONTOIS"]
["100919N","DEROUEN PHILIPPE","ACADEMIE ANNECIENNE DE BILLARD"]
["124159J","DERVILLERS VINCENT","LE BLACKBALL MARSANNAIS"]
["135458Y","DESMIDT FRANCOIS","CERCLE DES CHEFS D ATELIER"]
["010959N","DESPREZ SERGE","BILLARD CLUB MONTLUCONNAIS"]
["015939B","DESRAYAUD CHRISTOPHE","GROUPE SPORTIF LUGDUNUM"]
["166839X","DESSE JEAN FRANCOIS","VALENCE BILLARD CLUB"]
["016132M","DESSERT STEPHANE","ACAD. DE BILLARD DE SAINT-ETIENNE"]
["132887B","DEVANNE FREDERIC","BILLARD CLUB GRENOBLOIS"]
["144035V","DEVEDEUX MARC","ACADEMIE BILLARD OUEST LYONNAIS"]
["117134E","DEVERGNE JEAN","CLUB CHAMBERIEN DE BILLARD"]
["164102X","DEVILLARD KARINE","BILLARD CLUB GRENOBLOIS"]
["149951Q","DEZEMPTE MICHEL","BILLARD CLUB DE VILLEFRANCHE"]
["155784F","DI BELLA STEPHANIE","NIGHT BILLARD CLUB"]
["157320A","DI DONATO JEAN","ACAD. DE BILLARD DE SAINT-ETIENNE"]
["016044C","DIAZ JEAN LOUIS","AMICALE LAIQUE RICAMARIE"]
["011026C","DIDIER JEAN PAUL","BILLARD CLUB MOULINS"]
["163277A","DIEBLING JACQUES","ACADEMIE ANNECIENNE DE BILLARD"]
["153291W","DIEF GERARD","ACADEMIE BILLARD OUEST LYONNAIS"]
["131897Z","DJIARE NINA","BILLARD CLUB LYONNAIS 8 POOL"]
["159765H","DOMAS SOPHIE","ACADEMIE DE BILLARD DE CHASSIEU"]
["108968C","DOMINGO XAVIER","BILLARD CLUB ROMANAIS PEAGEOIS"]
["146889P","DOMINGUES NICOLAS","BLACKBALL BILLARD CLUB BESAYES 26"]
["113208E","DOMINICI ALBERT","BILLARD CLUB DE SAINT-GALMIER"]
["146971B","DONATO LAURENT","ACADEMIE DE BILLARD DE LA VALSERINE"]
["153339Y","DONNAT JACKY","CERCLE DES CHEFS D ATELIER"]
["015743N","DORIER ALAIN","BILLARD CLUB ROMANAIS PEAGEOIS"]
["164758K","DORIOZ JEAN","BILLARD CLUB DE GAILLARD"]
["139158G","DORTET ALAIN","BILLARD CLUB VICHY"]
["166969N","DREID NAIM","BILLARD CLUB LYONNAIS 8 POOL"]
["156425C","DREME BERNARD","ACADEMIE DE BILLARD DE CHASSIEU"]
["016189R","DRIOT JACKY","CLUB DE BILLARD MONTBRISONNAIS"]
["167788D","DRYS ESTELLE","EIGHT'S POOL GAME"]
["146968Y","DUARTE JOSE","ACADEMIE DE BILLARD DE LA VALSERINE"]
["100928W","DUBART JACQUES","LES SQUALES"]
["119305R","DUBOIS GABY","BILLARD CLUB MONTLUCONNAIS"]
["164834S","DUBOWYJ MICHEL","ACADEMIE DE BILLARD DE CHASSIEU"]
["156212W","DUBROEUCQ PHILIPPE","CHARLEMAGNE SNOOKER CLUB"]
["167584G","DUBUISSON DIEGO","ACADEMIE DE BILLARD DE LA VALSERINE"]
["015837D","DUBUISSON PHILIPPE","BILLARD CLUB DE VILLEFRANCHE"]
["164712K","DUBUY RENAUD","LES SQUALES"]
["166749Z","DUCLOZ NICOLAS","ASSOCIATION DU LAKE PUB 74"]
["130105B","DUDIT FABIEN","BILLARD CLUB DE BOURG EN BRESSE"]
["166436J","DUFOUR CEDRIC","CHARLEMAGNE SNOOKER CLUB"]
["130059H","DUGAS GERARD","BILLARD CLUB AIXOIS"]
["143434S","DUHEM SYLVAIN","BILLARD CLUB ROMANAIS PEAGEOIS"]
["154985M","DUJOUX JEAN YVES","B.S.CLERMONTOIS"]
["167052D","DUMAS JEAN","ACAD. DE BILLARD DE SAINT-ETIENNE"]
["160881W","DUMAS YVES","GROUPE SPORTIF LUGDUNUM"]
["147111D","DUMONT ALAIN","BILLARD CLUB AIXOIS"]
["145217H","DUMONT ALEXIS","LES SQUALES"]
["147330R","DUMOULIN LAURENT","LE TAPIS VERT ROANNAIS"]
["156788X","DUPAS GILLES","ASS. SPORTIVE MUNICIPALE ST ETIENNE"]
["015992C","DUPLOMB GUY","VALENCE BILLARD CLUB"]
["139528M","DUPONT GERARD","ACADEMIE BILLARD OUEST LYONNAIS"]
["122306C","DUPRE RAMBAUD FREDERIC","LES SQUALES"]
["149436F","DUPRE RAMBAUD NATAEL","LES SQUALES"]
["164682C","DUPUIS DOMINIQUE","GROUPE SPORTIF LUGDUNUM"]
["166756G","DUPUIS MARC","SAINT CHAMOND BILLARD CLUB"]
["129878I","DUQUENNE RICHARD","LA CARAMBOLE LISSILOISE"]
["101757T","DURAND MICHEL","AMICALE BILLARD CLUB DE DAVEZIEUX"]
["105704O","DURET CHRISTOPHE","CLUB CHAMBERIEN DE BILLARD"]
["167795L","DUSSABLE MARC ALEXANDRE","ACADEMIE DE BILLARD DE LA VALSERINE"]
["PS004870T","DUTOIT FLORIAN","CLUB DE BILLARD MONTBRISONNAIS"]
["167237E","DUVAL CHRISTOPHE","AMICALE BILLARD CLUB DE DAVEZIEUX"]
["167236D","DUVAL MAXENCE","AMICALE BILLARD CLUB DE DAVEZIEUX"]
["152674A","DUVERGER CHRISTIAN","LE TAPIS VERT ROANNAIS"]
["162776F","DUVILLARD VINCENT","CHARLEMAGNE SNOOKER CLUB"]
["112524W","DUVOISIN BAPTISTE","BILLARD CLUB 109"]
["PS004894V","ECCKHOUT BAUDOIN","CLUB DE BILLARD MONTBRISONNAIS"]
["016181J","ECHASSOUX PAUL","CERCLE DES CHEFS D ATELIER"]
["167169F","EHRMANN JEAN MARIE","ACADEMIE DE BILLARD D AUBENAS"]
["129146E","EL HAMDAY ANISS","BILLARD CLUB LYONNAIS 8 POOL"]
["129881L","ELION MAURICE","ACADEMIE ANNECIENNE DE BILLARD"]
["155523X","ESPINOSA SEBASTIEN","BILLARD CLUB PONTOIS"]
["122469J","ETAIX ROBERT","ACADEMIE BILLARD OUEST LYONNAIS"]
["159793N","EVERAERT BENJAMIN","VULCAIN 8 POOL"]
["159794P","EVERAERT THOMAS","VULCAIN 8 POOL"]
["166504H","FABBRI DOMINIQUE","LA CARAMBOLE LISSILOISE"]
["166505J","FABBRI SABINE","LA CARAMBOLE LISSILOISE"]
["165889P","FABIE GERARD","ACADEMIE DE BILLARD DE CHASSIEU"]
["016020E","FAIDIT SERGE","CLUB DE BILLARD MONTBRISONNAIS"]
["160682E","FALLOT EYMERIC","VALENCE BILLARD CLUB"]
["166783L","FANET HERVE","BILLARD CLUB GRENOBLOIS"]
["146110Q","FANZONE JEAN CLAUDE","BILLARD CLUB GRENOBLOIS"]
["159612R","FAOUEN PATRICK","ACADEMIE BILLARD OUEST LYONNAIS"]
["016166U","FAURE COMTE HENRI","AMICALE BILLARD CLUB DE DAVEZIEUX"]
["157172P","FAURE ELIE","B.S.CLERMONTOIS"]
["161148L","FAURE GILLES","ACADEMIE ANNECIENNE DE BILLARD"]
["146947A","FAVENTIN JACQUES","BILLARD CLUB DE VILLEFRANCHE"]
["016064W","FAVIER MICHEL","LA CARAMBOLE LISSILOISE"]
["162697V","FAYOLLE GUY","A.B. DE BOURGOIN-JALLIEU"]
["166480G","FECHET PASCAL","ACADEMIE DE BILLARD D AUBENAS"]
["159809F","FELIX RENE","ACADEMIE DE BILLARD DE CHASSIEU"]
["167054F","FERIGO PATRICK","ACAD. DE BILLARD DE SAINT-ETIENNE"]
["163075F","FERNANDES BENJAMIN","ACADEMIE DE BILLARD DE CHASSIEU"]
["126053F","FERNANDES PASCAL","A.B. DE BOURGOIN-JALLIEU"]
["129892W","FERNANDEZ ALPHONSE","BILLARD CLUB GRENOBLOIS"]
["160181K","FERNANDEZ HERRERA GUY","CLUB OMNISPORTS DE SAINT FONS"]
["011128A","FERNANDEZ JOSE","B.S.CLERMONTOIS"]
["104537R","FERON PATRICK","CERCLE DES CHEFS D ATELIER"]
["016108O","FERRE JEAN PAUL","BILLARD CLUB SAINT ROMANAIS"]
["129896A","FERREOL EMILE","BILLARD CLUB DE SAINT-GALMIER"]
["100873T","FERRIOL DOMINIQUE","BILLARD CLUB DE VILLEFRANCHE"]
["166368K","FERRIOL PATRICE","AMICALE LAIQUE RICAMARIE"]
["166881S","FERRO BRUNO","ACADEMIE DE BILLARD DE CHASSIEU"]
["156703E","FESQUET EMILIE","LES SQUALES"]
["152575S","FETTIG SEVERINE","SAINT CHAMOND BILLARD CLUB"]
["119746Q","FEUILLASTRE ALAIN","CLUB DE BILLARD MONTBRISONNAIS"]
["116284M","FLANDRIN STEPHANE","CERCLE BELLECOMBE DE LYON"]
["016070C","FLEURY MICHEL","CLUB OMNISPORTS DE SAINT FONS"]
["166844C","FLOCH JULIEN","BILLARD CLUB DE LA PLAINE DU FOREZ"]
["160972V","FLORET DOMINIQUE","LA CARAMBOLE LISSILOISE"]
["165837H","FLORET MARCELLE","BILLARD STELLA THONON"]
["015524C","FLORIAN DENIS","CLUB DE BILLARD MONTBRISONNAIS"]
["142709V","FLUTTAZ JEAN LOUIS","BILLARD CLUB AIXOIS"]
["013137H","FONGARNAND DIDIER","B.S.CLERMONTOIS"]
["129018G","FORCE STEPHANE","B.S.CLERMONTOIS"]
["PS004876A","FORESTIER ANTONIN","CLUB DE BILLARD MONTBRISONNAIS"]
["137718W","FORISSIER LOUIS","BILLARD CLUB DE SAINT-GALMIER"]
["122474O","FORISSIER PIERRICK","BILLARD CLUB DE SAINT-GALMIER"]
["166704A","FOUGEROL SESTIER JESSICA","BILLARD CLUB LYONNAIS 8 POOL"]
["160912E","FOULTIER JACKY","AMIC.SPOR.MONTMARAULTOISE BILLARD"]
["121518U","FOURNIER CLAUDIUS","BILLARD CLUB MOULINS"]
["167108P","FOURNIER FLORENT","BILLARD CLUB DE BOURG EN BRESSE"]
["121626Y","FOURNIER MICHEL","ACADEMIE BILLARD OUEST LYONNAIS"]
["153997N","FOURNIER PIERRE","ACADEMIE BILLARD OUEST LYONNAIS"]
["104920K","FOURRE NICOLAS","VEYRE-MONTON BILLARD CLUB"]
["137719X","FRAGNE MARCEL","BILLARD CLUB DE SAINT-GALMIER"]
["145114I","FRANCE FERNAND","BILLARD CLUB DE SAINT-GALMIER"]
["156122Y","FRANCOIS DIDIER","CLUB CHAMBERIEN DE BILLARD"]
["157540P","FRANCOMME HENRI","AMICALE BILLARD CLUB DE DAVEZIEUX"]
["145514S","FRAPPA DIDIER","AMICALE BILLARD CLUB DE DAVEZIEUX"]
["159648F","FRECHET JULIEN","BILLARD CLUB GRENOBLOIS"]
["165809C","FREYBURGER RICHARD","BILLARD CLUB DE VILLEFRANCHE"]
["131653P","FROMENT ALAIN","AMIC.SPOR.MONTMARAULTOISE BILLARD"]
["136034C","FUENTES RICARDO","ACADEMIE DE BILLARD DE LA VALSERINE"]
["165944Z","FULCHIRON ULRICH","BILLARD CLUB DE LA PLAINE DU FOREZ"]
["160882X","FURTAK ROLAND","GROUPE SPORTIF LUGDUNUM"]
["013178W","GALLAND GREGORY","ACADEMIE BILLARD OUEST LYONNAIS"]
["015760E","GALLO MICHEL","BILLARD CLUB GRENOBLOIS"]
["140821F","GALLON JEAN CLAUDE","ACAD. DE BILLARD DE SAINT-ETIENNE"]
["149257L","GALLOT RUDY","CLUB DE BILLARD MONTBRISONNAIS"]
["132648W","GALLOT VANESSA","VULCAIN 8 POOL"]
["157702Q","GALTIER JEAN LUC","ACADEMIE DE BILLARD DE LA VALSERINE"]
["167790F","GAMBU KINA LOUNA","EIGHT'S POOL GAME"]
["155163F","GAMET DOMINIQUE","ACADEMIE ANNECIENNE DE BILLARD"]
["147000H","GARCIA JUAN","GROUPE SPORTIF LUGDUNUM"]
["145371F","GARNIER NICOLAS","BILLARD CLUB DE BOURG EN BRESSE"]
["149918E","GARRIDO CARLOS","BILLARD CLUB 8 POOL EVIAN"]
["015934W","GASS JEAN LOUIS","CERCLE DES CHEFS D ATELIER"]
["015912A","GASS MICHEL","CERCLE DES CHEFS D ATELIER"]
["156797G","GATTINO PATRICK","BILLARD CLUB DE LA PLAINE DU FOREZ"]
["100870Q","GAUCHER JEAN FRANCOIS","CLUB OMNISPORTS DE SAINT FONS"]
["164151A","GAUDRY PHILIPPE","ACADEMIE BILLARD OUEST LYONNAIS"]
["167391X","GAUTIER ALAIN","AMICALE BILLARD CLUB DE DAVEZIEUX"]
["166654W","GELEZ CHRISTOPHE","BILLARD CLUB DE GAILLARD"]
["159122J","GELIBERT ALEXIS","ACADEMIE DE BILLARD DE LA VALSERINE"]
["159123K","GELIBERT MARGAUX","ACADEMIE DE BILLARD DE LA VALSERINE"]
["147332T","GELOFFIER MAURICE","LE TAPIS VERT ROANNAIS"]
["155838P","GENAUDET FLORIAN","BILLARD CLUB 8 POOL EVIAN"]
["132972I","GENEVRIER GERARD","BILLARD CLUB SAINT ROMANAIS"]
["147547C","GERARD DANIEL","BILLARD CLUB DE GAILLARD"]
["107392M","GERBELOT BARILLON GHISLAINE","ACADEMIE DE BILLARD D AUBENAS"]
["167552X","GHANEI AMIR","CHARLEMAGNE SNOOKER CLUB"]
["156213X","GHOMINEJAD KEYVAN","CHARLEMAGNE SNOOKER CLUB"]
["153804D","GIACOMARRA ENZO","CHARLEMAGNE SNOOKER CLUB"]
["107338K","GIELEC CHRISTIAN","ACADEMIE BILLARD OUEST LYONNAIS"]
["157758B","GIEN DOMINIQUE","ACADEMIE BILLARD OUEST LYONNAIS"]
["147591A","GILARDIN JACQUES","BILLARD CLUB MOULINS"]
["149637Z","GILARDIN SEBASTIEN","BILLARD CLUB MOULINS"]
["157321B","GILLET FREDERIC","ACAD. DE BILLARD DE SAINT-ETIENNE"]
["134037H","GILLON JEAN CLAUDE","BILLARD CLUB MOULINS"]
["149917D","GIRARD FREDERIC","BILLARD CLUB 8 POOL EVIAN"]
["163345Z","GIRARDON ROLAND","LA CARAMBOLE LISSILOISE"]
["124121X","GIRAUD JACQUES","CERCLE DES CHEFS D ATELIER"]
["167373C","GIRAUD MICHEL","ACADEMIE BILLARD OUEST LYONNAIS"]
["122780I","GIRAUD ROBERT","ACADEMIE BILLARD OUEST LYONNAIS"]
["124119V","GIROD GERARD","ACADEMIE BILLARD OUEST LYONNAIS"]
["134035F","GIRON STEPHANIE","B.S.CLERMONTOIS"]
["153957V","GODET PATRICK","ACADEMIE ANNECIENNE DE BILLARD"]
["164148X","GODINOT THIERRY","CERCLE DES CHEFS D ATELIER"]
["162474C","GOGORA JACKIE","BILLARD CLUB LYONNAIS 8 POOL"]
["147619F","GOLDBACH ERIC","ACADEMIE DE BILLARD D AUBENAS"]
["143533N","GONZALEZ BORIS","ACADEMIE BILLARD OUEST LYONNAIS"]
["153015W","GORLIER ROLAND","CERCLE DES CHEFS D ATELIER"]
["160444W","GOSTIAUX LUCIEN","CERCLE DES CHEFS D ATELIER"]
["151767P","GOSTIAUX MEZIANE","CERCLE DES CHEFS D ATELIER"]
["153303J","GOUBET LIONEL","ACADEMIE BILLARD OUEST LYONNAIS"]
["166547E","GOUJON VINCENT","BILLARD CLUB AMICALE CHAPELON"]
["107633T","GOURDIN MICHEL","CLUB OMNISPORTS DE SAINT FONS"]
["166800E","GOURION THOMAS","CERCLE DES CHEFS D ATELIER"]
["016318Q","GOUTALOY SYLVAIN","CERCLE DES CHEFS D ATELIER"]
["155903K","GOUTTE LYDIE","BILLARD CLUB PONTOIS"]
["159850A","GOYENETCHE STEPHANE","ACADEMIE DE BILLARD DE CHASSIEU"]
["165888N","GRAND MARGAUX","BILLARD CLUB LYONNAIS 8 POOL"]
["156718W","GRANGE JEAN PAUL","LE TAPIS VERT ROANNAIS"]
["122484Y","GRANGETTE JACQUES","ACADEMIE BILLARD OUEST LYONNAIS"]
["015731B","GRANJON CHRISTIAN","BILLARD CLUB PONTOIS"]
["138328I","GREGOIRE PHILIPPE","BILLARD CLUB ROMANAIS PEAGEOIS"]
["015778W","GREMAUD LAURENT","VALENCE BILLARD CLUB"]
["155129T","GRI ALEXANDRE","SAINT CHAMOND BILLARD CLUB"]
["159157X","GRIFFON GILLES","AMIC.SPOR.MONTMARAULTOISE BILLARD"]
["146269T","GRIMM PATRICK","ACADEMIE DE BILLARD DE LA VALSERINE"]
["145370E","GRIOT GILBERT","CLUB DE BILLARD MONTBRISONNAIS"]
["145231V","GROS ERIC","ASSOCIATION DU LAKE PUB 74"]
["137714S","GROS MARC","ACADEMIE BILLARD OUEST LYONNAIS"]
["150176K","GROS MARCEL","ACADEMIE DE BILLARD DE CHASSIEU"]
["143892I","GROSJEAN THIERRY","CLUB CHAMBERIEN DE BILLARD"]
["156507R","GRUET BERNARD","BILLARD CLUB ISSOIRE"]
["PS004871V","GUBIAND BENJAMIN","CLUB DE BILLARD MONTBRISONNAIS"]
["016410E","GUENET LAURENT","ACADEMIE BILLARD OUEST LYONNAIS"]
["010669J","GUIHEUX DENIS","BILLARD CLUB GRENOBLOIS"]
["105785R","GUILBAUD JEAN CLAUDE","BLACKBALL BILLARD CLUB BESAYES 26"]
["126661P","GUILHOT OLIVIER","CLUB CHAMBERIEN DE BILLARD"]
["145124S","GUILLAUMOND ALAIN","SAINT CHAMOND BILLARD CLUB"]
["122797Z","GUILLERMIN GILBERT","CLUB OMNISPORTS DE SAINT FONS"]
["157542R","GUIOT JEAN","AMICALE BILLARD CLUB DE DAVEZIEUX"]
["163507A","GUIRI BAHAEDDINE","BILLARD CLUB DE SAINT-GALMIER"]
["156663L","HAAS DOMINIQUE","BILLARD CLUB DE SAINT-GALMIER"]
["155834K","HAINAUT DAVID","BILLARD CLUB AIXOIS"]
["016294S","HALIMI SIMON","ACADEMIE DE BILLARD D AUBENAS"]
["145227R","HANNOU RACHID","BILLARD CLUB DE GAILLARD"]
["147113F","HANTZ MICHEL","BILLARD CLUB AIXOIS"]
["150748G","HAUET DOMINIQUE","ACADEMIE ANNECIENNE DE BILLARD"]
["119307T","HAYEM PATRICK","BILLARD CLUB MOULINS"]
["015926O","HEBERT ALAIN","BILLARD CLUB ROMANAIS PEAGEOIS"]
["166503G","HEDOUIN DOMINIQUE","LA CARAMBOLE LISSILOISE"]
["163670C","HEDOUIN HENRI","BILLARD CLUB AIXOIS"]
["015815H","HELIN ALAIN","BILLARD CLUB DE VILLEFRANCHE"]
["166937D","HENRY AGNES","CERCLE DES CHEFS D ATELIER"]
["137571F","HERREMAN FRANCOIS","LES SQUALES"]
["152190Z","HERRY MIREILLE","NIGHT BILLARD CLUB"]
["163677K","HERVY CHRISTIAN","ACADEMIE ANNECIENNE DE BILLARD"]
["137050E","HILAIRE JIMMY","ACADEMIE BILLARD OUEST LYONNAIS"]
["167312L","HISSETTE GILLES","CERCLE DES CHEFS D ATELIER"]
["142694G","HOGG JEAN CLAUDE","CLUB DE BILLARD MONTBRISONNAIS"]
["112520S","HONG LAMHONG ALEXANDRE","CLUB OMNISPORTS DE SAINT FONS"]
["100883D","HONG LAMHONG PIERRE","SAINT CHAMOND BILLARD CLUB"]
["153143K","HOSROFIAN EDMOND","CLUB OMNISPORTS DE SAINT FONS"]
["167541K","HOURLIER GILLES","ACADEMIE DE BILLARD DE CHASSIEU"]
["159168J","HUE PHILIPPE","BILLARD CLUB AIXOIS"]
["166995R","HUSCHARD LAURENT","BILLARD CLUB ALBERTVILLE"]
["166636B","HUSCHARD LOUIS","BILLARD CLUB ALBERTVILLE"]
["015717N","ICARD ANDRE","ACADEMIE DE BILLARD DE CHASSIEU"]
["166428A","IMBERT ELVIS","EIGHT'S POOL GAME"]
["160860Y","IMBERT EVEN","EIGHT'S POOL GAME"]
["137708M","IMBERT JEAN PAUL","LA CARAMBOLE LISSILOISE"]
["166630V","IMBERT MELVYN","EIGHT'S POOL GAME"]
["159700M","IMTIASZ ASHH","BILLARD CLUB LYONNAIS 8 POOL"]
["159866S","ISMALAJ YLBER","BILLARD CLUB 109"]
["146254E","JACOB BERNARD","CLUB CHAMBERIEN DE BILLARD"]
["119290C","JACOBERGER FABIEN","BILLARD CLUB VICHY"]
["102689P","JACOBY HENRIK","ASSOCIATION DU LAKE PUB 74"]
["163728Q","JACOULOT CHRISTIAN","ACADEMIE DE BILLARD DE CHASSIEU"]
["149406Y","JACQUEMART MICKAEL","VULCAIN 8 POOL"]
["166506K","JACQUEMIN ELISABETH","LA CARAMBOLE LISSILOISE"]
["120201D","JACQUEMOND OLIVIER","BILLARD CLUB DE SAINT-GALMIER"]
["164683D","JANIO ALAIN","GROUPE SPORTIF LUGDUNUM"]
["101069H","JANOIR ERIC","CERCLE BELLECOMBE DE LYON"]
["156124A","JAPIOT HUBERT","ACADEMIE DE BILLARD DE CHASSIEU"]
["015878S","JARDIN GERARD","BILLARD CLUB AIXOIS"]
["139455R","JARRET ANDRE","ACADEMIE DE BILLARD DE CHASSIEU"]
["159482A","JEANTET JEAN CLAUDE","ACADEMIE DE BILLARD DE LA VALSERINE"]
["167067V","JOCHEM OLIVIER","ACADEMIE BILLARD OUEST LYONNAIS"]
["136095L","JOFFRE MARC","AMICALE BILLARD CLUB DE DAVEZIEUX"]
["160742V","JOUBERT ERIC","BILLARD CLUB MONTLUCONNAIS"]
["163877C","JOUBERT LAURENCE","ACAD. DE BILLARD DE SAINT-ETIENNE"]
["166170V","JOUFFRAY HENRI","ACADEMIE DE BILLARD DE CHASSIEU"]
["101070I","JOUVE SAMUEL","CERCLE BELLECOMBE DE LYON"]
["163954L","JUILLET ALEXI","EIGHT'S POOL GAME"]
["141631J","JULLIAT GUILLAUME","AMICALE BILLARD CLUB DE DAVEZIEUX"]
["016161P","JULLIAT VINCENT","AMICALE BILLARD CLUB DE DAVEZIEUX"]
["166303P","JULLIEN NILS","BILLARD CLUB ROMANAIS PEAGEOIS"]
["147356V","JULLION ANDRE","AMICALE BILLARD CLUB DE DAVEZIEUX"]
["167288K","KAUFMANT VIVIANE","CLUB CHAMBERIEN DE BILLARD"]
["162803K","KEBE MAMADOU","VALENCE BILLARD CLUB"]
["142700M","KERLEAUX JEAN CLAUDE","BILLARD CLUB DE VILLEFRANCHE"]
["142184Q","KLEIN JEAN LUC","CLUB DE BILLARD MONTBRISONNAIS"]
["148984P","KLEIN STEPHANE","NIGHT BILLARD CLUB"]
["018158K","KNOSP THIERRY","CERCLE DES CHEFS D ATELIER"]
["127300E","KOCAURLU YAVUZ","ACADEMIE DE BILLARD DE CHASSIEU"]
["101020K","KOFFI JUSTHE","ACADEMIE ANNECIENNE DE BILLARD"]
["135452S","KONIECZNY FABRICE","CERCLE DES CHEFS D ATELIER"]
["165810D","KOOMEN PETRUS","BILLARD CLUB DE VILLEFRANCHE"]
["108508K","KOT OLIVIER","LE TAPIS VERT ROANNAIS"]
["146949C","KOWACKI JEAN PIERRE","BILLARD CLUB DE VILLEFRANCHE"]
["165968A","KROLL HENRI","BILLARD CLUB ROMANAIS PEAGEOIS"]
["162698W","KUHN JAMES","A.B. DE BOURGOIN-JALLIEU"]
["165334L","KUPKA BRUNO","B.S.CLERMONTOIS"]
["145123R","KURADJIAN ALAIN","SAINT CHAMOND BILLARD CLUB"]
["145614O","KURTZ RENE","BILLARD CLUB AIXOIS"]
["152914L","KUSAR HERVE","BILLARD CLUB DE CLARAFOND ARCINE"]
["155700P","KUSAR TONY","BILLARD CLUB DE CLARAFOND ARCINE"]
["016204G","LABEYE JEAN PIERRE","ACADEMIE BILLARD OUEST LYONNAIS"]
["163164C","LACAUX TAFFOUREAU STEPHANE","CERCLE DES CHEFS D ATELIER"]
["156918N","LACHAUX BERNARD","LE TAPIS VERT ROANNAIS"]
["011067R","LACOMBE JEAN MARIE","BILLARD CLUB ST ELOY"]
["157544T","LACONDAMINE MICHEL","AMICALE BILLARD CLUB DE DAVEZIEUX"]
["015732C","LACROIX DANIEL","ACADEMIE BILLARD OUEST LYONNAIS"]
["152192B","LACROIX DYLAN","NIGHT BILLARD CLUB"]
["126033L","LAFORET EDOUARD","ASSOCIATION DU LAKE PUB 74"]
["101427B","LAHAYE CEDRIC","BILLARD CLUB PONTOIS"]
["158191X","LAITHIER GERARD","CLUB CHAMBERIEN DE BILLARD"]
["112387P","LAIYADI NABIL","BLACKBALL BILLARD CLUB BESAYES 26"]
["164518Z","LAMBERT FREDERIC","VALENCE BILLARD CLUB"]
["135143V","LAMBIASE GIUSEPPE","BILLARD CLUB ROMANAIS PEAGEOIS"]
["159769M","LAMRANI MEHDI","BILLARD CLUB PONTOIS"]
["157556G","LANDAIS JEAN CLAUDE","BILLARD CLUB MOULINS"]
["166897K","LANSAQUE JEAN MARIE","BILLARD CLUB DE GAILLARD"]
["131651N","LAPORTE FRANCOIS","BILLARD CLUB MOULINS"]
["163735Y","LAPORTE VALENTIN","VULCAIN 8 POOL"]
["147485K","LARESE PATRICK","ACADEMIE DE BILLARD DE CHASSIEU"]
["023128O","LASOTA CLAUDE","B.S.CLERMONTOIS"]
["135589Z","LASSERON CYRIL","VULCAIN 8 POOL"]
["164684E","LATHUILE ALEXANDRE","GROUPE SPORTIF LUGDUNUM"]
["101047L","LATORRE ANDRE","LES SQUALES"]
["164145T","LATTARD LUCAS","LES SQUALES"]
["163316S","LAURENT DANIEL","CERCLE DES CHEFS D ATELIER"]
["015957T","LAURENT JEAN LUC","ACADEMIE DE BILLARD DE CHASSIEU"]
["015761F","LAURETTA JOSEPH","BILLARD CLUB GRENOBLOIS"]
["141637P","LAURIER GILLES","ACADEMIE BILLARD OUEST LYONNAIS"]
["128479N","LAVAUD JACQUES","LE TAPIS VERT ROANNAIS"]
["015733D","LAVAUD JEAN MICHEL","ACADEMIE BILLARD OUEST LYONNAIS"]
["159908N","LAVAURS BERNARD","ACADEMIE DE BILLARD DE LA VALSERINE"]
["119728Y","LAZEREG RADIL","LES SQUALES"]
["136272G","LE BRIS STEPHAN","BILLARD STELLA THONON"]
["160236V","LE GOFF THIERRY","NIGHT BILLARD CLUB"]
["166052R","LEBRE PHILIPPE","BILLARD CLUB ISSOIRE"]
["150752L","LECLERCQ MICHEL","ACADEMIE ANNECIENNE DE BILLARD"]
["137588W","LECONNETABLE CLAUDE","CLUB DE BILLARD MONTBRISONNAIS"]
["107510A","LECROIX FRANCIS","B.S.CLERMONTOIS"]
["010984M","LEFEBVRE SERGE","BILLARD CLUB MOULINS"]
["128967H","LEFRANCOIS KEVIN","VULCAIN 8 POOL"]
["022985B","LEGRON GILLES","ACADEMIE ANNECIENNE DE BILLARD"]
["137589X","LELOUP ALAIN","CLUB DE BILLARD MONTBRISONNAIS"]
["013561P","LEMAIRE ALBERT","BILLARD CLUB GRENOBLOIS"]
["145661J","LEPAGE PATRICK","VEYRE-MONTON BILLARD CLUB"]
["167057J","LEPERLIER BERNARD","ACADEMIE ANNECIENNE DE BILLARD"]
["145122Q","LEPETIT FRANCOIS","SAINT CHAMOND BILLARD CLUB"]
["101027R","LESKOVSEK LAURENT","LE BLACKBALL MARSANNAIS"]
["104690O","LESPAGNOL ERIC","VULCAIN 8 POOL"]
["122562Y","LESTRAT FRANCOIS","CERCLE DES CHEFS D ATELIER"]
["135922U","LETOURNEUR SEBASTIEN","BILLARD CLUB DE BOURG EN BRESSE"]
["156517C","LEVEQUE PAUL GABRIEL","CERCLE DES CHEFS D ATELIER"]
["142698K","LEVY ALAIN","BILLARD CLUB DE GAILLARD"]
["166618G","LEYNAUD VALENTIN","CLUB CHAMBERIEN DE BILLARD"]
["126050C","LHERMINIER THIERRY","BILLARD CLUB ALBERTVILLE"]
["160905X","LHOMME SYLVAIN","ACADEMIE DE BILLARD D AUBENAS"]
["150870P","LHUILLIER DANIEL","BILLARD CLUB PONTOIS"]
["167301Z","LIMBERTIE SIMON","VULCAIN 8 POOL"]
["112600U","LIVEBARDON SONIA","ACAD. DE BILLARD DE SAINT-ETIENNE"]
["100932A","LOBOS MALDONANO OMAR","BILLARD CLUB PONTOIS"]
["150253T","LOCCI OLIVIER","BILLARD CLUB 109"]
["134285V","LONGEREY CHRISTELLE","ACADEMIE ANNECIENNE DE BILLARD"]
["158255R","LOPES ANDRE","BILLARD CLUB 8 POOL EVIAN"]
["107358E","LORCA ALPHONSE","AMICALE BILLARD CLUB DE DAVEZIEUX"]
["016031P","LORON ANDRE","LE TAPIS VERT ROANNAIS"]
["016050I","LORON LOUIS","ACAD. DE BILLARD DE SAINT-ETIENNE"]
["124461Z","LORTHIOIS JOHN","BILLARD CLUB ISSOIRE"]
["154202L","LUJAN PIERRE","BILLARD CLUB ROMANAIS PEAGEOIS"]
["166769W","LUMINET ALEXANDRE","BILLARD CLUB DE SAINT-GALMIER"]
["163159X","LUPO VITO","CLUB CHAMBERIEN DE BILLARD"]
["166507L","LYET JEAN PAUL","LA CARAMBOLE LISSILOISE"]
["165971D","MABILLE DOMINIQUE","BILLARD CLUB ROMANAIS PEAGEOIS"]
["159910Q","MABON CELINE","CLUB OMNISPORTS DE SAINT FONS"]
["146266Q","MADEIRA FERNANDO","ACADEMIE DE BILLARD DE LA VALSERINE"]
["137611T","MAESTRI ROBERT","ACADEMIE ANNECIENNE DE BILLARD"]
["166125W","MAGDELAINE NICOLAS","ACADEMIE DE BILLARD D AUBENAS"]
["016205H","MAGNIN JEAN PIERRE","BILLARD CLUB PONTOIS"]
["147149V","MAILLARD RENE","BILLARD CLUB DE VILLEFRANCHE"]
["130621X","MAINGUET FELIX","BILLARD CLUB DE CLARAFOND ARCINE"]
["124575J","MAISONNEUVE LAURENT","BILLARD CLUB DE VILLEFRANCHE"]
["164355X","MAISONNIAL JEAN LUC","ACAD. DE BILLARD DE SAINT-ETIENNE"]
["147398Q","MAISSE ROBERT","AMICALE BILLARD CLUB DE DAVEZIEUX"]
["146950D","MAISSE ROBERT","BILLARD CLUB DE VILLEFRANCHE"]
["147110C","MALGOUYARD JEAN PIERRE","BILLARD CLUB AIXOIS"]
["157289R","MALIK HERVE","BILLARD CLUB DE LA PLAINE DU FOREZ"]
["160883Y","MALLET LANDRY","GROUPE SPORTIF LUGDUNUM"]
["015793L","MANDALLAZ GERARD","ACADEMIE ANNECIENNE DE BILLARD"]
["123195H","MANDONNET MAXIME","ASSOCIATION DU LAKE PUB 74"]
["135919R","MANDY NATHALIE","BILLARD CLUB DE BOURG EN BRESSE"]
["147525D","MANET DOMINIQUE","ASS. SPORTIVE MUNICIPALE ST ETIENNE"]
["016183L","MARCON ETIENNE","CERCLE DES CHEFS D ATELIER"]
["164144S","MARCON JEAN YVES","SAINT CHAMOND BILLARD CLUB"]
["137586U","MARECHAL JACQUES","CLUB DE BILLARD MONTBRISONNAIS"]
["144450U","MARIN GUY","BILLARD CLUB DE GAILLARD"]
["159842R","MARION GERARD","ACAD. DE BILLARD DE SAINT-ETIENNE"]
["112591L","MARION RENE","BILLARD CLUB MOULINS"]
["109013V","MARKADAS TITUS","ACADEMIE ANNECIENNE DE BILLARD"]
["146970A","MARLET PATRICK","ACADEMIE DE BILLARD DE LA VALSERINE"]
["142710W","MARLIER CHARLES","ACADEMIE DE BILLARD DE CHASSIEU"]
["155848A","MARLIER JEAN","ACADEMIE DE BILLARD DE CHASSIEU"]
["155164G","MARMET JEAN MARIE","ACADEMIE ANNECIENNE DE BILLARD"]
["016315N","MARMIESSE JEAN","CERCLE DES CHEFS D ATELIER"]
["159766J","MARON ALAIN","ACADEMIE DE BILLARD DE CHASSIEU"]
["146259J","MARTEL ALAIN","ACADEMIE BILLARD OUEST LYONNAIS"]
["166812S","MARTEL BENJAMIN","BLACKBALL CULOZIEN"]
["111359B","MARTELLONI GUY","ACADEMIE BILLARD OUEST LYONNAIS"]
["PS004872W","MARTIN CLEMENT","CLUB DE BILLARD MONTBRISONNAIS"]
["163512F","MARTIN JEAN PAUL","CERCLE DES CHEFS D ATELIER"]
["010985N","MARTIN OLIVIER","BILLARD CLUB ST ELOY"]
["164537V","MARTINET JEAN MARC","ACADEMIE BILLARD OUEST LYONNAIS"]
["166690K","MARTINEZ CHRISTOPHE","BILLARD CLUB DE LA PLAINE DU FOREZ"]
["165890Q","MARTINEZ JOSEPH","ACADEMIE DE BILLARD DE CHASSIEU"]
["153695K","MARTINEZ SERGE","ACADEMIE DE BILLARD DE CHASSIEU"]
["157879H","MARTINEZ YOANN","EIGHT'S POOL GAME"]
["160562Z","MARTRAIX GERARD","ACADEMIE ANNECIENNE DE BILLARD"]
["107411F","MASCLET ERIC","CERCLE BELLECOMBE DE LYON"]
["162524G","MASSELOT CEDRIC","BILLARD CLUB ISSOIRE"]
["120680O","MASSON ERIC","BILLARD CLUB PONTOIS"]
["016157L","MASSON JOEL","BILLARD CLUB SAINT ROMANAIS"]
["114585D","MATHIAS GERARD","CERCLE DES CHEFS D ATELIER"]
["014960K","MATHIEU YANNIC","VALENCE BILLARD CLUB"]
["100914I","MATHIOT PHILIPPE","ACADEMIE ANNECIENNE DE BILLARD"]
["101044I","MATRAS JEAN MARIE","BILLARD CLUB ROMANAIS PEAGEOIS"]
["143198Q","MAUBLANC HERVE","GROUPE SPORTIF LUGDUNUM"]
["156644Q","MAUCUIT CLAUDE","ACADEMIE DE BILLARD DE CHASSIEU"]
["163116A","MAUDUIT DAVID","BILLARD CLUB ROMANAIS PEAGEOIS"]
["167667X","MAURE STEPHANE","BILLARD CLUB DE BOURG EN BRESSE"]
["167374D","MAZOYER VALERIE","ACADEMIE BILLARD OUEST LYONNAIS"]
["147001J","MEDINA TOMAS","GROUPE SPORTIF LUGDUNUM"]
["PS004873X","MEJASSON LOGAN","CLUB DE BILLARD MONTBRISONNAIS"]
["130074W","MEJEAN JACQUES","ACAD. DE BILLARD DE SAINT-ETIENNE"]
["167794K","MELLADO KYLLIAN","LES SQUALES"]
["121499B","MENS THOMAS","VEYRE-MONTON BILLARD CLUB"]
["167376F","MERCE MICHEL","ACADEMIE BILLARD OUEST LYONNAIS"]
["167249S","MERCIER ANNE MARIE","ACADEMIE DE BILLARD DE LA VALSERINE"]
["PS004874Y","MERCIMEK OCEANE","CLUB DE BILLARD MONTBRISONNAIS"]
["167796M","MERINI LUCIENNE","ACADEMIE DE BILLARD DE LA VALSERINE"]
["147074N","MERLE JEAN FRANCOIS","GROUPE SPORTIF LUGDUNUM"]
["016484A","MERLE MICHEL","BILLARD CLUB DE VILLEFRANCHE"]
["100893N","MERMET JACQUES","CLUB CHAMBERIEN DE BILLARD"]
["103610A","MERMOZ THIERRY","VEYRE-MONTON BILLARD CLUB"]
["104740M","MERMOZ TONY","VEYRE-MONTON BILLARD CLUB"]
["133199B","MESNIER JEAN CLAUDE","ACADEMIE DE BILLARD DE LA VALSERINE"]
["145621V","MESTAS RAYMOND","ACADEMIE BILLARD OUEST LYONNAIS"]
["167847S","MEUNIER FRANCK","BILLARD CLUB DE SAINT-GALMIER"]
["015816I","MEUNIER MARC","BILLARD CLUB DE VILLEFRANCHE"]
["129017F","MEUNIER PHILIPPE","BILLARD CLUB VICHY"]
["153560N","MEURISSE JACQUES","BILLARD CLUB GRENOBLOIS"]
["015735F","MEVEL HERVE","CERCLE DES CHEFS D ATELIER"]
["160174C","MICHAUD LUC","BILLARD CLUB DE BOURG EN BRESSE"]
["153538P","MICHEL DENIS","CLUB CHAMBERIEN DE BILLARD"]
["010960O","MIDROUILLET PATRICK","BILLARD CLUB MONTLUCONNAIS"]
["016352Y","MIKDAD ALI MOHAMMED","CERCLE DES CHEFS D ATELIER"]
["154733N","MILLET MAURICE","CERCLE DES CHEFS D ATELIER"]
["013745R","MILLET RAYMOND","BILLARD CLUB ROMANAIS PEAGEOIS"]
["016433B","MINACORI JULIEN","CERCLE DES CHEFS D ATELIER"]
["157326G","MINARDI ALAIN","GROUPE SPORTIF LUGDUNUM"]
["153351L","MIRONNEAU ERIC","BILLARD CLUB ST ELOY"]
["166637C","MISCHLER BORIS","EIGHT'S POOL GAME"]
["119308U","MITEAU MICHEL","BILLARD CLUB MOULINS"]
["164685F","MIVIERE BERNARD","GROUPE SPORTIF LUGDUNUM"]
["011049Z","MOINE ROBERT","B.S.CLERMONTOIS"]
["015779X","MOLIERE JEAN PAUL","VALENCE BILLARD CLUB"]
["167270Q","MOLIKA KHOON","BILLARD CLUB LYONNAIS 8 POOL"]
["101029T","MOLLE ALBAN","LES SQUALES"]
["167375E","MONET ANDRE","ACADEMIE BILLARD OUEST LYONNAIS"]
["124587V","MONIER BERNARD","LE TAPIS VERT ROANNAIS"]
["138180Q","MONNERET MARC","BILLARD CLUB DE VILLEFRANCHE"]
["123794I","MONNEYRAC KEVIN","BILLARD CLUB DE GAILLARD"]
["166366H","MONTAGNON GERARD","AMICALE LAIQUE RICAMARIE"]
["119309V","MONTARON MAURICE","BILLARD CLUB MOULINS"]
["016109P","MONTEL MAURICE","BILLARD CLUB SAINT ROMANAIS"]
["159798T","MONTILLET JEAN CLAUDE","ACADEMIE DE BILLARD DE CHASSIEU"]
["143894K","MONTMAYEUR FRANCOIS","CHARLEMAGNE SNOOKER CLUB"]
["149875H","MONTPELLIER BRUNO","BILLARD CLUB 8 POOL EVIAN"]
["167246P","MORAINVILLE HERVE","ACADEMIE DE BILLARD DE HAUTE LOIRE"]
["159951K","MOREAUX PATRICE","ACADEMIE ANNECIENNE DE BILLARD"]
["159263M","MOREIRA ALBERTO","VEYRE-MONTON BILLARD CLUB"]
["162200E","MOREIRA LEONARDO","VEYRE-MONTON BILLARD CLUB"]
["150953E","MOREL FLORENT","BILLARD CLUB DE CLARAFOND ARCINE"]
["152633F","MOREL SYLVAIN","NIGHT BILLARD CLUB"]
["156145Y","MORET GERARD","BILLARD CLUB DE VILLEFRANCHE"]
["126041T","MORIN ANTHONY","BILLARD CLUB 109"]
["165973F","MORINI MARCEL","BILLARD CLUB ROMANAIS PEAGEOIS"]
["166217W","MORIZET SEBASTIEN","BILLARD CLUB ISSOIRE"]
["135928A","MORLIN GUY","CLUB DE BILLARD MONTBRISONNAIS"]
["PS004878C","MORNAND PABLO","CLUB DE BILLARD MONTBRISONNAIS"]
["013791L","MORNIE LAURENT","VALENCE BILLARD CLUB"]
["166949R","MORTELLIER MURIELLE","BILLARD CLUB MOULINS"]
["119786E","MOSSE PAUL","ACADEMIE BILLARD OUEST LYONNAIS"]
["137576K","MOUGIN NICOLAS","BILLARD CLUB 109"]
["163262J","MOUGIN PIERRE","ACADEMIE DE BILLARD DE CHASSIEU"]
["129872C","MOULARD ANDRE","BILLARD CLUB DE LA PLAINE DU FOREZ"]
["016168W","MOUNIER ARMAND","CLUB DE BILLARD MONTBRISONNAIS"]
["144945V","MOUTMIR HAMZA","VEYRE-MONTON BILLARD CLUB"]
["157225X","MOUTON ALAIN","CERCLE DES CHEFS D ATELIER"]
["153142J","MULA ANTOINE","CLUB OMNISPORTS DE SAINT FONS"]
["122566C","MULLER SYLVAIN","CHARLEMAGNE SNOOKER CLUB"]
["139035N","MUNOZ ROMAIN","CLUB CHAMBERIEN DE BILLARD"]
["104678C","MURANTE SYLVIO","BILLARD CLUB 8 POOL EVIAN"]
["103682U","MUSSET OLIVIER","BILLARD CLUB PONTOIS"]
["015851R","MUZEAU PATRICK","BILLARD CLUB ROMANAIS PEAGEOIS"]
["167379J","NACCACHE NATHAN","ACADEMIE BILLARD OUEST LYONNAIS"]
["167380K","NACCACHE OLIVIER","ACADEMIE BILLARD OUEST LYONNAIS"]
["167096B","NACIRI NABIL","ACADEMIE DE BILLARD D AUBENAS"]
["151982Y","NARJOUX MICHEL","ACADEMIE BILLARD OUEST LYONNAIS"]
["162464R","NAVEL ANGELIQUE","BILLARD CLUB PONTOIS"]
["PS004877B","NAYME LOGAN","CLUB DE BILLARD MONTBRISONNAIS"]
["101038C","NEBOIT OLIVIER","LE BLACKBALL MARSANNAIS"]
["137273T","NEIMER JOELLE","BILLARD CLUB DE GAILLARD"]
["150632F","NGAMENI ANACLET","BILLARD CLUB AMICALE CHAPELON"]
["138325F","NGUYEN MICHEL","NIGHT BILLARD CLUB"]
["107707P","NICOLAS PIERRE","BILLARD CLUB GRENOBLOIS"]
["164514V","NICOLE CHRISTOPHE","VALENCE BILLARD CLUB"]
["149690G","NOEL ROLAND","ACADEMIE DE BILLARD DE LA VALSERINE"]
["122508W","NOEL THIERRY","CLUB CHAMBERIEN DE BILLARD"]
["166417N","NOURRY AXEL","CLUB CHAMBERIEN DE BILLARD"]
["138323D","OBERDIEDER MATHIEU","LES SQUALES"]
["117673X","ODOUARD DANIEL","BILLARD CLUB ROMANAIS PEAGEOIS"]
["147707B","OGIER STEPHANE","CHARLEMAGNE SNOOKER CLUB"]
["167247Q","OLLIET PASCAL","ACADEMIE DE BILLARD DE LA VALSERINE"]
["167248R","OLLIET PATRICIA","ACADEMIE DE BILLARD DE LA VALSERINE"]
["143526G","OLLIVIER FRANCK","LE TAPIS VERT ROANNAIS"]
["155904L","ORENES LERMA JACKY","BILLARD CLUB PONTOIS"]
["165120D","OSTERNAUD JEAN JACQUES","ACADEMIE ANNECIENNE DE BILLARD"]
["138986Q","OTHMANI SAIF EDDINE","BILLARD CLUB LYONNAIS 8 POOL"]
["124310E","OUZEAU VINCENT","CLUB CHAMBERIEN DE BILLARD"]
["119127V","OX KOSTA","ACADEMIE DE BILLARD D AUBENAS"]
["162867E","OYONARTE GERARD","BILLARD CLUB ROMANAIS PEAGEOIS"]
["011051B","PACE MICHEL","B.S.CLERMONTOIS"]
["165923B","PADROS FREDERIC","BILLARD CLUB LYONNAIS 8 POOL"]
["116718E","PALETTE FABRICE","BILLARD CLUB 109"]
["015956S","PALOMBO ENZO","ACADEMIE DE BILLARD DE CHASSIEU"]
["101010A","PANTEL BERNARD","A.B. DE BOURGOIN-JALLIEU"]
["163046Z","PAPET PATRICK","ACADEMIE DE BILLARD DE CHASSIEU"]
["153572B","PAPILLON EMILIE","VALENCE BILLARD CLUB"]
["107365L","PAPILLON FREDERIC","VALENCE BILLARD CLUB"]
["119744O","PAPIN LAETITIA","LE BLACKBALL MARSANNAIS"]
["106475F","PAQUIER CHARLES","BILLARD CLUB GRENOBLOIS"]
["166237S","PAQUIER SILVERE","BILLARD CLUB GRENOBLOIS"]
["102280W","PASTOR BRUNO","BILLARD CLUB DE GAILLARD"]
["116303F","PATTY ALAIN","ACADEMIE ANNECIENNE DE BILLARD"]
["155907P","PAUFIQUE JEAN PAUL","GROUPE SPORTIF LUGDUNUM"]
["165954K","PAUGER JEAN LOUIS","BILLARD CLUB AIXOIS"]
["150007B","PAUVERT JEAN LOUIS","BILLARD CLUB ROMANAIS PEAGEOIS"]
["127241X","PEDAT CHRISTELLE","BILLARD CLUB 8 POOL EVIAN"]
["162930Y","PEDROTTI LIONEL","BILLARD CLUB ROMANAIS PEAGEOIS"]
["113890K","PENDZIALEK CHRISTIAN","BILLARD STELLA THONON"]
["153046E","PENNEC JEAN CLAUDE","CERCLE DES CHEFS D ATELIER"]
["144307H","PEREJON FAUSTINO","BILLARD CLUB 8 POOL EVIAN"]
["015936Y","PERES CLAUDE","BILLARD CLUB DE SAINT-GALMIER"]
["124581P","PEREZ RAYMOND","CHARLEMAGNE SNOOKER CLUB"]
["164515W","PERICAUD MARISETTE","VALENCE BILLARD CLUB"]
["157347E","PERICAUD ROLAND","VALENCE BILLARD CLUB"]
["148472H","PERILLAT WEIBERG PATRICIA","ACADEMIE BILLARD OUEST LYONNAIS"]
["139580M","PERILLAT YVES","ACADEMIE BILLARD OUEST LYONNAIS"]
["145636K","PERRET OLIVIER","CLUB DE BILLARD MONTBRISONNAIS"]
["015952O","PERRET PHILIPPE","ACADEMIE ANNECIENNE DE BILLARD"]
["145631F","PERRET RICHARD","CLUB DE BILLARD MONTBRISONNAIS"]
["152573Q","PERRIER GERARD","SAINT CHAMOND BILLARD CLUB"]
["016459B","PERROUX DENIS","LA CARAMBOLE LISSILOISE"]
["139579L","PERSON JEAN PIERRE","CERCLE DES CHEFS D ATELIER"]
["163132S","PERUS ERIC ALAIN","LES SQUALES"]
["016075H","PETIT RENE","ACAD. DE BILLARD DE SAINT-ETIENNE"]
["163264L","PEYREAUD DENIS","BILLARD STELLA THONON"]
["145225P","PEYRET MARCEL","ACADEMIE ANNECIENNE DE BILLARD"]
["160979C","PFIRSCH MARTINE","ACADEMIE BILLARD OUEST LYONNAIS"]
["138176M","PHILIBERT GEORGES","BILLARD CLUB DE SAINT-GALMIER"]
["146311J","PHILIPPON FRANCOIS","CERCLE DES CHEFS D ATELIER"]
["153152V","PHONGSY PHOXAY","BILLARD CLUB LYONNAIS 8 POOL"]
["010991T","PICANDET RENE","BILLARD CLUB ST ELOY"]
["127269Z","PICKETT THOMAS","ASSOCIATION DU LAKE PUB 74"]
["152571N","PIGEOL JEROME","VULCAIN 8 POOL"]
["166265Y","PIGNET BAPTISTE","BILLARD CLUB DE CLARAFOND ARCINE"]
["145348I","PILLOT VINCENT","BILLARD CLUB PONTOIS"]
["112468S","PINET FRANCOIS","BILLARD CLUB ROMANAIS PEAGEOIS"]
["167670A","PIRES VINCENT","BILLARD CLUB DE BOURG EN BRESSE"]
["159584L","PLAT PIERRICK","CLUB DE BILLARD MONTBRISONNAIS"]
["158064J","PLOTON ELIANE","SAINT CHAMOND BILLARD CLUB"]
["015895J","PLUVINAGE JEAN CLAUDE","BILLARD STELLA THONON"]
["145374I","POCHON JACQUES","BILLARD CLUB ROMANAIS PEAGEOIS"]
["106254S","POCINHO MARIO","BILLARD CLUB 109"]
["141348M","PODESZWA GHISLAIN","ACADEMIE BILLARD OUEST LYONNAIS"]
["140818C","POGGI GERARD","BILLARD CLUB ROMANAIS PEAGEOIS"]
["153780C","POIROT THOMAS","BILLARD CLUB ROMANAIS PEAGEOIS"]
["100936E","POIX JEAN LUDOVIC","BILLARD CLUB PONTOIS"]
["127284O","POIZAT JEAN CLAUDE","ACADEMIE BILLARD OUEST LYONNAIS"]
["167126J","POLLIN FAURE ALEXANDRE","B.S.CLERMONTOIS"]
["154624V","POMMIER LUDOVIC","ACADEMIE DE BILLARD DE CHASSIEU"]
["015119N","PONCET FRANCIS","BILLARD CLUB PONTOIS"]
["162964K","PONCET ROBERT","SAINT CHAMOND BILLARD CLUB"]
["161322A","PONTONNIER ANNIE","ACADEMIE ANNECIENNE DE BILLARD"]
["143194M","PONTONNIER REMY","ACADEMIE ANNECIENNE DE BILLARD"]
["011061L","PONTRUCHER PIERRE RICHARD","B.S.CLERMONTOIS"]
["132949L","PORTUGUES RICHARD","ACADEMIE DE BILLARD DE CHASSIEU"]
["131278E","POTIQUET SEBASTIEN","BILLARD CLUB DE BOURG EN BRESSE"]
["117801V","POULALIER PAUL","LE TAPIS VERT ROANNAIS"]
["166555N","POULARD EMMANUEL","LES SQUALES"]
["146252C","POULY ANTOINE","CLUB CHAMBERIEN DE BILLARD"]
["112505D","POUPON MICHEL","ACADEMIE ANNECIENNE DE BILLARD"]
["130058G","POZZANI CEDRIC","BILLARD CLUB AIXOIS"]
["101033X","PRAL LAURENT","VEYRE-MONTON BILLARD CLUB"]
["166554M","PRAL NINA","LES SQUALES"]
["016393N","PREBET DANIELLE","BILLARD CLUB AMICALE CHAPELON"]
["156025S","PRESSIAT PATRICK","ACADEMIE DE BILLARD DE CHASSIEU"]
["015351L","PREVOST BERNARD","ACADEMIE BILLARD OUEST LYONNAIS"]
["163244P","PREVOST PATRICK","BILLARD CLUB MONTLUCONNAIS"]
["016498O","PREYNAT MAURICE","ACAD. DE BILLARD DE SAINT-ETIENNE"]
["016255F","PRIVAT PAUL","ACADEMIE DE BILLARD D AUBENAS"]
["015944G","PRUVOST JEAN LOUIS","CLUB OMNISPORTS DE SAINT FONS"]
["154625W","QUENOT PATRICK","ACADEMIE DE BILLARD DE CHASSIEU"]
["153955S","QUOTUREL MICHEL","ACADEMIE ANNECIENNE DE BILLARD"]
["164191T","RACHEL BOISGIBAULT","ACADEMIE BILLARD OUEST LYONNAIS"]
["153571A","RACHON CHRISTIAN","VALENCE BILLARD CLUB"]
["160595K","RAMBEAU PHILIPPE","ASS. SPORTIVE MUNICIPALE ST ETIENNE"]
["159822V","RAMOND VANESSA","VULCAIN 8 POOL"]
["140565J","RANCHON BERNARD","ASS. SPORTIVE MUNICIPALE ST ETIENNE"]
["130075X","RASCLE PIERRE","ACAD. DE BILLARD DE SAINT-ETIENNE"]
["150693X","RAUNET PASCALE","CERCLE DES CHEFS D ATELIER"]
["150948Z","RAY VINCENT","BILLARD CLUB DE CLARAFOND ARCINE"]
["130103Z","RAYMOND DENIS","BILLARD CLUB DE GAILLARD"]
["129888S","RAYMOND SERGE","ACADEMIE DE BILLARD DE HAUTE LOIRE"]
["149786L","REBBOH LOUIS","CLUB DE BILLARD MONTBRISONNAIS"]
["166508M","REBOUL MARIE CLAIRE","LA CARAMBOLE LISSILOISE"]
["166509N","REBOUL PATRICK","LA CARAMBOLE LISSILOISE"]
["PS004123G","REBOUX BAPTISTE","CLUB DE BILLARD MONTBRISONNAIS"]
["152167Z","REDON VALERIE","NIGHT BILLARD CLUB"]
["153783F","REFASSI ABDELGHANI","BILLARD CLUB ROMANAIS PEAGEOIS"]
["107514E","REIS COELHO FERNANDO","B.S.CLERMONTOIS"]
["100917L","REMISE PIERRE","ACADEMIE ANNECIENNE DE BILLARD"]
["165974G","RENARD DIMITRI","BILLARD CLUB ROMANAIS PEAGEOIS"]
["132958U","RENAUT DIDIER","CLUB OMNISPORTS DE SAINT FONS"]
["PS004875Z","RENIEZ MYRIAM","CLUB DE BILLARD MONTBRISONNAIS"]
["129062Y","RENNESSON RICHARD","BILLARD CLUB ROMANAIS PEAGEOIS"]
["135804G","REPLUMAZ FREDERIC","BILLARD CLUB ROMANAIS PEAGEOIS"]
["167789E","RESSEGAIRE CANDICE","EIGHT'S POOL GAME"]
["166950S","REVENIAUD BRUNO","BILLARD CLUB MOULINS"]
["158193Z","REVERCHON BERNARD","CLUB CHAMBERIEN DE BILLARD"]
["145972I","REY STEPHANE","AMICALE LAIQUE RICAMARIE"]
["145618S","REYMOND PIERRE","CLUB CHAMBERIEN DE BILLARD"]
["103512G","REYNE PHILIPPE","ACADEMIE DE BILLARD DE CHASSIEU"]
["016475R","RIBES MAURICE","AMICALE BILLARD CLUB DE DAVEZIEUX"]
["145358S","RICCOBENE MAXIME","BILLARD CLUB DE LA PLAINE DU FOREZ"]
["159121H","RICHET MORGAN","VULCAIN 8 POOL"]
["155134Z","RICHIER ROGER","SAINT CHAMOND BILLARD CLUB"]
["107702K","RIMLINGER MARC","CERCLE BELLECOMBE DE LYON"]
["015879T","RIONDEL RENE","BILLARD CLUB GRENOBLOIS"]
["136090G","RIVATON PHILIPPE","BILLARD CLUB DE SAINT-GALMIER"]
["156431J","RIVOLIER EMILE","LE TAPIS VERT ROANNAIS"]
["167791G","RIZZA MAGALI","EIGHT'S POOL GAME"]
["124571F","ROBERT DENIS","ACADEMIE DE BILLARD DE HAUTE LOIRE"]
["163038Q","ROBERT HENRY","B.S.CLERMONTOIS"]
["166510P","ROBERT PIERRE","LA CARAMBOLE LISSILOISE"]
["016202E","ROBERTON PIERRE","GROUPE SPORTIF LUGDUNUM"]
["140694I","ROBEZ FLORENT","NIGHT BILLARD CLUB"]
["156609C","ROBIN GREGORY","ACADEMIE DE BILLARD DE CHASSIEU"]
["166416M","ROBIN JEAN FRANCOIS","CLUB CHAMBERIEN DE BILLARD"]
["164275K","ROCCI BERNARD","CLUB CHAMBERIEN DE BILLARD"]
["107357D","ROCHE GUY","AMICALE BILLARD CLUB DE DAVEZIEUX"]
["121509L","RODDIER PATRICK","B.S.CLERMONTOIS"]
["122802E","RODRIGUEZ STEPHANIE","BILLARD CLUB 109"]
["011005H","ROESCH PHILIPPE","B.S.CLERMONTOIS"]
["157067A","ROIG MICHEL","ACADEMIE DE BILLARD D AUBENAS"]
["145118M","ROLET LILIAN","BILLARD CLUB LYONNAIS 8 POOL"]
["119753X","ROLHION DANIEL","ACADEMIE DE BILLARD DE HAUTE LOIRE"]
["140791B","ROMAND ALAIN","ACADEMIE ANNECIENNE DE BILLARD"]
["127378E","ROPARS PATRICK","A.B. DE BOURGOIN-JALLIEU"]
["132526E","ROQUES ALAIN","ACADEMIE BILLARD OUEST LYONNAIS"]
["160186Q","ROSENBERGER MAIA","CERCLE DES CHEFS D ATELIER"]
["128682I","ROSETTE THIBAUT","BILLARD CLUB LYONNAIS 8 POOL"]
["160698X","ROUGET DANIEL","ACADEMIE DE BILLARD DE LA VALSERINE"]
["151374M","ROURE CEDRIC","CERCLE DES CHEFS D ATELIER"]
["142699L","ROUSSEL CHRISTOPHE","BILLARD CLUB DE VILLEFRANCHE"]
["155685Y","ROUSSELOT JEAN MARC","ACADEMIE ANNECIENNE DE BILLARD"]
["100942K","ROUX JULIEN","BILLARD CLUB 109"]
["158738R","ROYET THOMAS","SAINT CHAMOND BILLARD CLUB"]
["166996S","RUBAUD PAUL","CLUB CHAMBERIEN DE BILLARD"]
["157789K","RUFFET FREDERIC","B.S.CLERMONTOIS"]
["101628U","RUSSO MANUEL","BILLARD CLUB DE BOURG EN BRESSE"]
["114964S","RUZ SEBASTIEN","CERCLE BELLECOMBE DE LYON"]
["162465S","RYBAK RAPHAEL","VULCAIN 8 POOL"]
["016430Y","SABATIER ROLAND","ASS. SPORTIVE MUNICIPALE ST ETIENNE"]
["016301Z","SABOT MICHAEL","CLUB DE BILLARD MONTBRISONNAIS"]
["119751V","SABY FREDERIC","BILLARD CLUB DE GAILLARD"]
["154425D","SABY JANA","CERCLE DES CHEFS D ATELIER"]
["165152N","SABY LIAM","CERCLE DES CHEFS D ATELIER"]
["167232Z","SADDIKI AKRAM","VULCAIN 8 POOL"]
["015832Y","SAILLANT PHILIPPE","CERCLE DES CHEFS D ATELIER"]
["167586J","SAINT CYR HUGO","ACADEMIE DE BILLARD DE LA VALSERINE"]
["122795X","SAMBEAT JEAN CLAUDE","CLUB CHAMBERIEN DE BILLARD"]
["011016S","SANCHEZ CHRISTIAN","BILLARD CLUB VICHY"]
["015924M","SANTI SERGE","BILLARD STELLA THONON"]
["107511B","SANVOISIN CHRISTIAN","BILLARD CLUB MOULINS"]
["157261L","SAPOUMTZOGLOU ACHILLE","ACADEMIE BILLARD OUEST LYONNAIS"]
["165235D","SARAZIN LOUIS PIERRE","AMICALE BILLARD CLUB DE DAVEZIEUX"]
["143028C","SARIAN PIERRE","ACADEMIE DE BILLARD D AUBENAS"]
["153597D","SAUZON MARC","BILLARD CLUB ROMANAIS PEAGEOIS"]
["015357R","SAVOLDELLI RENE","BILLARD CLUB SAINT ROMANAIS"]
["127551V","SAVONET VALERIE","LES SQUALES"]
["167058K","SCHAEFFER MARC","ACADEMIE ANNECIENNE DE BILLARD"]
["130083F","SCHAFFRAN CLAUDE","CERCLE DES CHEFS D ATELIER"]
["154058E","SCHAFFRAN SEBASTIEN","CERCLE DES CHEFS D ATELIER"]
["139212I","SCHMIT ALEXANDRE","CERCLE DES CHEFS D ATELIER"]
["164924Q","SCHOCH JEAN MARIE","VALENCE BILLARD CLUB"]
["163317T","SCHOCK ALAIN","CERCLE DES CHEFS D ATELIER"]
["121543T","SCHREIBER ROBERT","LE TAPIS VERT ROANNAIS"]
["125596Q","SCHUPPERT JEAN LOUIS","A.B. DE BOURGOIN-JALLIEU"]
["143525F","SCILY GERARD","LE TAPIS VERT ROANNAIS"]
["110146K","SEAN YOU SENG","BILLARD CLUB LYONNAIS 8 POOL"]
["154081E","SEMMAR MHAMMED","BLACKBALL BILLARD CLUB BESAYES 26"]
["147132B","SERAYET FREDERIC","AMICALE LAIQUE RICAMARIE"]
["167457T","SI HADJ MOHAND SLIMANE","ACAD. DE BILLARD DE SAINT-ETIENNE"]
["PS004868R","SIAS ARTHUR","CLUB DE BILLARD MONTBRISONNAIS"]
["156280V","SIBELLIN GERARD","ACADEMIE DE BILLARD DE CHASSIEU"]
["107416K","SIEMECK PASCAL","BILLARD CLUB LYONNAIS 8 POOL"]
["155850C","SIERRA JUAN","ACADEMIE DE BILLARD DE CHASSIEU"]
["149995N","SILLANS PATRICK","CERCLE DES CHEFS D ATELIER"]
["163544Q","SILVESTRE JEAN PAUL","CLUB CHAMBERIEN DE BILLARD"]
["101011B","SIMON ROBERT","A.B. DE BOURGOIN-JALLIEU"]
["011120S","SIVADE GERARD","AMIC.SPOR.MONTMARAULTOISE BILLARD"]
["110008C","SKNOEZECK YVAN","VULCAIN 8 POOL"]
["136673R","SNOUSSI EZZEDINE","ACADEMIE DE BILLARD D AUBENAS"]
["157214K","SOCKEEL AURORE","DEVIL'S POOL CLUB"]
["159065X","SOCKEEL MARIE PIERRE","DEVIL'S POOL CLUB"]
["159064W","SOCKEEL YANNICK","DEVIL'S POOL CLUB"]
["142707T","SOEHNLEN BRUNO","ACADEMIE ANNECIENNE DE BILLARD"]
["015966C","SOLA ALBERT","LE TAPIS VERT ROANNAIS"]
["162609Z","SOMVEILLE DOMINIQUE","CLUB CHAMBERIEN DE BILLARD"]
["153573C","SONNES JACQUES","VALENCE BILLARD CLUB"]
["156252P","SOPIC MYRIAM","NIGHT BILLARD CLUB"]
["128998M","SOPIC NICOLAS","NIGHT BILLARD CLUB"]
["153543V","SORU IGNACIO","CLUB CHAMBERIEN DE BILLARD"]
["138317X","SOULIER DANIEL","ACAD. DE BILLARD DE SAINT-ETIENNE"]
["016058Q","SOURBE HENRI","BILLARD STELLA THONON"]
["153073J","SPANGENBERG ALAIN","BILLARD CLUB GRENOBLOIS"]
["155793Q","SRUTEK GREG","VULCAIN 8 POOL"]
["165321X","STEENHAUT CLEMENTINE","EIGHT'S POOL GAME"]
["158168X","SUARD FRANCOISE","BILLARD STELLA THONON"]
["136039H","SUCHAUT ANTOINE","CLUB DE BILLARD MONTBRISONNAIS"]
["138185V","SUCHAUT THIERRY","SAINT CHAMOND BILLARD CLUB"]
["156581X","SUDARA BRUNO","CLUB CHAMBERIEN DE BILLARD"]
["153122M","SURY GABRIEL","CLUB DE BILLARD MONTBRISONNAIS"]
["126321N","TACHOIRE ADRIEN","ACADEMIE ANNECIENNE DE BILLARD"]
["142807P","TALEB AMINE","VEYRE-MONTON BILLARD CLUB"]
["157200V","TALLON JEAN CLAUDE","BILLARD CLUB MONTLUCONNAIS"]
["167255Z","TAPIE DE CELEYRAN CYRIL","CHARLEMAGNE SNOOKER CLUB"]
["152852T","TARTARIN MICHEL","BILLARD CLUB DE GAILLARD"]
["101079R","TASCA ANDRE","BILLARD CLUB 109"]
["156368Q","TASSET JEROME","CLUB CHAMBERIEN DE BILLARD"]
["015854U","TATIER ERIC","VALENCE BILLARD CLUB"]
["117797R","TAVERNA DANIEL","BILLARD CLUB GRENOBLOIS"]
["128999N","TEBBANI AZIZ","NIGHT BILLARD CLUB"]
["164859V","TERMOZ ROBERT","LA CARAMBOLE LISSILOISE"]
["159649G","TERNOY PASCAL","BILLARD CLUB GRENOBLOIS"]
["100899T","TERRADE MARC","BILLARD CLUB DE LA PLAINE DU FOREZ"]
["160782N","TESTUD FABIAN","LES SQUALES"]
["159858J","THANH TRAN","BILLARD CLUB ALBERTVILLE"]
["154976C","THIERION DIDIER","CERCLE DES CHEFS D ATELIER"]
["146111R","THINON JEROME","ACADEMIE DE BILLARD D AUBENAS"]
["157148N","THIOT PHILIPPE","BILLARD CLUB GRENOBLOIS"]
["162873L","THIVOLLE CECILE","BILLARD CLUB ROMANAIS PEAGEOIS"]
["162874M","THIVOLLE JEAN LOUIS","BILLARD CLUB ROMANAIS PEAGEOIS"]
["116713Z","THONG A LOC","BILLARD CLUB LYONNAIS 8 POOL"]
["164150Z","TIOLLIER BRUNO","ACADEMIE BILLARD OUEST LYONNAIS"]
["127380G","TISSOT ROGER","LE TAPIS VERT ROANNAIS"]
["130055D","TOBAILEM THIERRY","BILLARD CLUB DE SAINT-GALMIER"]
["167363R","TOGNET FREDERICK","CLUB CHAMBERIEN DE BILLARD"]
["167364S","TOGNET TRISTAN","CLUB CHAMBERIEN DE BILLARD"]
["016480W","TOME ERIC","BILLARD CLUB AMICALE CHAPELON"]
["166264X","TORNIER JORDAN","BILLARD CLUB DE CLARAFOND ARCINE"]
["167585H","TORNIER ROMAIN","ACADEMIE DE BILLARD DE LA VALSERINE"]
["162870H","TOURAINE PATRICE","BILLARD CLUB ROMANAIS PEAGEOIS"]
["153958W","TOURNU GERARD","ACADEMIE ANNECIENNE DE BILLARD"]
["152028Y","TRABICHET CHRISTOPHE","BILLARD CLUB 8 POOL EVIAN"]
["017812C","TRAGIN LAURENT","BILLARD CLUB PONTOIS"]
["162070N","TRIPLET FREDERIC","CLUB CHAMBERIEN DE BILLARD"]
["137228A","TROQUET BERNARD","CLUB CHAMBERIEN DE BILLARD"]
["158002R","TROTEMANN PIERRE","VALENCE BILLARD CLUB"]
["152601W","TRUANT SEBASTIEN","CERCLE DES CHEFS D ATELIER"]
["101056U","TSAN SAP NHI","BILLARD CLUB LYONNAIS 8 POOL"]
["107037V","TURCAN FREDERIC","BILLARD CLUB ROMANAIS PEAGEOIS"]
["167065S","TURGEON ALAIN","CERCLE DES CHEFS D ATELIER"]
["016355B","TUZZOLINO CLAUDE","CERCLE DES CHEFS D ATELIER"]
["138326G","URAY JIMMY","NIGHT BILLARD CLUB"]
["136036E","URICA GERARD","ACADEMIE ANNECIENNE DE BILLARD"]
["160749C","VACHER JEAN CLAUDE","BILLARD CLUB DE SAINT-GALMIER"]
["158166V","VACHERAND JEAN PIERRE","BILLARD STELLA THONON"]
["143251R","VACOSSIN NICOLAS","VEYRE-MONTON BILLARD CLUB"]
["149397N","VACUS KEVIN","VEYRE-MONTON BILLARD CLUB"]
["136251L","VADILLO CORENTIN","BLACKBALL BILLARD CLUB BESAYES 26"]
["137569D","VADILLO LAURENT","BLACKBALL BILLARD CLUB BESAYES 26"]
["145516U","VALENTIN JEAN MARC","ACAD. DE BILLARD DE SAINT-ETIENNE"]
["016053L","VALLAT DANIEL","ACAD. DE BILLARD DE SAINT-ETIENNE"]
["149954T","VALLIN GERARD","AMICALE BILLARD CLUB DE DAVEZIEUX"]
["156333C","VALLOT PATRICE","BILLARD CLUB DE BOURG EN BRESSE"]
["156334D","VALLOT ROMAIN","BILLARD CLUB DE BOURG EN BRESSE"]
["108606E","VALLUIS NORBERT","CHARLEMAGNE SNOOKER CLUB"]
["153574D","VAN DE BUNDERIE MICHEL","VALENCE BILLARD CLUB"]
["162871J","VAN DER HEYDEN JOHN","BILLARD CLUB ROMANAIS PEAGEOIS"]
["146761R","VANDE RIVIERE RENE","BILLARD CLUB ROMANAIS PEAGEOIS"]
["149128W","VARIGNIER JACQUES","ACADEMIE ANNECIENNE DE BILLARD"]
["015737H","VARLOT HENRI","CERCLE DES CHEFS D ATELIER"]
["131818Y","VASSEUR ALEXANDRE","BLACKBALL CULOZIEN"]
["022457T","VAUDAY PATRICK","BILLARD CLUB PONTOIS"]
["161663W","VAUTEY JOACHIM","CERCLE DES CHEFS D ATELIER"]
["156856W","VAZQUEZ JOAQUIM","BILLARD CLUB MOULINS"]
["153999Q","VEILLON CORINNE","SAINT CHAMOND BILLARD CLUB"]
["100863J","VENDITTELLI FABIO","ACADEMIE BILLARD OUEST LYONNAIS"]
["122467H","VENNI FABRICE","BILLARD CLUB DE GAILLARD"]
["109048E","VERDIER JACQUES","CERCLE DES CHEFS D ATELIER"]
["129899D","VERDY MICHEL","B.S.CLERMONTOIS"]
["165861J","VERGORI ROMANO","BILLARD CLUB 8 POOL EVIAN"]
["100019X","VERNEDAL LIONEL","BILLARD CLUB DE SAINT-GALMIER"]
["015919H","VERNET DANIEL","VALENCE BILLARD CLUB"]
["151151V","VERON PATRICK","BILLARD CLUB MOULINS"]
["139036O","VERPILLIER ROBERT","CLUB CHAMBERIEN DE BILLARD"]
["016153H","VERSCHOORIS BRUNO","BILLARD CLUB AIXOIS"]
["122481V","VERYSER CLAUDE","LA CARAMBOLE LISSILOISE"]
["164209N","VEYRE DAMIEN","ACADEMIE ANNECIENNE DE BILLARD"]
["016145Z","VEYRON ANDRE","BILLARD CLUB GRENOBLOIS"]
["163774Q","VEYRON THOMAS","CLUB CHAMBERIEN DE BILLARD"]
["136032A","VIALLEFONT BERNARD","ACADEMIE BILLARD OUEST LYONNAIS"]
["166856Q","VICTOR MARTIN","ACADEMIE DE BILLARD DE LA VALSERINE"]
["133591D","VIDAL DANIEL","ACADEMIE DE BILLARD DE CHASSIEU"]
["015824Q","VIDON GERARD","GROUPE SPORTIF LUGDUNUM"]
["010978G","VIGILI GINO","B.S.CLERMONTOIS"]
["137422M","VIGUIER FRANCK","BILLARD CLUB VICHY"]
["157080P","VILA VERDE EZEQUIEL","VEYRE-MONTON BILLARD CLUB"]
["164111G","VILLEMAGNE ALAIN","ACAD. DE BILLARD DE SAINT-ETIENNE"]
["141470E","VILLENEUVE PATRICK","BILLARD STELLA THONON"]
["162918K","VIMAL ALAIN","BILLARD CLUB DE VILLEFRANCHE"]
["112529B","VINAY MICHEL","BILLARD CLUB ROMANAIS PEAGEOIS"]
["134038I","VINCENT CHRISTIAN","BILLARD CLUB MOULINS"]
["114033X","VINCENT LAURENT","CHARLEMAGNE SNOOKER CLUB"]
["145233X","VINCENT PASCAL","ASSOCIATION DU LAKE PUB 74"]
["165955L","VINCENT PHILIPPE","BILLARD CLUB AIXOIS"]
["016150E","VINCENT RENE","LA CARAMBOLE LISSILOISE"]
["151045E","VINOT FRANCOIS","BILLARD CLUB GRENOBLOIS"]
["101045J","VIOSSAT DAVID","BILLARD CLUB ROMANAIS PEAGEOIS"]
["119773R","VIOT MICHEL","BILLARD CLUB ROMANAIS PEAGEOIS"]
["123367X","VIRGA JOEL","VEYRE-MONTON BILLARD CLUB"]
["150312H","VIRICEL BRUNO","BILLARD CLUB DE SAINT-GALMIER"]
["142217X","VOVELLE LOUIS","CERCLE DES CHEFS D ATELIER"]
["133657R","VRAUX JACQUES","BILLARD CLUB ROMANAIS PEAGEOIS"]
["160256R","VUARCHEX MICHEL","ACADEMIE ANNECIENNE DE BILLARD"]
["126051D","WEILL GILBERT","BILLARD CLUB ALBERTVILLE"]
["155590V","WILLIAMS ARIANE","BILLARD CLUB AIXOIS"]
["148310G","WOIGNIER ALBERT","BILLARD CLUB ROMANAIS PEAGEOIS"]
["166117M","YAZMADJIAN SONIA","CERCLE DES CHEFS D ATELIER"]
[100001,"BLANC","LIBRE"]